Workbook

Sheet Wordle Helper
B2: Wordle Helper
B3: © 2026 Kevin Jones and Data Automation Professionals LLC
J4: 46219.89787
B5: Guess 1 | H5: =_xlfn.LET( _xlpm.Word, _xlfn.CONCAT(C5:G5), IF(_xlpm.Word = "", "", IF(ISERROR(MATCH(_xlpm.Word, IF(AllWordsSource = "Wordle List", tAllWords[Word], tAllWordsExtended[Word]), 0)), "Invalid word", "")) ) ->  | J5: ="Enter each of five guesses into the five spots for each guess, one letter per spot. Double-click on a word in the lists of words to automatically enter that word in the next open guess. Click 'Undo' to undo that entry." & CHAR(10) & CHAR(10) & "Enter the result for each guess below each spot: C for a used letter in the correct spot, W for a used letter in the wrong spot. When in practice mode (see below), the results are entered automatically." & CHAR(10) & CHAR(10) & _xlfn._LONGTEXT("Suggestions are shown below. Only valid Wordle words that have not been used before today and that satisfy the results from the previous guesses are shown. The first column is an alphabetical list of those words. Note that as of February 2, 2026, Wordle s","tarted occasionally using older words. ") & "The second column is a ranked list of those words where each of the letters in the word that have not yet been used in a guess are evaluated based on that letter's frequency of use in all five letter words." & " The words with the highest cumulative scoring letters are shown first." & " The third list are words ordered by their frequency of use." & CHAR(10) & CHAR(10) & "Click Refresh or press CTRL+SHIFT+R to refresh the previously used Wordle words from the site rockpapershotgun.com/wordle-past-answers." & " The previously used Wordle words list of " & TEXT(ROWS(_xlfn.ANCHORARRAY('Used Words List'!UsedWordsList)), "#,##0") & " words as of game number " & TEXT(ROWS(_xlfn.ANCHORARRAY('Used Words List'!UsedWordsList)) + 1, "###0") & " was loaded " & TEXT(LastRefreshDate, "Dddd, Mmmm D, YYYY") & " at " & TEXT(LastRefreshDate, "H:MM AM/PM") & ". The list is updated each day at 8 AM GMT which is 4 AM ET and 1 AM PT." & CHAR(10) & CHAR(10) & "Click Practice or press CTRL+SHIFT+P to enter practice mode with a randomly chosen word from the words not yet used by Wordle." & IF(LEN(C4) > 0, " Practice mode is currently on - enter guesses and the matches will be entered automatically when the guessed word is complete and valid. Press CTRL+SHIFT+C to turn practice mode off", " Practice mode is currently off") & "." & CHAR(10) & CHAR(10) & "Click Undo or press CTRL+SHIFT+Z to clear the last entered word. Click Clear or press CTRL+SHIFT+C to clear the work area and the practice word." & CHAR(10) & CHAR(10) & "Commonly used starting words that have not been used yet: " & _xlfn.TEXTJOIN(", ", ,_xlfn.ANCHORARRAY( 'Start Words'!UnusedStartWords)) & "." & CHAR(10) & CHAR(10) & "It has been established that some words Wordle will use such as LASER are not in the published Wordle word lists." & " Select ""Wordle List"" to view the " & TEXT(ROWS(tAllWords[Word]), "#,##0") & " possible Wordle words from wordunscrambler.net/word-list/wordle-word-list. Select ""Extended List"" to view a larger list of all " & TEXT(ROWS(tAllWordsExtended[Word]), "#,##0") & " known words (legal Scrabble words)." & " These two lists exclude previously used Wordle answers. In very rare cases, Wordle will use previously used words. In these cases, or if no suggestions are shown, select ""All Words""." -> Enter each of five guesses into the five spots for each guess, one letter per spot. Double-click on a word in the lists of words to automatically enter that word in the next open guess. Click 'Undo' to undo that entry. Enter the result for each guess below each spot: C for a used letter in the correct spot, W for a used letter in the wrong spot. When in practice mode (see below), the results are entered automatically. Suggestions are shown below. Only valid Wordle words that have not been used before today and that satisfy the results from the previous guesses are shown. The first column is an alphabetical list of those words. Note that as of February 2, 2026, Wordle started occasionally using older words. The second column is a ranked list of those words where each of the letters in the word that have not yet been used in a guess are evaluated based on that letter's frequency of use in all five letter words. The words with the highest cumulative scoring letters are shown first. The third list are words ordered by their frequency of use. Click Refresh or press CTRL+SHIFT+R to refresh the previously used Wordle words from the site rockpapershotgun.com/wordle-past-answers. The previously used Wordle words list of 1,837 words as of game number 1838 was loaded Thursday, July 16, 2026 at 9:32 PM. The list is updated each day at 8 AM GMT which is 4 AM ET and 1 AM PT. Click Practice or press CTRL+SHIFT+P to enter practice mode with a randomly chosen word from the words not yet used by Wordle. Practice mode is currently off. Click Undo or press CTRL+SHIFT+Z to clear the last entered word. Click Clear or press CTRL+SHIFT+C to clear the work area and the practice word. Commonly used starting words that have not been used yet: AROSE, ROAST, SAUCE, SLANT, TRIED. It has been established that some words Wordle will use such as LASER are not in the published Wordle word lists. Select "Wordle List" to view the 2,309 possible Wordle words from wordunscrambler.net/word-list/wordle-word-list. Select "Extended List" to view a larger list of all 12,915 known words (legal Scrabble words). These two lists exclude previously used Wordle answers. In very rare cases, Wordle will use previously used words. In these cases, or if no suggestions are shown, select "All Words".
B6: Matches
B8: Guess 2 | H8: =_xlfn.LET( _xlpm.Word, _xlfn.CONCAT(C8:G8), IF(_xlpm.Word = "", "", IF(ISERROR(MATCH(_xlpm.Word, IF(AllWordsSource = "Wordle List", tAllWords[Word], tAllWordsExtended[Word]), 0)), "Invalid word", "")) ) -> 
B9: Matches
B11: Guess 3 | H11: =_xlfn.LET( _xlpm.Word, _xlfn.CONCAT(C11:G11), IF(_xlpm.Word = "", "", IF(ISERROR(MATCH(_xlpm.Word, IF(AllWordsSource = "Wordle List", tAllWords[Word], tAllWordsExtended[Word]), 0)), "Invalid word", "")) ) -> 
B12: Matches
B14: Guess 4 | H14: =_xlfn.LET( _xlpm.Word, _xlfn.CONCAT(C14:G14), IF(_xlpm.Word = "", "", IF(ISERROR(MATCH(_xlpm.Word, IF(AllWordsSource = "Wordle List", tAllWords[Word], tAllWordsExtended[Word]), 0)), "Invalid word", "")) ) -> 
B15: Matches
B17: Guess 5 | H17: =_xlfn.LET( _xlpm.Word, _xlfn.CONCAT(C17:G17), IF(_xlpm.Word = "", "", IF(ISERROR(MATCH(_xlpm.Word, IF(AllWordsSource = "Wordle List", tAllWords[Word], tAllWordsExtended[Word]), 0)), "Invalid word", "")) ) -> 
B18: Matches
B20: Guess 6 | H20: =_xlfn.LET( _xlpm.Word, _xlfn.CONCAT(C20:G20), IF(_xlpm.Word = "", "", IF(ISERROR(MATCH(_xlpm.Word, IF(AllWordsSource = "Wordle List", tAllWords[Word], tAllWordsExtended[Word]), 0)), "Invalid word", "")) ) -> 
B21: Matches
B24: Version 1.11.000 | G24: Source: | H24: Wordle List
B25: =_xlfn.LET( _xlpm.COUNT, ROWS(_xlfn.ANCHORARRAY(B26)) - COUNTBLANK(_xlfn.ANCHORARRAY(B26)), IF(_xlpm.COUNT = 0, "No suggestions", TEXT(_xlpm.COUNT, "#,##0") & " suggestion" & IF(_xlpm.COUNT=1, "", "s")) ) -> 517 suggestions
B26: =IFERROR(_xlfn._xlws.FILTER(_xlfn.ANCHORARRAY(Calculations!A26),_xlfn.ANCHORARRAY(Calculations!J26)),"") -> ABLED | D26: =IFERROR(_xlfn.CHOOSECOLS(_xlfn._xlws.SORT(_xlfn._xlws.FILTER(_xlfn.HSTACK(_xlfn.ANCHORARRAY(Calculations!A26),_xlfn.ANCHORARRAY( Calculations!L26)),_xlfn.ANCHORARRAY( Calculations!J26)), 2, -1), 1), "") -> AROSE | H26: =IFERROR(_xlfn.CHOOSECOLS(_xlfn._xlws.SORT(_xlfn._xlws.FILTER(_xlfn.HSTACK(_xlfn.ANCHORARRAY(Calculations!A26),_xlfn.ANCHORARRAY( Calculations!M26)),_xlfn.ANCHORARRAY( Calculations!J26)), 2, -1), 1), "") -> FIGHT
B27: ABODE | D27: RENAL | H27: TRIED
B28: ABORT | D28: SANER | H28: WORTH
B29: ABUSE | D29: STEAL | H29: BLOOD
B30: ADORN | D30: TREAD | H30: CHINA
B31: AFIRE | D31: LEANT | H31: LEGAL
B32: AFOUL | D32: PALER | H32: BEGAN
B33: AIDER | D33: AIDER | H33: DAILY
B34: ALGAE | D34: TAMER | H34: RIVER
B35: ALLAY | D35: PARSE | H35: CLAIM
B36: AMITY | D36: CLEAT | H36: TRUMP
B37: ANIME | D37: ECLAT | H37: COLOR
B38: ANNUL | D38: CASTE | H38: DRESS
B39: APING | D39: DEALT | H39: SHOOT
B40: APNEA | D40: TAKER | H40: HARRY
B41: ARENA | D41: RINSE | H41: ENEMY
B42: ARMOR | D42: ROAST | H42: HONOR
B43: AROSE | D43: AFIRE | H43: STUCK
B44: ARRAY | D44: SAFER | H44: ABUSE
B45: ARSON | D45: SHALE | H45: DYING
B46: AUGUR | D46: PASTE | H46: SHIRT
B47: AUNTY | D47: SWEAR | H47: MINOR
B48: AXIAL | D48: TRIED | H48: TIGHT
B49: AXION | D49: POSER | H49: CRASH
B50: BAGGY | D50: PAYER | H50: DIRTY
B51: BASAL | D51: FETAL | H51: BIBLE
B52: BEECH | D52: PLIER | H52: BLIND
B53: BEGAN | D53: ARSON | H53: SWEAR
B54: BEGAT | D54: SONAR | H54: REPLY
B55: BERRY | D55: PENAL | H55: BOUND
B56: BETEL | D56: GAYER | H56: LOOSE
B57: BEZEL | D57: URINE | H57: SHOCK
B58: BIBLE | D58: EATER | H58: COMIC
B59: BIDDY | D59: TERRA | H59: VIRUS
B60: BIGOT | D60: RAVEN | H60: CRACK
B61: BILLY | D61: SAUCE | H61: STEAL
B62: BINGO | D62: UTILE | H62: IDIOT
B63: BISON | D63: HAREM | H63: ROGER
B64: BITTY | D64: TRIBE | H64: CREEK
B65: BLESS | D65: RECUT | H65: FRAUD
B66: BLIND | D66: TRUCE | H66: SCARY
B67: BLITZ | D67: HAUTE | H67: STRIP
B68: BLOAT | D68: GRAPE | H68: RALLY
B69: BLOOD | D69: DEBAR | H69: ARENA
B70: BLUER | D70: ANIME | H70: BILLY
B71: BOBBY | D71: REFIT | H71: FLEET
B72: BONEY | D72: STAVE | H72: PUNCH
B73: BOOTH | D73: TONAL | H73: SAUCE
B74: BOSOM | D74: PESTO | H74: SLIDE
B75: BOTCH | D75: OAKEN | H75: ANIME
B76: BOULE | D76: SWORE | H76: BRICK
B77: BOUND | D77: FILER | H77: SCREW
B78: BOWEL | D78: FLIER | H78: WIDER
B79: BRAWL | D79: RIFLE | H79: BOBBY
B80: BRICK | D80: SALVE | H80: FLUID
B81: BRUNT | D81: RIPEN | H81: FENCE
B82: BURST | D82: WREST | H82: DEALT
B83: BUSED | D83: SLEPT | H83: RADAR
B84: BUSHY | D84: VERSO | H84: CRIED
B85: BUTCH | D85: SMOTE | H85: RIFLE
B86: BUTTE | D86: SATYR | H86: SADLY
B87: BUXOM | D87: SALON | H87: SLEPT
B88: CABAL | D88: REIGN | H88: BLESS
B89: CABBY | D89: SLIDE | H89: BURST
B90: CABIN | D90: ARENA | H90: SWIFT
B91: CADDY | D91: MEATY | H91: WELSH
B92: CAGEY | D92: OLDEN | H92: CABIN
B93: CAIRN | D93: CRIED | H93: GUILT
B94: CAPUT | D94: UNSET | H94: VALVE
B95: CASTE | D95: SLANT | H95: TRIBE
B96: CAVIL | D96: OCTAL | H96: ARRAY
B97: CHAFF | D97: NOSEY | H97: BOOTH
B98: CHESS | D98: ABORT | H98: DERBY
B99: CHICK | D99: ABODE | H99: FATAL
B100: CHINA | D100: REPLY | H100: RALPH
B101: CHURN | D101: FECAL | H101: SHARK
B102: CLAIM | D102: PURSE | H102: DAIRY
B103: CLANK | D103: ABUSE | H103: SAFER
B104: CLEAT | D104: SHONE | H104: SETUP
B105: CLOUT | D105: WAGER | H105: CHICK
B106: CLUED | D106: SLAIN | H106: FAIRY
B107: COBRA | D107: ADORN | H107: WIDOW
B108: COLOR | D108: ABLED | H108: PENNY
B109: COMIC | D109: CAIRN | H109: REIGN
B110: COPSE | D110: STOKE | H110: PULSE
B111: COUGH | D111: BLUER | H111: SHOOK
B112: COUPE | D112: CUTIE | H112: DRIED
B113: COVEY | D113: GROPE | H113: ELECT
B114: CRACK | D114: PRIED | H114: ORBIT
B115: CRASH | D115: BEGAT | H115: TRUNK
B116: CREEK | D116: ESTER | H116: SHEER
B117: CREEP | D117: STEER | H117: KITTY
B118: CREME | D118: RESET | H118: ARMOR
B119: CRESS | D119: TORUS | H119: BERRY
B120: CRICK | D120: SNIPE | H120: TUMOR
B121: CRIED | D121: FELON | H121: COUGH
B122: CRIER | D122: VALOR | H122: DRANK
B123: CRONY | D123: COPSE | H123: PURSE
B124: CROUP | D124: OMBRE | H124: TENSE
B125: CRUMP | D125: SPERM | H125: CHESS
B126: CURVY | D126: SHALT | H126: NEWER
B127: CUTIE | D127: SCREW | H127: RISKY
B128: DAILY | D128: SETUP | H128: SWEPT
B129: DAIRY | D129: BLOAT | H129: SIXTY
B130: DEALT | D130: GAZER | H130: RANDY
B131: DEBAR | D131: GRAZE | H131: PASTE
B132: DEIGN | D132: BOULE | H132: DITCH
B133: DERBY | D133: PULSE | H133: SHINY
B134: DILLY | D134: DROIT | H134: ROAST
B135: DIMLY | D135: POESY | H135: SALON
B136: DIODE | D136: SCARY | H136: FREED
B137: DIRTY | D137: MACRO | H137: CREEP
B138: DITCH | D138: REARM | H138: GRILL
B139: DIVER | D139: CAGEY | H139: RULER
B140: DOWNY | D140: MANGE | H140: SPERM
B141: DRANK | D141: CRASH | H141: URINE
B142: DRAWL | D142: MOWER | H142: IMPLY
B143: DRESS | D143: WIDER | H143: RESET
B144: DRIED | D144: COBRA | H144: WOODY
B145: DRIER | D145: REBAR | H145: FATTY
B146: DROIT | D146: OVINE | H146: FLUSH
B147: DROSS | D147: SHREW | H147: SEIZE
B148: DROWN | D148: PLIED | H148: HORNY
B149: DRUID | D149: LOOSE | H149: RAVEN
B150: DRYLY | D150: BEGAN | H150: MORON
B151: DULLY | D151: SNEER | H151: HEDGE
B152: DUMPY | D152: DAIRY | H152: AROSE
B153: DUNCE | D153: TAROT | H153: OWING
B154: DYING | D154: SHIRT | H154: RUMOR
B155: EATER | D155: SHIED | H155: STOKE
B156: ECLAT | D156: TANGO | H156: RAZOR
B157: EKING | D157: TONGA | H157: STEER
B158: ELECT | D158: DIVER | H158: BINGO
B159: ELEGY | D159: RALPH | H159: MACRO
B160: ELIDE | D160: SLEET | H160: SHADY
B161: ENEMY | D161: SINEW | H161: SLACK
B162: ERECT | D162: ERECT | H162: VISTA
B163: ESTER | D163: ORBIT | H163: GRAPE
B164: EVICT | D164: RASPY | H164: JUICY
B165: EYING | D165: STRIP | H165: MOODY
B166: FAIRY | D166: SPIED | H166: RABBI
B167: FANNY | D167: TRUER | H167: SHALE
B168: FATAL | D168: FETUS | H168: DROWN
B169: FATTY | D169: THETA | H169: OBESE
B170: FAUNA | D170: VIPER | H170: TYING
B171: FECAL | D171: RULER | H171: PENCE
B172: FELLA | D172: LUMEN | H172: OPTIC
B173: FELON | D173: STALK | H173: SLASH
B174: FEMME | D174: COUPE | H174: SEWER
B175: FEMUR | D175: TRAMP | H175: SMACK
B176: FENCE | D176: CLUED | H176: HYDRO
B177: FETAL | D177: ODDER | H177: LYRIC
B178: FETUS | D178: CRIER | H178: PADDY
B179: FICUS | D179: CRESS | H179: WILLY
B180: FIGHT | D180: SCREE | H180: CASTE
B181: FILER | D181: SALVO | H181: FETUS
B182: FILMY | D182: RANDY | H182: MOUND
B183: FILTH | D183: BONEY | H183: MUDDY
B184: FLACK | D184: GIVER | H184: TANGO
B185: FLECK | D185: SCALY | H185: BLITZ
B186: FLEET | D186: EVICT | H186: FURRY
B187: FLIER | D187: ALGAE | H187: PAGAN
B188: FLUID | D188: LEGAL | H188: SPREE
B189: FLUSH | D189: NOOSE | H189: VAPOR
B190: FRAUD | D190: DERBY | H190: BOWEL
B191: FREED | D191: WAIVE | H191: GYPSY
B192: FREER | D192: WARTY | H192: ALGAE
B193: FRIAR | D193: MINOR | H193: SLAIN
B194: FRISK | D194: LEPER | H194: BRAWL
B195: FUDGE | D195: EYING | H195: SWORE
B196: FUROR | D196: OVARY | H196: VOMIT
B197: FURRY | D197: SCALP | H197: ERECT
B198: FUSSY | D198: TENSE | H198: FAUNA
B199: GAFFE | D199: FAIRY | H199: TREAD
B200: GAILY | D200: WELSH | H200: TRUCE
B201: GASSY | D201: VISTA | H201: COBRA
B202: GAYER | D202: ROGER | H202: SIGMA
B203: GAYLY | D203: DRIED | H203: MILKY
B204: GAZER | D204: DRIER | H204: PIVOT
B205: GEEKY | D205: LOAMY | H205: SUING
B206: GIPSY | D206: DRESS | H206: FELLA
B207: GIRLY | D207: SOAPY | H207: LOGIN
B208: GIVER | D208: POSIT | H208: QUASI
... 334 more rows

Sheet Calculations (hidden)
A1: Guesses | B1: Pos 1 | C1: Pos 2 | D1: Pos 3 | E1: Pos 4 | F1: Pos 5
A2: =IF(COUNTA('Wordle Helper'!Guess1Cells) = 5, _xlfn.TEXTJOIN("", , 'Wordle Helper'!Guess1Cells), "") ->  | B2: =IF(COUNTA('Wordle Helper'!Guess1Cells) = 5, 'Wordle Helper'!Guess1Cells, "") -> 
A3: =IF(COUNTA('Wordle Helper'!Guess2Cells) = 5, _xlfn.TEXTJOIN("", , 'Wordle Helper'!Guess2Cells), "") ->  | B3: =IF(COUNTA('Wordle Helper'!Guess2Cells) = 5, 'Wordle Helper'!Guess2Cells, "") -> 
A4: =IF(COUNTA('Wordle Helper'!Guess3Cells) = 5, _xlfn.TEXTJOIN("", , 'Wordle Helper'!Guess3Cells), "") ->  | B4: =IF(COUNTA('Wordle Helper'!Guess3Cells) = 5, 'Wordle Helper'!Guess3Cells, "") -> 
A5: =IF(COUNTA('Wordle Helper'!Guess4Cells) = 5, _xlfn.TEXTJOIN("", , 'Wordle Helper'!Guess4Cells), "") ->  | B5: =IF(COUNTA('Wordle Helper'!Guess4Cells) = 5, 'Wordle Helper'!Guess4Cells, "") -> 
A6: =IF(COUNTA('Wordle Helper'!Guess5Cells) = 5, _xlfn.TEXTJOIN("", , 'Wordle Helper'!Guess5Cells), "") ->  | B6: =IF(COUNTA('Wordle Helper'!Guess5Cells) = 5, 'Wordle Helper'!Guess5Cells, "") -> 
A7: Matches | B7: =_xlfn.LET( _xlpm.Result, IF(COUNTA('Wordle Helper'!Guess1Cells) = 5, 'Wordle Helper'!Matches1Cells, ""), IF(LEN(_xlpm.Result) = 0, "", _xlpm.Result) ) -> 
A8: =IF(COUNTA('Wordle Helper'!Matches1Cells) = 5, _xlfn.TEXTJOIN("", , 'Wordle Helper'!Matches1Cells), "") ->  | B8: =_xlfn.LET( _xlpm.Result, IF(COUNTA('Wordle Helper'!Guess2Cells) = 5, 'Wordle Helper'!Matches2Cells, ""), IF(LEN(_xlpm.Result) = 0, "", _xlpm.Result) ) -> 
B9: =_xlfn.LET( _xlpm.Result, IF(COUNTA('Wordle Helper'!Guess3Cells) = 5, 'Wordle Helper'!Matches3Cells, ""), IF(LEN(_xlpm.Result) = 0, "", _xlpm.Result) ) -> 
B10: =_xlfn.LET( _xlpm.Result, IF(COUNTA('Wordle Helper'!Guess4Cells) = 5, 'Wordle Helper'!Matches4Cells, ""), IF(LEN(_xlpm.Result) = 0, "", _xlpm.Result) ) -> 
B11: =_xlfn.LET( _xlpm.Result, IF(COUNTA('Wordle Helper'!Guess5Cells) = 5, 'Wordle Helper'!Matches5Cells, ""), IF(LEN(_xlpm.Result) = 0, "", _xlpm.Result) ) -> 
B15: Pos 1 | C15: Pos 2 | D15: Pos 3 | E15: Pos 4 | F15: Pos 5
A16: Include Letters by Position | B16: =_xlfn.LET( _xlpm.Guesses, B2:B6, _xlpm.Matches, B7:B11, IFERROR(LEFT(_xlfn.CONCAT(_xlfn._xlws.FILTER(_xlpm.Guesses, _xlpm.Matches = "C")), 1), "") ) ->  | C16: =_xlfn.LET( _xlpm.Guesses, C2:C6, _xlpm.Matches, C7:C11, IFERROR(LEFT(_xlfn.CONCAT(_xlfn._xlws.FILTER(_xlpm.Guesses, _xlpm.Matches = "C")), 1), "") ) ->  | D16: =_xlfn.LET( _xlpm.Guesses, D2:D6, _xlpm.Matches, D7:D11, IFERROR(LEFT(_xlfn.CONCAT(_xlfn._xlws.FILTER(_xlpm.Guesses, _xlpm.Matches = "C")), 1), "") ) ->  | E16: =_xlfn.LET( _xlpm.Guesses, E2:E6, _xlpm.Matches, E7:E11, IFERROR(LEFT(_xlfn.CONCAT(_xlfn._xlws.FILTER(_xlpm.Guesses, _xlpm.Matches = "C")), 1), "") ) ->  | F16: =_xlfn.LET( _xlpm.Guesses, F2:F6, _xlpm.Matches, F7:F11, IFERROR(LEFT(_xlfn.CONCAT(_xlfn._xlws.FILTER(_xlpm.Guesses, _xlpm.Matches = "C")), 1), "") ) -> 
A17: Exclude Letters by Position | B17: =_xlfn.LET( _xlpm.Guesses, B2:B6, _xlpm.Matches, B7:B11, IFERROR(_xlfn.CONCAT(_xlfn.UNIQUE(_xlfn._xlws.FILTER(_xlpm.Guesses, _xlpm.Matches = "W"), TRUE)), "") ) ->  | C17: =_xlfn.LET( _xlpm.Guesses, C2:C6, _xlpm.Matches, C7:C11, IFERROR(_xlfn.CONCAT(_xlfn.UNIQUE(_xlfn._xlws.FILTER(_xlpm.Guesses, _xlpm.Matches = "W"), TRUE)), "") ) ->  | D17: =_xlfn.LET( _xlpm.Guesses, D2:D6, _xlpm.Matches, D7:D11, IFERROR(_xlfn.CONCAT(_xlfn.UNIQUE(_xlfn._xlws.FILTER(_xlpm.Guesses, _xlpm.Matches = "W"), TRUE)), "") ) ->  | E17: =_xlfn.LET( _xlpm.Guesses, E2:E6, _xlpm.Matches, E7:E11, IFERROR(_xlfn.CONCAT(_xlfn.UNIQUE(_xlfn._xlws.FILTER(_xlpm.Guesses, _xlpm.Matches = "W"), TRUE)), "") ) ->  | F17: =_xlfn.LET( _xlpm.Guesses, F2:F6, _xlpm.Matches, F7:F11, IFERROR(_xlfn.CONCAT(_xlfn.UNIQUE(_xlfn._xlws.FILTER(_xlpm.Guesses, _xlpm.Matches = "W"), TRUE)), "") ) -> 
A19: Include Letters | B19: =_xlfn.LET( _xlpm.Guesses, _xlfn.TOROW(B2:F6), _xlpm.Matches, _xlfn.TOROW(B7:F11), IFERROR(_xlfn.CONCAT(_xlfn.UNIQUE(_xlfn._xlws.FILTER(_xlpm.Guesses, _xlpm.Matches = "W"), TRUE)), "") ) -> 
A20: Exclude Letters | B20: =_xlfn.LET( _xlpm.Guesses, _xlfn.TOROW(B2:F6), _xlpm.Matches, _xlfn.TOROW(B7:F11), _xlpm.Included, IFERROR(MID(B19, _xlfn.SEQUENCE(LEN(B19)), 1), {""}), _xlpm.Candidates, _xlfn.UNIQUE(_xlfn._xlws.FILTER(_xlpm.Guesses, (LEN(_xlpm.Matches) = 0) * ISNA(MATCH(_xlpm.Guesses, B16:F16, 0)) * (_xlpm.Guesses <> G23) <> 0), TRUE), IFERROR(_xlfn.TEXTJOIN("", , _xlfn._xlws.FILTER(_xlpm.Candidates, ISNA(MATCH(_xlpm.Candidates, _xlpm.Included, 0)))), "") ) -> 
B22: Guess 1 | C22: Guess 2 | D22: Guess 3 | E22: Guess 4 | F22: Guess 5
A23: Include Double Letters | B23: =_xlfn.LET( _xlpm.Guesses, OFFSET(_xlfn.ANCHORARRAY($B$2), (RIGHT(B$22, 1) - 1), 0), _xlpm.Matches, OFFSET(_xlfn.ANCHORARRAY($B$7), (RIGHT(B$22, 1) - 1), 0), _xlpm.MultiplesW, COUNTIFS(OFFSET(_xlfn.ANCHORARRAY($B$2), (RIGHT(B22, 1) - 1), 0), OFFSET(_xlfn.ANCHORARRAY($B$2), (RIGHT(B22, 1) - 1), 0), OFFSET(_xlfn.ANCHORARRAY($B$7), (RIGHT(B22, 1) - 1), 0), "W"), _xlpm.MultiplesC, COUNTIFS(OFFSET(_xlfn.ANCHORARRAY($B$2), (RIGHT(B22, 1) - 1), 0), OFFSET(_xlfn.ANCHORARRAY($B$2), (RIGHT(B22, 1) - 1), 0), OFFSET(_xlfn.ANCHORARRAY($B$7), (RIGHT(B22, 1) - 1), 0), "C"), _xlpm.Multiples, _xlpm.MultiplesC + _xlpm.MultiplesW > 1, IFERROR(_xlfn.TEXTJOIN("", , _xlfn.UNIQUE(_xlfn._xlws.FILTER(_xlpm.Guesses, ((_xlpm.Matches = "C") + (_xlpm.Matches = "W")) * _xlpm.Multiples <> 0), TRUE)), "") ) ->  | C23: =_xlfn.LET( _xlpm.Guesses, OFFSET(_xlfn.ANCHORARRAY($B$2), (RIGHT(C$22, 1) - 1), 0), _xlpm.Matches, OFFSET(_xlfn.ANCHORARRAY($B$7), (RIGHT(C$22, 1) - 1), 0), _xlpm.MultiplesW, COUNTIFS(OFFSET(_xlfn.ANCHORARRAY($B$2), (RIGHT(C22, 1) - 1), 0), OFFSET(_xlfn.ANCHORARRAY($B$2), (RIGHT(C22, 1) - 1), 0), OFFSET(_xlfn.ANCHORARRAY($B$7), (RIGHT(C22, 1) - 1), 0), "W"), _xlpm.MultiplesC, COUNTIFS(OFFSET(_xlfn.ANCHORARRAY($B$2), (RIGHT(C22, 1) - 1), 0), OFFSET(_xlfn.ANCHORARRAY($B$2), (RIGHT(C22, 1) - 1), 0), OFFSET(_xlfn.ANCHORARRAY($B$7), (RIGHT(C22, 1) - 1), 0), "C"), _xlpm.Multiples, _xlpm.MultiplesC + _xlpm.MultiplesW > 1, IFERROR(_xlfn.TEXTJOIN("", , _xlfn.UNIQUE(_xlfn._xlws.FILTER(_xlpm.Guesses, ((_xlpm.Matches = "C") + (_xlpm.Matches = "W")) * _xlpm.Multiples <> 0), TRUE)), "") ) ->  | D23: =_xlfn.LET( _xlpm.Guesses, OFFSET(_xlfn.ANCHORARRAY($B$2), (RIGHT(D$22, 1) - 1), 0), _xlpm.Matches, OFFSET(_xlfn.ANCHORARRAY($B$7), (RIGHT(D$22, 1) - 1), 0), _xlpm.MultiplesW, COUNTIFS(OFFSET(_xlfn.ANCHORARRAY($B$2), (RIGHT(D22, 1) - 1), 0), OFFSET(_xlfn.ANCHORARRAY($B$2), (RIGHT(D22, 1) - 1), 0), OFFSET(_xlfn.ANCHORARRAY($B$7), (RIGHT(D22, 1) - 1), 0), "W"), _xlpm.MultiplesC, COUNTIFS(OFFSET(_xlfn.ANCHORARRAY($B$2), (RIGHT(D22, 1) - 1), 0), OFFSET(_xlfn.ANCHORARRAY($B$2), (RIGHT(D22, 1) - 1), 0), OFFSET(_xlfn.ANCHORARRAY($B$7), (RIGHT(D22, 1) - 1), 0), "C"), _xlpm.Multiples, _xlpm.MultiplesC + _xlpm.MultiplesW > 1, IFERROR(_xlfn.TEXTJOIN("", , _xlfn.UNIQUE(_xlfn._xlws.FILTER(_xlpm.Guesses, ((_xlpm.Matches = "C") + (_xlpm.Matches = "W")) * _xlpm.Multiples <> 0), TRUE)), "") ) ->  | E23: =_xlfn.LET( _xlpm.Guesses, OFFSET(_xlfn.ANCHORARRAY($B$2), (RIGHT(E$22, 1) - 1), 0), _xlpm.Matches, OFFSET(_xlfn.ANCHORARRAY($B$7), (RIGHT(E$22, 1) - 1), 0), _xlpm.MultiplesW, COUNTIFS(OFFSET(_xlfn.ANCHORARRAY($B$2), (RIGHT(E22, 1) - 1), 0), OFFSET(_xlfn.ANCHORARRAY($B$2), (RIGHT(E22, 1) - 1), 0), OFFSET(_xlfn.ANCHORARRAY($B$7), (RIGHT(E22, 1) - 1), 0), "W"), _xlpm.MultiplesC, COUNTIFS(OFFSET(_xlfn.ANCHORARRAY($B$2), (RIGHT(E22, 1) - 1), 0), OFFSET(_xlfn.ANCHORARRAY($B$2), (RIGHT(E22, 1) - 1), 0), OFFSET(_xlfn.ANCHORARRAY($B$7), (RIGHT(E22, 1) - 1), 0), "C"), _xlpm.Multiples, _xlpm.MultiplesC + _xlpm.MultiplesW > 1, IFERROR(_xlfn.TEXTJOIN("", , _xlfn.UNIQUE(_xlfn._xlws.FILTER(_xlpm.Guesses, ((_xlpm.Matches = "C") + (_xlpm.Matches = "W")) * _xlpm.Multiples <> 0), TRUE)), "") ) ->  | F23: =_xlfn.LET( _xlpm.Guesses, OFFSET(_xlfn.ANCHORARRAY($B$2), (RIGHT(F$22, 1) - 1), 0), _xlpm.Matches, OFFSET(_xlfn.ANCHORARRAY($B$7), (RIGHT(F$22, 1) - 1), 0), _xlpm.MultiplesW, COUNTIFS(OFFSET(_xlfn.ANCHORARRAY($B$2), (RIGHT(F22, 1) - 1), 0), OFFSET(_xlfn.ANCHORARRAY($B$2), (RIGHT(F22, 1) - 1), 0), OFFSET(_xlfn.ANCHORARRAY($B$7), (RIGHT(F22, 1) - 1), 0), "W"), _xlpm.MultiplesC, COUNTIFS(OFFSET(_xlfn.ANCHORARRAY($B$2), (RIGHT(F22, 1) - 1), 0), OFFSET(_xlfn.ANCHORARRAY($B$2), (RIGHT(F22, 1) - 1), 0), OFFSET(_xlfn.ANCHORARRAY($B$7), (RIGHT(F22, 1) - 1), 0), "C"), _xlpm.Multiples, _xlpm.MultiplesC + _xlpm.MultiplesW > 1, IFERROR(_xlfn.TEXTJOIN("", , _xlfn.UNIQUE(_xlfn._xlws.FILTER(_xlpm.Guesses, ((_xlpm.Matches = "C") + (_xlpm.Matches = "W")) * _xlpm.Multiples <> 0), TRUE)), "") ) ->  | G23: =_xlfn.TEXTJOIN("", , _xlfn.UNIQUE(B23:F23, TRUE)) -> 
A24: Exclude Double Letters | B24: =_xlfn.LET( _xlpm.Guesses, OFFSET(_xlfn.ANCHORARRAY($B$2), (RIGHT(B22, 1) - 1), 0), _xlpm.Matches, OFFSET(_xlfn.ANCHORARRAY($B$7), (RIGHT(B22, 1) - 1), 0), _xlpm.MultiplesC, COUNTIFS(OFFSET(_xlfn.ANCHORARRAY($B$2), (RIGHT(B22, 1) - 1), 0), OFFSET(_xlfn.ANCHORARRAY($B$2), (RIGHT(B22, 1) - 1), 0), OFFSET(_xlfn.ANCHORARRAY($B$7), (RIGHT(B22, 1) - 1), 0), "C"), _xlpm.MultiplesW, COUNTIFS(OFFSET(_xlfn.ANCHORARRAY($B$2), (RIGHT(B22, 1) - 1), 0), OFFSET(_xlfn.ANCHORARRAY($B$2), (RIGHT(B22, 1) - 1), 0), OFFSET(_xlfn.ANCHORARRAY($B$7), (RIGHT(B22, 1) - 1), 0), "W"), _xlpm.MultiplesX, COUNTIFS(OFFSET(_xlfn.ANCHORARRAY($B$2), (RIGHT(B22, 1) - 1), 0), OFFSET(_xlfn.ANCHORARRAY($B$2), (RIGHT(B22, 1) - 1), 0), OFFSET(_xlfn.ANCHORARRAY($B$7), (RIGHT(B22, 1) - 1), 0), ""), _xlpm.Multiples, (_xlpm.MultiplesW + _xlpm.MultiplesC + _xlpm.MultiplesX > 1) * (_xlpm.MultiplesX > 0) <> 0, IFERROR(_xlfn.TEXTJOIN("", , _xlfn.UNIQUE(_xlfn._xlws.FILTER(_xlpm.Guesses, ((_xlpm.Matches = "C") + (_xlpm.Matches = "W")) * _xlpm.Multiples <> 0), TRUE)), "") ) ->  | C24: =_xlfn.LET( _xlpm.Guesses, OFFSET(_xlfn.ANCHORARRAY($B$2), (RIGHT(C22, 1) - 1), 0), _xlpm.Matches, OFFSET(_xlfn.ANCHORARRAY($B$7), (RIGHT(C22, 1) - 1), 0), _xlpm.MultiplesC, COUNTIFS(OFFSET(_xlfn.ANCHORARRAY($B$2), (RIGHT(C22, 1) - 1), 0), OFFSET(_xlfn.ANCHORARRAY($B$2), (RIGHT(C22, 1) - 1), 0), OFFSET(_xlfn.ANCHORARRAY($B$7), (RIGHT(C22, 1) - 1), 0), "C"), _xlpm.MultiplesW, COUNTIFS(OFFSET(_xlfn.ANCHORARRAY($B$2), (RIGHT(C22, 1) - 1), 0), OFFSET(_xlfn.ANCHORARRAY($B$2), (RIGHT(C22, 1) - 1), 0), OFFSET(_xlfn.ANCHORARRAY($B$7), (RIGHT(C22, 1) - 1), 0), "W"), _xlpm.MultiplesX, COUNTIFS(OFFSET(_xlfn.ANCHORARRAY($B$2), (RIGHT(C22, 1) - 1), 0), OFFSET(_xlfn.ANCHORARRAY($B$2), (RIGHT(C22, 1) - 1), 0), OFFSET(_xlfn.ANCHORARRAY($B$7), (RIGHT(C22, 1) - 1), 0), ""), _xlpm.Multiples, (_xlpm.MultiplesW + _xlpm.MultiplesC + _xlpm.MultiplesX > 1) * (_xlpm.MultiplesX > 0) <> 0, IFERROR(_xlfn.TEXTJOIN("", , _xlfn.UNIQUE(_xlfn._xlws.FILTER(_xlpm.Guesses, ((_xlpm.Matches = "C") + (_xlpm.Matches = "W")) * _xlpm.Multiples <> 0), TRUE)), "") ) ->  | D24: =_xlfn.LET( _xlpm.Guesses, OFFSET(_xlfn.ANCHORARRAY($B$2), (RIGHT(D22, 1) - 1), 0), _xlpm.Matches, OFFSET(_xlfn.ANCHORARRAY($B$7), (RIGHT(D22, 1) - 1), 0), _xlpm.MultiplesC, COUNTIFS(OFFSET(_xlfn.ANCHORARRAY($B$2), (RIGHT(D22, 1) - 1), 0), OFFSET(_xlfn.ANCHORARRAY($B$2), (RIGHT(D22, 1) - 1), 0), OFFSET(_xlfn.ANCHORARRAY($B$7), (RIGHT(D22, 1) - 1), 0), "C"), _xlpm.MultiplesW, COUNTIFS(OFFSET(_xlfn.ANCHORARRAY($B$2), (RIGHT(D22, 1) - 1), 0), OFFSET(_xlfn.ANCHORARRAY($B$2), (RIGHT(D22, 1) - 1), 0), OFFSET(_xlfn.ANCHORARRAY($B$7), (RIGHT(D22, 1) - 1), 0), "W"), _xlpm.MultiplesX, COUNTIFS(OFFSET(_xlfn.ANCHORARRAY($B$2), (RIGHT(D22, 1) - 1), 0), OFFSET(_xlfn.ANCHORARRAY($B$2), (RIGHT(D22, 1) - 1), 0), OFFSET(_xlfn.ANCHORARRAY($B$7), (RIGHT(D22, 1) - 1), 0), ""), _xlpm.Multiples, (_xlpm.MultiplesW + _xlpm.MultiplesC + _xlpm.MultiplesX > 1) * (_xlpm.MultiplesX > 0) <> 0, IFERROR(_xlfn.TEXTJOIN("", , _xlfn.UNIQUE(_xlfn._xlws.FILTER(_xlpm.Guesses, ((_xlpm.Matches = "C") + (_xlpm.Matches = "W")) * _xlpm.Multiples <> 0), TRUE)), "") ) ->  | E24: =_xlfn.LET( _xlpm.Guesses, OFFSET(_xlfn.ANCHORARRAY($B$2), (RIGHT(E22, 1) - 1), 0), _xlpm.Matches, OFFSET(_xlfn.ANCHORARRAY($B$7), (RIGHT(E22, 1) - 1), 0), _xlpm.MultiplesC, COUNTIFS(OFFSET(_xlfn.ANCHORARRAY($B$2), (RIGHT(E22, 1) - 1), 0), OFFSET(_xlfn.ANCHORARRAY($B$2), (RIGHT(E22, 1) - 1), 0), OFFSET(_xlfn.ANCHORARRAY($B$7), (RIGHT(E22, 1) - 1), 0), "C"), _xlpm.MultiplesW, COUNTIFS(OFFSET(_xlfn.ANCHORARRAY($B$2), (RIGHT(E22, 1) - 1), 0), OFFSET(_xlfn.ANCHORARRAY($B$2), (RIGHT(E22, 1) - 1), 0), OFFSET(_xlfn.ANCHORARRAY($B$7), (RIGHT(E22, 1) - 1), 0), "W"), _xlpm.MultiplesX, COUNTIFS(OFFSET(_xlfn.ANCHORARRAY($B$2), (RIGHT(E22, 1) - 1), 0), OFFSET(_xlfn.ANCHORARRAY($B$2), (RIGHT(E22, 1) - 1), 0), OFFSET(_xlfn.ANCHORARRAY($B$7), (RIGHT(E22, 1) - 1), 0), ""), _xlpm.Multiples, (_xlpm.MultiplesW + _xlpm.MultiplesC + _xlpm.MultiplesX > 1) * (_xlpm.MultiplesX > 0) <> 0, IFERROR(_xlfn.TEXTJOIN("", , _xlfn.UNIQUE(_xlfn._xlws.FILTER(_xlpm.Guesses, ((_xlpm.Matches = "C") + (_xlpm.Matches = "W")) * _xlpm.Multiples <> 0), TRUE)), "") ) ->  | F24: =_xlfn.LET( _xlpm.Guesses, OFFSET(_xlfn.ANCHORARRAY($B$2), (RIGHT(F22, 1) - 1), 0), _xlpm.Matches, OFFSET(_xlfn.ANCHORARRAY($B$7), (RIGHT(F22, 1) - 1), 0), _xlpm.MultiplesC, COUNTIFS(OFFSET(_xlfn.ANCHORARRAY($B$2), (RIGHT(F22, 1) - 1), 0), OFFSET(_xlfn.ANCHORARRAY($B$2), (RIGHT(F22, 1) - 1), 0), OFFSET(_xlfn.ANCHORARRAY($B$7), (RIGHT(F22, 1) - 1), 0), "C"), _xlpm.MultiplesW, COUNTIFS(OFFSET(_xlfn.ANCHORARRAY($B$2), (RIGHT(F22, 1) - 1), 0), OFFSET(_xlfn.ANCHORARRAY($B$2), (RIGHT(F22, 1) - 1), 0), OFFSET(_xlfn.ANCHORARRAY($B$7), (RIGHT(F22, 1) - 1), 0), "W"), _xlpm.MultiplesX, COUNTIFS(OFFSET(_xlfn.ANCHORARRAY($B$2), (RIGHT(F22, 1) - 1), 0), OFFSET(_xlfn.ANCHORARRAY($B$2), (RIGHT(F22, 1) - 1), 0), OFFSET(_xlfn.ANCHORARRAY($B$7), (RIGHT(F22, 1) - 1), 0), ""), _xlpm.Multiples, (_xlpm.MultiplesW + _xlpm.MultiplesC + _xlpm.MultiplesX > 1) * (_xlpm.MultiplesX > 0) <> 0, IFERROR(_xlfn.TEXTJOIN("", , _xlfn.UNIQUE(_xlfn._xlws.FILTER(_xlpm.Guesses, ((_xlpm.Matches = "C") + (_xlpm.Matches = "W")) * _xlpm.Multiples <> 0), TRUE)), "") ) ->  | G24: =_xlfn.TEXTJOIN("", , _xlfn.UNIQUE(B24:F24)) -> 
A25: All Words | B25: Include Letters by Position | C25: Exclude Letters by Position | D25: Include Letters | E25: Exclude Letters | F25: Include Double Letters | G25: Exclude Double Letters | H25: Exclude Used Words | I25: Exclude Played Words | J25: Include | K25: Letters to Score | L25: Score | M25: Frequency | O25: Preferred Score Formula
A26: =IF('Wordle Helper'!AllWordsSource = "Wordle List", tAllWords[Word], tAllWordsExtended[Word]) -> ABACK | B26: =_xlfn.LET( _xlpm.Results, IF(MID(_xlfn.ANCHORARRAY(A26), _xlfn.SEQUENCE(1, 5), 1) = B16:F16, 1, 0), _xlfn.BYROW(_xlpm.Results, _xlfn.LAMBDA(_xlpm.Array, SUM(_xlpm.Array) = 5 - COUNTBLANK(B16:F16))) ) -> TRUE | C26: =_xlfn.LET( _xlpm.Results, IF(ISERROR(FIND(MID(_xlfn.ANCHORARRAY(A26), _xlfn.SEQUENCE(1, 5), 1), B17:F17)), 0, 1), _xlfn.BYROW(_xlpm.Results, _xlfn.LAMBDA(_xlpm.Array, SUM(_xlpm.Array) = 0)) ) -> TRUE | D26: =_xlfn.LET( _xlpm.Results, IF(ISERROR(FIND(MID(B19, _xlfn.SEQUENCE(1, LEN(B19)), 1),_xlfn.ANCHORARRAY( A26))), 0, 1), _xlfn.BYROW(_xlpm.Results, _xlfn.LAMBDA(_xlpm.Array, SUM(_xlpm.Array) = LEN(B19))) ) -> TRUE | E26: =_xlfn.LET( _xlpm.Results, IF(ISERROR(FIND(MID(B20, _xlfn.SEQUENCE(1, LEN(B20)), 1),_xlfn.ANCHORARRAY( A26))), 0, 1), _xlfn.BYROW(_xlpm.Results, _xlfn.LAMBDA(_xlpm.Array, SUM(_xlpm.Array) = 0)) ) -> TRUE | F26: =(LEN(G23) = 0) + (LEN(_xlfn.ANCHORARRAY(A26)) - LEN(SUBSTITUTE(_xlfn.ANCHORARRAY(A26), $G$23, "")) > 1) <> 0 -> TRUE | G26: =(LEN(G24) = 0) + (LEN(_xlfn.ANCHORARRAY(A26)) - LEN(SUBSTITUTE(_xlfn.ANCHORARRAY(A26), G24, "")) < 2) <> 0 -> TRUE | H26: =IF('Wordle Helper'!AllWordsSource = "All Words", LEN(_xlfn.ANCHORARRAY(A26)) > 0, ISERROR(MATCH(_xlfn.ANCHORARRAY(A26),_xlfn.ANCHORARRAY( 'Used Words List'!UsedWordsList), 0))) -> FALSE | I26: =ISNA(MATCH(_xlfn.ANCHORARRAY(A26), A2:A6, 0)) -> TRUE | J26: =_xlfn.ANCHORARRAY(B26) *_xlfn.ANCHORARRAY( C26) *_xlfn.ANCHORARRAY( D26) *_xlfn.ANCHORARRAY( E26) *_xlfn.ANCHORARRAY( F26) *_xlfn.ANCHORARRAY( G26) *_xlfn.ANCHORARRAY( H26) *_xlfn.ANCHORARRAY( I26) > 0 -> FALSE | K26: =_xlfn.LET( _xlpm.ExcludeLetters, IFERROR(MID(B20, _xlfn.SEQUENCE(1, LEN(B20)), 1), {""}), IFERROR(_xlfn.BYROW(MID(_xlfn.ANCHORARRAY(A26), _xlfn.SEQUENCE(1, 5), 1), _xlfn.LAMBDA(_xlpm.Row, _xlfn.TEXTJOIN("", , _xlfn.UNIQUE(_xlfn._xlws.FILTER(_xlpm.Row, ISNA(MATCH(_xlpm.Row, B16:F16, 0)) * ISNA(MATCH(_xlpm.Row, _xlpm.ExcludeLetters, 0)) <> 0), TRUE)))), "") ) -> ABCK | L26: =_xlfn.BYROW(_xlfn.ANCHORARRAY(K26), _xlfn.LAMBDA(_xlpm.Row, IFERROR(_xlfn.XLOOKUP(MID(_xlpm.Row, 1, 1), tLetterUsage[Letter], tLetterUsage[Weight Five Letter Words]), 0) + IFERROR(_xlfn.XLOOKUP(MID(_xlpm.Row, 2, 1), tLetterUsage[Letter], tLetterUsage[Weight Five Letter Words]), 0) + IFERROR(_xlfn.XLOOKUP(MID(_xlpm.Row, 3, 1), tLetterUsage[Letter], tLetterUsage[Weight Five Letter Words]), 0) + IFERROR(_xlfn.XLOOKUP(MID(_xlpm.Row, 4, 1), tLetterUsage[Letter], tLetterUsage[Weight Five Letter Words]), 0) + IFERROR(_xlfn.XLOOKUP(MID(_xlpm.Row, 5, 1), tLetterUsage[Letter], tLetterUsage[Weight Five Letter Words]), 0))) -> 71.85185185 | M26: =IF('Wordle Helper'!AllWordsSource = "Wordle Words", _xlfn.XLOOKUP(_xlfn.ANCHORARRAY(A26), tAllWords[Word], tAllWords[Frequency]), _xlfn.XLOOKUP(_xlfn.ANCHORARRAY(A26), tAllWordsExtended[Word], tAllWordsExtended[Frequency])) -> 2.99 | O26: =_xlfn.BYROW(_xlfn.ANCHORARRAY(K26), _xlfn.LAMBDA(_xlpm.Row, IFERROR(SUM(_xlfn.XLOOKUP(MID(_xlpm.Row, _xlfn.SEQUENCE(1, LEN(_xlpm.Row)), 1), tLetterUsage[Letter], tLetterUsage[Weight Five Letter Words])), 0))) -> 71.85185185
A27: ABASE | B27: TRUE | C27: TRUE | D27: TRUE | E27: TRUE | F27: TRUE | G27: TRUE | H27: FALSE | I27: TRUE | J27: FALSE | K27: ABSE | L27: 116.6666667 | M27: 1.56 | O27: 116.6666667
A28: ABATE | B28: TRUE | C28: TRUE | D28: TRUE | E28: TRUE | F28: TRUE | G28: TRUE | H28: FALSE | I28: TRUE | J28: FALSE | K28: ABTE | L28: 118.9259259 | M28: 2.68 | O28: 118.9259259
A29: ABBEY | B29: TRUE | C29: TRUE | D29: TRUE | E29: TRUE | F29: TRUE | G29: TRUE | H29: FALSE | I29: TRUE | J29: FALSE | K29: ABEY | L29: 107.6666667 | M29: 3.88 | O29: 107.6666667
A30: ABBOT | B30: TRUE | C30: TRUE | D30: TRUE | E30: TRUE | F30: TRUE | G30: TRUE | H30: FALSE | I30: TRUE | J30: FALSE | K30: ABOT | L30: 101.3703704 | M30: 3.43 | O30: 101.3703704
A31: ABHOR | B31: TRUE | C31: TRUE | D31: TRUE | E31: TRUE | F31: TRUE | G31: TRUE | H31: FALSE | I31: TRUE | J31: FALSE | K31: ABHOR | L31: 121.962963 | M31: 2.64 | O31: 121.962963
A32: ABIDE | B32: TRUE | C32: TRUE | D32: TRUE | E32: TRUE | F32: TRUE | G32: TRUE | H32: FALSE | I32: TRUE | J32: FALSE | K32: ABIDE | L32: 131.3333333 | M32: 3.59 | O32: 131.3333333
A33: ABLED | B33: TRUE | C33: TRUE | D33: TRUE | E33: TRUE | F33: TRUE | G33: TRUE | H33: TRUE | I33: TRUE | J33: TRUE | K33: ABLED | L33: 133.037037 | M33: 2.29 | O33: 133.037037
A34: ABODE | B34: TRUE | C34: TRUE | D34: TRUE | E34: TRUE | F34: TRUE | G34: TRUE | H34: TRUE | I34: TRUE | J34: TRUE | K34: ABODE | L34: 134.4814815 | M34: 3.13 | O34: 134.4814815
A35: ABORT | B35: TRUE | C35: TRUE | D35: TRUE | E35: TRUE | F35: TRUE | G35: TRUE | H35: TRUE | I35: TRUE | J35: TRUE | K35: ABORT | L35: 134.5925926 | M35: 3.27 | O35: 134.5925926
A36: ABOUT | B36: TRUE | C36: TRUE | D36: TRUE | E36: TRUE | F36: TRUE | G36: TRUE | H36: FALSE | I36: TRUE | J36: FALSE | K36: ABOUT | L36: 118.6296296 | M36: 6.4 | O36: 118.6296296
A37: ABOVE | B37: TRUE | C37: TRUE | D37: TRUE | E37: TRUE | F37: TRUE | G37: TRUE | H37: FALSE | I37: TRUE | J37: FALSE | K37: ABOVE | L37: 125.5555556 | M37: 5.2 | O37: 125.5555556
A38: ABUSE | B38: TRUE | C38: TRUE | D38: TRUE | E38: TRUE | F38: TRUE | G38: TRUE | H38: TRUE | I38: TRUE | J38: TRUE | K38: ABUSE | L38: 133.9259259 | M38: 4.66 | O38: 133.9259259
A39: ABYSS | B39: TRUE | C39: TRUE | D39: TRUE | E39: TRUE | F39: TRUE | G39: TRUE | H39: FALSE | I39: TRUE | J39: FALSE | K39: ABYS | L39: 86.85185185 | M39: 3.4 | O39: 86.85185185
A40: ACORN | B40: TRUE | C40: TRUE | D40: TRUE | E40: TRUE | F40: TRUE | G40: TRUE | H40: FALSE | I40: TRUE | J40: FALSE | K40: ACORN | L40: 136.1111111 | M40: 3.08 | O40: 136.1111111
A41: ACRID | B41: TRUE | C41: TRUE | D41: TRUE | E41: TRUE | F41: TRUE | G41: TRUE | H41: FALSE | I41: TRUE | J41: FALSE | K41: ACRID | L41: 126.2962963 | M41: 2.37 | O41: 126.2962963
A42: ACTOR | B42: TRUE | C42: TRUE | D42: TRUE | E42: TRUE | F42: TRUE | G42: TRUE | H42: FALSE | I42: TRUE | J42: FALSE | K42: ACTOR | L42: 141.8518519 | M42: 4.65 | O42: 141.8518519
A43: ACUTE | B43: TRUE | C43: TRUE | D43: TRUE | E43: TRUE | F43: TRUE | G43: TRUE | H43: FALSE | I43: TRUE | J43: FALSE | K43: ACUTE | L43: 143.4444444 | M43: 4 | O43: 143.4444444
A44: ADAGE | B44: TRUE | C44: TRUE | D44: TRUE | E44: TRUE | F44: TRUE | G44: TRUE | H44: FALSE | I44: TRUE | J44: FALSE | K44: ADGE | L44: 107.6666667 | M44: 2.95 | O44: 107.6666667
A45: ADAPT | B45: TRUE | C45: TRUE | D45: TRUE | E45: TRUE | F45: TRUE | G45: TRUE | H45: FALSE | I45: TRUE | J45: FALSE | K45: ADPT | L45: 91.14814815 | M45: 3.98 | O45: 91.14814815
A46: ADEPT | B46: TRUE | C46: TRUE | D46: TRUE | E46: TRUE | F46: TRUE | G46: TRUE | H46: FALSE | I46: TRUE | J46: FALSE | K46: ADEPT | L46: 136.6666667 | M46: 3.33 | O46: 136.6666667
A47: ADMIN | B47: TRUE | C47: TRUE | D47: TRUE | E47: TRUE | F47: TRUE | G47: TRUE | H47: FALSE | I47: TRUE | J47: FALSE | K47: ADMIN | L47: 108.4074074 | M47: 3.92 | O47: 108.4074074
A48: ADMIT | B48: TRUE | C48: TRUE | D48: TRUE | E48: TRUE | F48: TRUE | G48: TRUE | H48: FALSE | I48: TRUE | J48: FALSE | K48: ADMIT | L48: 114.1481481 | M48: 4.58 | O48: 114.1481481
A49: ADOBE | B49: TRUE | C49: TRUE | D49: TRUE | E49: TRUE | F49: TRUE | G49: TRUE | H49: FALSE | I49: TRUE | J49: FALSE | K49: ADOBE | L49: 134.4814815 | M49: 3.53 | O49: 134.4814815
A50: ADOPT | B50: TRUE | C50: TRUE | D50: TRUE | E50: TRUE | F50: TRUE | G50: TRUE | H50: FALSE | I50: TRUE | J50: FALSE | K50: ADOPT | L50: 119.1111111 | M50: 4.19 | O50: 119.1111111
A51: ADORE | B51: TRUE | C51: TRUE | D51: TRUE | E51: TRUE | F51: TRUE | G51: TRUE | H51: FALSE | I51: TRUE | J51: FALSE | K51: ADORE | L51: 157.3703704 | M51: 3.7 | O51: 157.3703704
A52: ADORN | B52: TRUE | C52: TRUE | D52: TRUE | E52: TRUE | F52: TRUE | G52: TRUE | H52: TRUE | I52: TRUE | J52: TRUE | K52: ADORN | L52: 133.0740741 | M52: 3.01 | O52: 133.0740741
A53: ADULT | B53: TRUE | C53: TRUE | D53: TRUE | E53: TRUE | F53: TRUE | G53: TRUE | H53: FALSE | I53: TRUE | J53: FALSE | K53: ADULT | L53: 121.4074074 | M53: 4.8 | O53: 121.4074074
A54: AFFIX | B54: TRUE | C54: TRUE | D54: TRUE | E54: TRUE | F54: TRUE | G54: TRUE | H54: FALSE | I54: TRUE | J54: FALSE | K54: AFIX | L54: 70.77777778 | M54: 2.63 | O54: 70.77777778
A55: AFIRE | B55: TRUE | C55: TRUE | D55: TRUE | E55: TRUE | F55: TRUE | G55: TRUE | H55: TRUE | I55: TRUE | J55: TRUE | K55: AFIRE | L55: 148.1481481 | M55: 2.46 | O55: 148.1481481
A56: AFOOT | B56: TRUE | C56: TRUE | D56: TRUE | E56: TRUE | F56: TRUE | G56: TRUE | H56: FALSE | I56: TRUE | J56: FALSE | K56: AFOT | L56: 99.51851852 | M56: 2.89 | O56: 99.51851852
A57: AFOUL | B57: TRUE | C57: TRUE | D57: TRUE | E57: TRUE | F57: TRUE | G57: TRUE | H57: TRUE | I57: TRUE | J57: TRUE | K57: AFOUL | L57: 116.3333333 | M57: 2.63 | O57: 116.3333333
A58: AFTER | B58: TRUE | C58: TRUE | D58: TRUE | E58: TRUE | F58: TRUE | G58: TRUE | H58: FALSE | I58: TRUE | J58: FALSE | K58: AFTER | L58: 150.2962963 | M58: 6.11 | O58: 150.2962963
A59: AGAIN | B59: TRUE | C59: TRUE | D59: TRUE | E59: TRUE | F59: TRUE | G59: TRUE | H59: FALSE | I59: TRUE | J59: FALSE | K59: AGIN | L59: 93.62962963 | M59: 5.7 | O59: 93.62962963
A60: AGAPE | B60: TRUE | C60: TRUE | D60: TRUE | E60: TRUE | F60: TRUE | G60: TRUE | H60: FALSE | I60: TRUE | J60: FALSE | K60: AGPE | L60: 106.6296296 | M60: 2.65 | O60: 106.6296296
A61: AGATE | B61: TRUE | C61: TRUE | D61: TRUE | E61: TRUE | F61: TRUE | G61: TRUE | H61: FALSE | I61: TRUE | J61: FALSE | K61: AGTE | L61: 120.0740741 | M61: 2.81 | O61: 120.0740741
A62: AGENT | B62: TRUE | C62: TRUE | D62: TRUE | E62: TRUE | F62: TRUE | G62: TRUE | H62: FALSE | I62: TRUE | J62: FALSE | K62: AGENT | L62: 141.2962963 | M62: 4.81 | O62: 141.2962963
A63: AGILE | B63: TRUE | C63: TRUE | D63: TRUE | E63: TRUE | F63: TRUE | G63: TRUE | H63: FALSE | I63: TRUE | J63: FALSE | K63: AGILE | L63: 144.4444444 | M63: 3.41 | O63: 144.4444444
A64: AGING | B64: TRUE | C64: TRUE | D64: TRUE | E64: TRUE | F64: TRUE | G64: TRUE | H64: FALSE | I64: TRUE | J64: FALSE | K64: AGIN | L64: 93.62962963 | M64: 4.04 | O64: 93.62962963
A65: AGLOW | B65: TRUE | C65: TRUE | D65: TRUE | E65: TRUE | F65: TRUE | G65: TRUE | H65: FALSE | I65: TRUE | J65: FALSE | K65: AGLOW | L65: 109.2592593 | M65: 2.21 | O65: 109.2592593
A66: AGONY | B66: TRUE | C66: TRUE | D66: TRUE | E66: TRUE | F66: TRUE | G66: TRUE | H66: FALSE | I66: TRUE | J66: FALSE | K66: AGONY | L66: 112.4814815 | M66: 3.6 | O66: 112.4814815
A67: AGREE | B67: TRUE | C67: TRUE | D67: TRUE | E67: TRUE | F67: TRUE | G67: TRUE | H67: FALSE | I67: TRUE | J67: FALSE | K67: AGRE | L67: 126.3333333 | M67: 4.97 | O67: 126.3333333
A68: AHEAD | B68: TRUE | C68: TRUE | D68: TRUE | E68: TRUE | F68: TRUE | G68: TRUE | H68: FALSE | I68: TRUE | J68: FALSE | K68: AHED | L68: 110.5185185 | M68: 5.01 | O68: 110.5185185
A69: AIDER | B69: TRUE | C69: TRUE | D69: TRUE | E69: TRUE | F69: TRUE | G69: TRUE | H69: TRUE | I69: TRUE | J69: TRUE | K69: AIDER | L69: 154.2222222 | M69: 1.94 | O69: 154.2222222
A70: AISLE | B70: TRUE | C70: TRUE | D70: TRUE | E70: TRUE | F70: TRUE | G70: TRUE | H70: FALSE | I70: TRUE | J70: FALSE | K70: AISLE | L70: 157.6666667 | M70: 3.72 | O70: 157.6666667
A71: ALARM | B71: TRUE | C71: TRUE | D71: TRUE | E71: TRUE | F71: TRUE | G71: TRUE | H71: FALSE | I71: TRUE | J71: FALSE | K71: ALRM | L71: 107.5555556 | M71: 4.28 | O71: 107.5555556
A72: ALBUM | B72: TRUE | C72: TRUE | D72: TRUE | E72: TRUE | F72: TRUE | G72: TRUE | H72: FALSE | I72: TRUE | J72: FALSE | K72: ALBUM | L72: 101.9259259 | M72: 5.02 | O72: 101.9259259
A73: ALERT | B73: TRUE | C73: TRUE | D73: TRUE | E73: TRUE | F73: TRUE | G73: TRUE | H73: FALSE | I73: TRUE | J73: FALSE | K73: ALERT | L73: 168.3333333 | M73: 4.33 | O73: 168.3333333
A74: ALGAE | B74: TRUE | C74: TRUE | D74: TRUE | E74: TRUE | F74: TRUE | G74: TRUE | H74: TRUE | I74: TRUE | J74: TRUE | K74: ALGE | L74: 119.6296296 | M74: 3.54 | O74: 119.6296296
A75: ALIBI | B75: TRUE | C75: TRUE | D75: TRUE | E75: TRUE | F75: TRUE | G75: TRUE | H75: FALSE | I75: TRUE | J75: FALSE | K75: ALIB | L75: 97.77777778 | M75: 3.1 | O75: 97.77777778
A76: ALIEN | B76: TRUE | C76: TRUE | D76: TRUE | E76: TRUE | F76: TRUE | G76: TRUE | H76: FALSE | I76: TRUE | J76: FALSE | K76: ALIEN | L76: 154.1851852 | M76: 4.29 | O76: 154.1851852
A77: ALIGN | B77: TRUE | C77: TRUE | D77: TRUE | E77: TRUE | F77: TRUE | G77: TRUE | H77: FALSE | I77: TRUE | J77: FALSE | K77: ALIGN | L77: 120.1481481 | M77: 3.63 | O77: 120.1481481
A78: ALIKE | B78: TRUE | C78: TRUE | D78: TRUE | E78: TRUE | F78: TRUE | G78: TRUE | H78: FALSE | I78: TRUE | J78: FALSE | K78: ALIKE | L78: 140.7777778 | M78: 4.13 | O78: 140.7777778
A79: ALIVE | B79: TRUE | C79: TRUE | D79: TRUE | E79: TRUE | F79: TRUE | G79: TRUE | H79: FALSE | I79: TRUE | J79: FALSE | K79: ALIVE | L79: 138.5925926 | M79: 4.76 | O79: 138.5925926
A80: ALLAY | B80: TRUE | C80: TRUE | D80: TRUE | E80: TRUE | F80: TRUE | G80: TRUE | H80: TRUE | I80: TRUE | J80: TRUE | K80: ALY | L80: 78.33333333 | M80: 2.69 | O80: 78.33333333
A81: ALLEY | B81: TRUE | C81: TRUE | D81: TRUE | E81: TRUE | F81: TRUE | G81: TRUE | H81: FALSE | I81: TRUE | J81: FALSE | K81: ALEY | L81: 123.8518519 | M81: 3.87 | O81: 123.8518519
A82: ALLOT | B82: TRUE | C82: TRUE | D82: TRUE | E82: TRUE | F82: TRUE | G82: TRUE | H82: FALSE | I82: TRUE | J82: FALSE | K82: ALOT | L82: 117.5555556 | M82: 2.79 | O82: 117.5555556
A83: ALLOW | B83: TRUE | C83: TRUE | D83: TRUE | E83: TRUE | F83: TRUE | G83: TRUE | H83: FALSE | I83: TRUE | J83: FALSE | K83: ALOW | L83: 97.77777778 | M83: 5.01 | O83: 97.77777778
A84: ALLOY | B84: TRUE | C84: TRUE | D84: TRUE | E84: TRUE | F84: TRUE | G84: TRUE | H84: FALSE | I84: TRUE | J84: FALSE | K84: ALOY | L84: 106.2962963 | M84: 3.61 | O84: 106.2962963
A85: ALOFT | B85: TRUE | C85: TRUE | D85: TRUE | E85: TRUE | F85: TRUE | G85: TRUE | H85: FALSE | I85: TRUE | J85: FALSE | K85: ALOFT | L85: 126.037037 | M85: 3.08 | O85: 126.037037
A86: ALONE | B86: TRUE | C86: TRUE | D86: TRUE | E86: TRUE | F86: TRUE | G86: TRUE | H86: FALSE | I86: TRUE | J86: FALSE | K86: ALONE | L86: 157.3333333 | M86: 5.16 | O86: 157.3333333
A87: ALONG | B87: TRUE | C87: TRUE | D87: TRUE | E87: TRUE | F87: TRUE | G87: TRUE | H87: FALSE | I87: TRUE | J87: FALSE | K87: ALONG | L87: 123.2962963 | M87: 5.38 | O87: 123.2962963
A88: ALOOF | B88: TRUE | C88: TRUE | D88: TRUE | E88: TRUE | F88: TRUE | G88: TRUE | H88: FALSE | I88: TRUE | J88: FALSE | K88: ALOF | L88: 99.07407407 | M88: 2.99 | O88: 99.07407407
A89: ALOUD | B89: TRUE | C89: TRUE | D89: TRUE | E89: TRUE | F89: TRUE | G89: TRUE | H89: FALSE | I89: TRUE | J89: FALSE | K89: ALOUD | L89: 122.4074074 | M89: 3.51 | O89: 122.4074074
A90: ALPHA | B90: TRUE | C90: TRUE | D90: TRUE | E90: TRUE | F90: TRUE | G90: TRUE | H90: FALSE | I90: TRUE | J90: FALSE | K90: ALPH | L90: 90.48148148 | M90: 4.25 | O90: 90.48148148
A91: ALTAR | B91: TRUE | C91: TRUE | D91: TRUE | E91: TRUE | F91: TRUE | G91: TRUE | H91: FALSE | I91: TRUE | J91: FALSE | K91: ALTR | L91: 122.8148148 | M91: 3.8 | O91: 122.8148148
A92: ALTER | B92: TRUE | C92: TRUE | D92: TRUE | E92: TRUE | F92: TRUE | G92: TRUE | H92: FALSE | I92: TRUE | J92: FALSE | K92: ALTER | L92: 168.3333333 | M92: 4.05 | O92: 168.3333333
A93: AMASS | B93: TRUE | C93: TRUE | D93: TRUE | E93: TRUE | F93: TRUE | G93: TRUE | H93: FALSE | I93: TRUE | J93: FALSE | K93: AMS | L93: 72.51851852 | M93: 2.77 | O93: 72.51851852
A94: AMAZE | B94: TRUE | C94: TRUE | D94: TRUE | E94: TRUE | F94: TRUE | G94: TRUE | H94: FALSE | I94: TRUE | J94: FALSE | K94: AMZE | L94: 94.85185185 | M94: 3.19 | O94: 94.85185185
A95: AMBER | B95: TRUE | C95: TRUE | D95: TRUE | E95: TRUE | F95: TRUE | G95: TRUE | H95: FALSE | I95: TRUE | J95: FALSE | K95: AMBER | L95: 136.8888889 | M95: 3.97 | O95: 136.8888889
A96: AMBLE | B96: TRUE | C96: TRUE | D96: TRUE | E96: TRUE | F96: TRUE | G96: TRUE | H96: FALSE | I96: TRUE | J96: FALSE | K96: AMBLE | L96: 130.1851852 | M96: 2.3 | O96: 130.1851852
A97: AMEND | B97: TRUE | C97: TRUE | D97: TRUE | E97: TRUE | F97: TRUE | G97: TRUE | H97: FALSE | I97: TRUE | J97: FALSE | K97: AMEND | L97: 129.1111111 | M97: 3.55 | O97: 129.1111111
A98: AMISS | B98: TRUE | C98: TRUE | D98: TRUE | E98: TRUE | F98: TRUE | G98: TRUE | H98: FALSE | I98: TRUE | J98: FALSE | K98: AMIS | L98: 97.33333333 | M98: 2.93 | O98: 97.33333333
A99: AMITY | B99: TRUE | C99: TRUE | D99: TRUE | E99: TRUE | F99: TRUE | G99: TRUE | H99: TRUE | I99: TRUE | J99: TRUE | K99: AMITY | L99: 115.2962963 | M99: 2.89 | O99: 115.2962963
A100: AMONG | B100: TRUE | C100: TRUE | D100: TRUE | E100: TRUE | F100: TRUE | G100: TRUE | H100: FALSE | I100: TRUE | J100: FALSE | K100: AMONG | L100: 108.4814815 | M100: 5.31 | O100: 108.4814815
A101: AMPLE | B101: TRUE | C101: TRUE | D101: TRUE | E101: TRUE | F101: TRUE | G101: TRUE | H101: FALSE | I101: TRUE | J101: FALSE | K101: AMPLE | L101: 133.3703704 | M101: 3.71 | O101: 133.3703704
A102: AMPLY | B102: TRUE | C102: TRUE | D102: TRUE | E102: TRUE | F102: TRUE | G102: TRUE | H102: FALSE | I102: TRUE | J102: FALSE | K102: AMPLY | L102: 103.5555556 | M102: 2.61 | O102: 103.5555556
A103: AMUSE | B103: TRUE | C103: TRUE | D103: TRUE | E103: TRUE | F103: TRUE | G103: TRUE | H103: FALSE | I103: TRUE | J103: FALSE | K103: AMUSE | L103: 135.2962963 | M103: 3.12 | O103: 135.2962963
A104: ANGEL | B104: TRUE | C104: TRUE | D104: TRUE | E104: TRUE | F104: TRUE | G104: TRUE | H104: FALSE | I104: TRUE | J104: FALSE | K104: ANGEL | L104: 140.8518519 | M104: 4.45 | O104: 140.8518519
A105: ANGER | B105: TRUE | C105: TRUE | D105: TRUE | E105: TRUE | F105: TRUE | G105: TRUE | H105: FALSE | I105: TRUE | J105: FALSE | K105: ANGER | L105: 147.5555556 | M105: 4.42 | O105: 147.5555556
A106: ANGLE | B106: TRUE | C106: TRUE | D106: TRUE | E106: TRUE | F106: TRUE | G106: TRUE | H106: FALSE | I106: TRUE | J106: FALSE | K106: ANGLE | L106: 140.8518519 | M106: 4.38 | O106: 140.8518519
A107: ANGRY | B107: TRUE | C107: TRUE | D107: TRUE | E107: TRUE | F107: TRUE | G107: TRUE | H107: FALSE | I107: TRUE | J107: FALSE | K107: ANGRY | L107: 117.7407407 | M107: 4.66 | O107: 117.7407407
A108: ANGST | B108: TRUE | C108: TRUE | D108: TRUE | E108: TRUE | F108: TRUE | G108: TRUE | H108: FALSE | I108: TRUE | J108: FALSE | K108: ANGST | L108: 120.4814815 | M108: 3.26 | O108: 120.4814815
A109: ANIME | B109: TRUE | C109: TRUE | D109: TRUE | E109: TRUE | F109: TRUE | G109: TRUE | H109: TRUE | I109: TRUE | J109: TRUE | K109: ANIME | L109: 139.3703704 | M109: 4.26 | O109: 139.3703704
A110: ANKLE | B110: TRUE | C110: TRUE | D110: TRUE | E110: TRUE | F110: TRUE | G110: TRUE | H110: FALSE | I110: TRUE | J110: FALSE | K110: ANKLE | L110: 137.1851852 | M110: 3.97 | O110: 137.1851852
A111: ANNEX | B111: TRUE | C111: TRUE | D111: TRUE | E111: TRUE | F111: TRUE | G111: TRUE | H111: FALSE | I111: TRUE | J111: FALSE | K111: ANEX | L111: 104.2222222 | M111: 3.5 | O111: 104.2222222
A112: ANNOY | B112: TRUE | C112: TRUE | D112: TRUE | E112: TRUE | F112: TRUE | G112: TRUE | H112: FALSE | I112: TRUE | J112: FALSE | K112: ANOY | L112: 101 | M112: 3.46 | O112: 101
A113: ANNUL | B113: TRUE | C113: TRUE | D113: TRUE | E113: TRUE | F113: TRUE | G113: TRUE | H113: TRUE | I113: TRUE | J113: TRUE | K113: ANUL | L113: 101.1111111 | M113: 2.49 | O113: 101.1111111
A114: ANODE | B114: TRUE | C114: TRUE | D114: TRUE | E114: TRUE | F114: TRUE | G114: TRUE | H114: FALSE | I114: TRUE | J114: FALSE | K114: ANODE | L114: 145.3703704 | M114: 2.86 | O114: 145.3703704
A115: ANTIC | B115: TRUE | C115: TRUE | D115: TRUE | E115: TRUE | F115: TRUE | G115: TRUE | H115: FALSE | I115: TRUE | J115: FALSE | K115: ANTIC | L115: 126.7037037 | M115: 2.33 | O115: 126.7037037
A116: ANVIL | B116: TRUE | C116: TRUE | D116: TRUE | E116: TRUE | F116: TRUE | G116: TRUE | H116: FALSE | I116: TRUE | J116: FALSE | K116: ANVIL | L116: 114.2962963 | M116: 3.04 | O116: 114.2962963
A117: AORTA | B117: TRUE | C117: TRUE | D117: TRUE | E117: TRUE | F117: TRUE | G117: TRUE | H117: FALSE | I117: TRUE | J117: FALSE | K117: AORT | L117: 124.2592593 | M117: 2.92 | O117: 124.2592593
A118: APART | B118: TRUE | C118: TRUE | D118: TRUE | E118: TRUE | F118: TRUE | G118: TRUE | H118: FALSE | I118: TRUE | J118: FALSE | K118: APRT | L118: 109.8148148 | M118: 4.78 | O118: 109.8148148
A119: APHID | B119: TRUE | C119: TRUE | D119: TRUE | E119: TRUE | F119: TRUE | G119: TRUE | H119: FALSE | I119: TRUE | J119: FALSE | K119: APHID | L119: 103.3333333 | M119: 2.39 | O119: 103.3333333
A120: APING | B120: TRUE | C120: TRUE | D120: TRUE | E120: TRUE | F120: TRUE | G120: TRUE | H120: TRUE | I120: TRUE | J120: TRUE | K120: APING | L120: 107.1481481 | M120: 2.09 | O120: 107.1481481
A121: APNEA | B121: TRUE | C121: TRUE | D121: TRUE | E121: TRUE | F121: TRUE | G121: TRUE | H121: TRUE | I121: TRUE | J121: TRUE | K121: APNE | L121: 116.3703704 | M121: 3 | O121: 116.3703704
A122: APPLE | B122: TRUE | C122: TRUE | D122: TRUE | E122: TRUE | F122: TRUE | G122: TRUE | H122: FALSE | I122: TRUE | J122: FALSE | K122: APLE | L122: 121.6666667 | M122: 4.76 | O122: 121.6666667
A123: APPLY | B123: TRUE | C123: TRUE | D123: TRUE | E123: TRUE | F123: TRUE | G123: TRUE | H123: FALSE | I123: TRUE | J123: FALSE | K123: APLY | L123: 91.85185185 | M123: 4.81 | O123: 91.85185185
A124: APRON | B124: TRUE | C124: TRUE | D124: TRUE | E124: TRUE | F124: TRUE | G124: TRUE | H124: FALSE | I124: TRUE | J124: FALSE | K124: APRON | L124: 132.037037 | M124: 3.36 | O124: 132.037037
A125: APTLY | B125: TRUE | C125: TRUE | D125: TRUE | E125: TRUE | F125: TRUE | G125: TRUE | H125: FALSE | I125: TRUE | J125: FALSE | K125: APTLY | L125: 118.8148148 | M125: 3.12 | O125: 118.8148148
A126: ARBOR | B126: TRUE | C126: TRUE | D126: TRUE | E126: TRUE | F126: TRUE | G126: TRUE | H126: FALSE | I126: TRUE | J126: FALSE | K126: ARBO | L126: 107.6296296 | M126: 3.49 | O126: 107.6296296
A127: ARDOR | B127: TRUE | C127: TRUE | D127: TRUE | E127: TRUE | F127: TRUE | G127: TRUE | H127: FALSE | I127: TRUE | J127: FALSE | K127: ARDO | L127: 111.8518519 | M127: 2.34 | O127: 111.8518519
A128: ARENA | B128: TRUE | C128: TRUE | D128: TRUE | E128: TRUE | F128: TRUE | G128: TRUE | H128: TRUE | I128: TRUE | J128: TRUE | K128: AREN | L128: 136.0740741 | M128: 4.33 | O128: 136.0740741
A129: ARGUE | B129: TRUE | C129: TRUE | D129: TRUE | E129: TRUE | F129: TRUE | G129: TRUE | H129: FALSE | I129: TRUE | J129: FALSE | K129: ARGUE | L129: 143.5925926 | M129: 4.46 | O129: 143.5925926
A130: ARISE | B130: TRUE | C130: TRUE | D130: TRUE | E130: TRUE | F130: TRUE | G130: TRUE | H130: FALSE | I130: TRUE | J130: FALSE | K130: ARISE | L130: 164.3703704 | M130: 3.93 | O130: 164.3703704
A131: ARMOR | B131: TRUE | C131: TRUE | D131: TRUE | E131: TRUE | F131: TRUE | G131: TRUE | H131: TRUE | I131: TRUE | J131: TRUE | K131: ARMO | L131: 109 | M131: 3.97 | O131: 109
A132: AROMA | B132: TRUE | C132: TRUE | D132: TRUE | E132: TRUE | F132: TRUE | G132: TRUE | H132: FALSE | I132: TRUE | J132: FALSE | K132: AROM | L132: 109 | M132: 3.23 | O132: 109
A133: AROSE | B133: TRUE | C133: TRUE | D133: TRUE | E133: TRUE | F133: TRUE | G133: TRUE | H133: TRUE | I133: TRUE | J133: TRUE | K133: AROSE | L133: 167.5185185 | M133: 3.73 | O133: 167.5185185
A134: ARRAY | B134: TRUE | C134: TRUE | D134: TRUE | E134: TRUE | F134: TRUE | G134: TRUE | H134: TRUE | I134: TRUE | J134: TRUE | K134: ARY | L134: 85.03703704 | M134: 4.1 | O134: 85.03703704
A135: ARROW | B135: TRUE | C135: TRUE | D135: TRUE | E135: TRUE | F135: TRUE | G135: TRUE | H135: FALSE | I135: TRUE | J135: FALSE | K135: AROW | L135: 104.4814815 | M135: 4.13 | O135: 104.4814815
A136: ARSON | B136: TRUE | C136: TRUE | D136: TRUE | E136: TRUE | F136: TRUE | G136: TRUE | H136: TRUE | I136: TRUE | J136: TRUE | K136: ARSON | L136: 143.2222222 | M136: 3.4 | O136: 143.2222222
A137: ARTSY | B137: TRUE | C137: TRUE | D137: TRUE | E137: TRUE | F137: TRUE | G137: TRUE | H137: FALSE | I137: TRUE | J137: FALSE | K137: ARTSY | L137: 136.7037037 | M137: 2.89 | O137: 136.7037037
A138: ASCOT | B138: TRUE | C138: TRUE | D138: TRUE | E138: TRUE | F138: TRUE | G138: TRUE | H138: FALSE | I138: TRUE | J138: FALSE | K138: ASCOT | L138: 133.3333333 | M138: 3.06 | O138: 133.3333333
A139: ASHEN | B139: TRUE | C139: TRUE | D139: TRUE | E139: TRUE | F139: TRUE | G139: TRUE | H139: FALSE | I139: TRUE | J139: FALSE | K139: ASHEN | L139: 141.8888889 | M139: 2.48 | O139: 141.8888889
A140: ASIDE | B140: TRUE | C140: TRUE | D140: TRUE | E140: TRUE | F140: TRUE | G140: TRUE | H140: FALSE | I140: TRUE | J140: FALSE | K140: ASIDE | L140: 145.7037037 | M140: 4.59 | O140: 145.7037037
A141: ASKEW | B141: TRUE | C141: TRUE | D141: TRUE | E141: TRUE | F141: TRUE | G141: TRUE | H141: FALSE | I141: TRUE | J141: FALSE | K141: ASKEW | L141: 121.3333333 | M141: 2.72 | O141: 121.3333333
A142: ASSAY | B142: TRUE | C142: TRUE | D142: TRUE | E142: TRUE | F142: TRUE | G142: TRUE | H142: FALSE | I142: TRUE | J142: FALSE | K142: ASY | L142: 76.51851852 | M142: 3.28 | O142: 76.51851852
A143: ASSET | B143: TRUE | C143: TRUE | D143: TRUE | E143: TRUE | F143: TRUE | G143: TRUE | H143: FALSE | I143: TRUE | J143: FALSE | K143: ASET | L143: 133.2962963 | M143: 4.23 | O143: 133.2962963
A144: ATOLL | B144: TRUE | C144: TRUE | D144: TRUE | E144: TRUE | F144: TRUE | G144: TRUE | H144: FALSE | I144: TRUE | J144: FALSE | K144: ATOL | L144: 117.5555556 | M144: 2.85 | O144: 117.5555556
A145: ATONE | B145: TRUE | C145: TRUE | D145: TRUE | E145: TRUE | F145: TRUE | G145: TRUE | H145: FALSE | I145: TRUE | J145: FALSE | K145: ATONE | L145: 157.7777778 | M145: 2.86 | O145: 157.7777778
A146: ATTIC | B146: TRUE | C146: TRUE | D146: TRUE | E146: TRUE | F146: TRUE | G146: TRUE | H146: FALSE | I146: TRUE | J146: FALSE | K146: ATIC | L146: 105.4814815 | M146: 3.63 | O146: 105.4814815
A147: AUDIO | B147: TRUE | C147: TRUE | D147: TRUE | E147: TRUE | F147: TRUE | G147: TRUE | H147: FALSE | I147: TRUE | J147: FALSE | K147: AUDIO | L147: 120.7037037 | M147: 4.47 | O147: 120.7037037
A148: AUDIT | B148: TRUE | C148: TRUE | D148: TRUE | E148: TRUE | F148: TRUE | G148: TRUE | H148: FALSE | I148: TRUE | J148: FALSE | K148: AUDIT | L148: 119.7037037 | M148: 4.04 | O148: 119.7037037
A149: AUGUR | B149: TRUE | C149: TRUE | D149: TRUE | E149: TRUE | F149: TRUE | G149: TRUE | H149: TRUE | I149: TRUE | J149: TRUE | K149: AUGR | L149: 98.07407407 | M149: 2.48 | O149: 98.07407407
A150: AUNTY | B150: TRUE | C150: TRUE | D150: TRUE | E150: TRUE | F150: TRUE | G150: TRUE | H150: TRUE | I150: TRUE | J150: TRUE | K150: AUNTY | L150: 117.2592593 | M150: 3.16 | O150: 117.2592593
A151: AVAIL | B151: TRUE | C151: TRUE | D151: TRUE | E151: TRUE | F151: TRUE | G151: TRUE | H151: FALSE | I151: TRUE | J151: FALSE | K151: AVIL | L151: 93.07407407 | M151: 3.59 | O151: 93.07407407
A152: AVERT | B152: TRUE | C152: TRUE | D152: TRUE | E152: TRUE | F152: TRUE | G152: TRUE | H152: FALSE | I152: TRUE | J152: FALSE | K152: AVERT | L152: 147.4444444 | M152: 3.14 | O152: 147.4444444
A153: AVIAN | B153: TRUE | C153: TRUE | D153: TRUE | E153: TRUE | F153: TRUE | G153: TRUE | H153: FALSE | I153: TRUE | J153: FALSE | K153: AVIN | L153: 87.77777778 | M153: 3.14 | O153: 87.77777778
A154: AVOID | B154: TRUE | C154: TRUE | D154: TRUE | E154: TRUE | F154: TRUE | G154: TRUE | H154: FALSE | I154: TRUE | J154: FALSE | K154: AVOID | L154: 109.0740741 | M154: 4.87 | O154: 109.0740741
A155: AWAIT | B155: TRUE | C155: TRUE | D155: TRUE | E155: TRUE | F155: TRUE | G155: TRUE | H155: FALSE | I155: TRUE | J155: FALSE | K155: AWIT | L155: 95.07407407 | M155: 3.63 | O155: 95.07407407
A156: AWAKE | B156: TRUE | C156: TRUE | D156: TRUE | E156: TRUE | F156: TRUE | G156: TRUE | H156: FALSE | I156: TRUE | J156: FALSE | K156: AWKE | L156: 96.62962963 | M156: 4.14 | O156: 96.62962963
A157: AWARD | B157: TRUE | C157: TRUE | D157: TRUE | E157: TRUE | F157: TRUE | G157: TRUE | H157: FALSE | I157: TRUE | J157: FALSE | K157: AWRD | L157: 91.07407407 | M157: 4.88 | O157: 91.07407407
A158: AWARE | B158: TRUE | C158: TRUE | D158: TRUE | E158: TRUE | F158: TRUE | G158: TRUE | H158: FALSE | I158: TRUE | J158: FALSE | K158: AWRE | L158: 122.037037 | M158: 4.78 | O158: 122.037037
A159: AWASH | B159: TRUE | C159: TRUE | D159: TRUE | E159: TRUE | F159: TRUE | G159: TRUE | H159: FALSE | I159: TRUE | J159: FALSE | K159: AWSH | L159: 82.33333333 | M159: 2.76 | O159: 82.33333333
A160: AWFUL | B160: TRUE | C160: TRUE | D160: TRUE | E160: TRUE | F160: TRUE | G160: TRUE | H160: FALSE | I160: TRUE | J160: FALSE | K160: AWFUL | L160: 95.55555556 | M160: 4.46 | O160: 95.55555556
A161: AWOKE | B161: TRUE | C161: TRUE | D161: TRUE | E161: TRUE | F161: TRUE | G161: TRUE | H161: FALSE | I161: TRUE | J161: FALSE | K161: AWOKE | L161: 124.5925926 | M161: 3.15 | O161: 124.5925926
A162: AXIAL | B162: TRUE | C162: TRUE | D162: TRUE | E162: TRUE | F162: TRUE | G162: TRUE | H162: TRUE | I162: TRUE | J162: TRUE | K162: AXIL | L162: 88.81481481 | M162: 3.15 | O162: 88.81481481
A163: AXIOM | B163: TRUE | C163: TRUE | D163: TRUE | E163: TRUE | F163: TRUE | G163: TRUE | H163: FALSE | I163: TRUE | J163: FALSE | K163: AXIOM | L163: 101.962963 | M163: 3.02 | O163: 101.962963
A164: AXION | B164: TRUE | C164: TRUE | D164: TRUE | E164: TRUE | F164: TRUE | G164: TRUE | H164: TRUE | I164: TRUE | J164: TRUE | K164: AXION | L164: 111.4814815 | M164: 1.93 | O164: 111.4814815
A165: AZURE | B165: TRUE | C165: TRUE | D165: TRUE | E165: TRUE | F165: TRUE | G165: TRUE | H165: FALSE | I165: TRUE | J165: FALSE | K165: AZURE | L165: 133.6296296 | M165: 3.35 | O165: 133.6296296
A166: BACON | B166: TRUE | C166: TRUE | D166: TRUE | E166: TRUE | F166: TRUE | G166: TRUE | H166: FALSE | I166: TRUE | J166: FALSE | K166: BACON | L166: 113.2222222 | M166: 4.15 | O166: 113.2222222
A167: BADGE | B167: TRUE | C167: TRUE | D167: TRUE | E167: TRUE | F167: TRUE | G167: TRUE | H167: FALSE | I167: TRUE | J167: FALSE | K167: BADGE | L167: 118 | M167: 4.02 | O167: 118
A168: BADLY | B168: TRUE | C168: TRUE | D168: TRUE | E168: TRUE | F168: TRUE | G168: TRUE | H168: FALSE | I168: TRUE | J168: FALSE | K168: BADLY | L168: 103.2222222 | M168: 4.44 | O168: 103.2222222
A169: BAGEL | B169: TRUE | C169: TRUE | D169: TRUE | E169: TRUE | F169: TRUE | G169: TRUE | H169: FALSE | I169: TRUE | J169: FALSE | K169: BAGEL | L169: 129.962963 | M169: 3.18 | O169: 129.962963
A170: BAGGY | B170: TRUE | C170: TRUE | D170: TRUE | E170: TRUE | F170: TRUE | G170: TRUE | H170: TRUE | I170: TRUE | J170: TRUE | K170: BAGY | L170: 73.62962963 | M170: 3.16 | O170: 73.62962963
A171: BAKER | B171: TRUE | C171: TRUE | D171: TRUE | E171: TRUE | F171: TRUE | G171: TRUE | H171: FALSE | I171: TRUE | J171: FALSE | K171: BAKER | L171: 133 | M171: 4.23 | O171: 133
A172: BALER | B172: TRUE | C172: TRUE | D172: TRUE | E172: TRUE | F172: TRUE | G172: TRUE | H172: FALSE | I172: TRUE | J172: FALSE | K172: BALER | L172: 151.7037037 | M172: 2.26 | O172: 151.7037037
A173: BALMY | B173: TRUE | C173: TRUE | D173: TRUE | E173: TRUE | F173: TRUE | G173: TRUE | H173: FALSE | I173: TRUE | J173: FALSE | K173: BALMY | L173: 100.3703704 | M173: 2.7 | O173: 100.3703704
A174: BANAL | B174: TRUE | C174: TRUE | D174: TRUE | E174: TRUE | F174: TRUE | G174: TRUE | H174: FALSE | I174: TRUE | J174: FALSE | K174: BANL | L174: 94.18518519 | M174: 2.88 | O174: 94.18518519
A175: BANJO | B175: TRUE | C175: TRUE | D175: TRUE | E175: TRUE | F175: TRUE | G175: TRUE | H175: FALSE | I175: TRUE | J175: FALSE | K175: BANJO | L175: 96.62962963 | M175: 3.27 | O175: 96.62962963
A176: BARGE | B176: TRUE | C176: TRUE | D176: TRUE | E176: TRUE | F176: TRUE | G176: TRUE | H176: FALSE | I176: TRUE | J176: FALSE | K176: BARGE | L176: 136.6666667 | M176: 3.5 | O176: 136.6666667
A177: BARON | B177: TRUE | C177: TRUE | D177: TRUE | E177: TRUE | F177: TRUE | G177: TRUE | H177: FALSE | I177: TRUE | J177: FALSE | K177: BARON | L177: 128.8518519 | M177: 3.88 | O177: 128.8518519
A178: BASAL | B178: TRUE | C178: TRUE | D178: TRUE | E178: TRUE | F178: TRUE | G178: TRUE | H178: TRUE | I178: TRUE | J178: TRUE | K178: BASL | L178: 97.66666667 | M178: 3.4 | O178: 97.66666667
A179: BASIC | B179: TRUE | C179: TRUE | D179: TRUE | E179: TRUE | F179: TRUE | G179: TRUE | H179: FALSE | I179: TRUE | J179: FALSE | K179: BASIC | L179: 113.5555556 | M179: 4.89 | O179: 113.5555556
A180: BASIL | B180: TRUE | C180: TRUE | D180: TRUE | E180: TRUE | F180: TRUE | G180: TRUE | H180: FALSE | I180: TRUE | J180: FALSE | K180: BASIL | L180: 122.4814815 | M180: 3.65 | O180: 122.4814815
A181: BASIN | B181: TRUE | C181: TRUE | D181: TRUE | E181: TRUE | F181: TRUE | G181: TRUE | H181: FALSE | I181: TRUE | J181: FALSE | K181: BASIN | L181: 117.1851852 | M181: 4.08 | O181: 117.1851852
A182: BASIS | B182: TRUE | C182: TRUE | D182: TRUE | E182: TRUE | F182: TRUE | G182: TRUE | H182: FALSE | I182: TRUE | J182: FALSE | K182: BASI | L182: 95.96296296 | M182: 4.81 | O182: 95.96296296
A183: BATCH | B183: TRUE | C183: TRUE | D183: TRUE | E183: TRUE | F183: TRUE | G183: TRUE | H183: FALSE | I183: TRUE | J183: FALSE | K183: BATCH | L183: 105.3333333 | M183: 3.91 | O183: 105.3333333
A184: BATHE | B184: TRUE | C184: TRUE | D184: TRUE | E184: TRUE | F184: TRUE | G184: TRUE | H184: FALSE | I184: TRUE | J184: FALSE | K184: BATHE | L184: 133.2592593 | M184: 3.22 | O184: 133.2592593
A185: BATON | B185: TRUE | C185: TRUE | D185: TRUE | E185: TRUE | F185: TRUE | G185: TRUE | H185: FALSE | I185: TRUE | J185: FALSE | K185: BATON | L185: 122.5925926 | M185: 3.64 | O185: 122.5925926
A186: BATTY | B186: TRUE | C186: TRUE | D186: TRUE | E186: TRUE | F186: TRUE | G186: TRUE | H186: FALSE | I186: TRUE | J186: FALSE | K186: BATY | L186: 89.11111111 | M186: 2.79 | O186: 89.11111111
A187: BAWDY | B187: TRUE | C187: TRUE | D187: TRUE | E187: TRUE | F187: TRUE | G187: TRUE | H187: FALSE | I187: TRUE | J187: FALSE | K187: BAWDY | L187: 83.88888889 | M187: 2.56 | O187: 83.88888889
A188: BAYOU | B188: TRUE | C188: TRUE | D188: TRUE | E188: TRUE | F188: TRUE | G188: TRUE | H188: FALSE | I188: TRUE | J188: FALSE | K188: BAYOU | L188: 107.3703704 | M188: 3.14 | O188: 107.3703704
A189: BEACH | B189: TRUE | C189: TRUE | D189: TRUE | E189: TRUE | F189: TRUE | G189: TRUE | H189: FALSE | I189: TRUE | J189: FALSE | K189: BEACH | L189: 123.8888889 | M189: 4.92 | O189: 123.8888889
A190: BEADY | B190: TRUE | C190: TRUE | D190: TRUE | E190: TRUE | F190: TRUE | G190: TRUE | H190: FALSE | I190: TRUE | J190: FALSE | K190: BEADY | L190: 122.2222222 | M190: 2.48 | O190: 122.2222222
A191: BEARD | B191: TRUE | C191: TRUE | D191: TRUE | E191: TRUE | F191: TRUE | G191: TRUE | H191: FALSE | I191: TRUE | J191: FALSE | K191: BEARD | L191: 139.7407407 | M191: 4.07 | O191: 139.7407407
A192: BEAST | B192: TRUE | C192: TRUE | D192: TRUE | E192: TRUE | F192: TRUE | G192: TRUE | H192: FALSE | I192: TRUE | J192: FALSE | K192: BEAST | L192: 143.6296296 | M192: 4.29 | O192: 143.6296296
A193: BEECH | B193: TRUE | C193: TRUE | D193: TRUE | E193: TRUE | F193: TRUE | G193: TRUE | H193: TRUE | I193: TRUE | J193: TRUE | K193: BECH | L193: 87.77777778 | M193: 3.27 | O193: 87.77777778
A194: BEEFY | B194: TRUE | C194: TRUE | D194: TRUE | E194: TRUE | F194: TRUE | G194: TRUE | H194: FALSE | I194: TRUE | J194: FALSE | K194: BEFY | L194: 80.03703704 | M194: 2.74 | O194: 80.03703704
A195: BEFIT | B195: TRUE | C195: TRUE | D195: TRUE | E195: TRUE | F195: TRUE | G195: TRUE | H195: FALSE | I195: TRUE | J195: FALSE | K195: BEFIT | L195: 116.1111111 | M195: 2.07 | O195: 116.1111111
A196: BEGAN | B196: TRUE | C196: TRUE | D196: TRUE | E196: TRUE | F196: TRUE | G196: TRUE | H196: TRUE | I196: TRUE | J196: TRUE | K196: BEGAN | L196: 124.6666667 | M196: 5.07 | O196: 124.6666667
A197: BEGAT | B197: TRUE | C197: TRUE | D197: TRUE | E197: TRUE | F197: TRUE | G197: TRUE | H197: TRUE | I197: TRUE | J197: TRUE | K197: BEGAT | L197: 130.4074074 | M197: 2.41 | O197: 130.4074074
A198: BEGET | B198: TRUE | C198: TRUE | D198: TRUE | E198: TRUE | F198: TRUE | G198: TRUE | H198: FALSE | I198: TRUE | J198: FALSE | K198: BEGT | L198: 94.2962963 | M198: 2.39 | O198: 94.2962963
A199: BEGIN | B199: TRUE | C199: TRUE | D199: TRUE | E199: TRUE | F199: TRUE | G199: TRUE | H199: FALSE | I199: TRUE | J199: FALSE | K199: BEGIN | L199: 113.3703704 | M199: 4.84 | O199: 113.3703704
A200: BEGUN | B200: TRUE | C200: TRUE | D200: TRUE | E200: TRUE | F200: TRUE | G200: TRUE | H200: FALSE | I200: TRUE | J200: FALSE | K200: BEGUN | L200: 105.8148148 | M200: 4.36 | O200: 105.8148148
A201: BEING | B201: TRUE | C201: TRUE | D201: TRUE | E201: TRUE | F201: TRUE | G201: TRUE | H201: FALSE | I201: TRUE | J201: FALSE | K201: BEING | L201: 113.3703704 | M201: 5.95 | O201: 113.3703704
A202: BELCH | B202: TRUE | C202: TRUE | D202: TRUE | E202: TRUE | F202: TRUE | G202: TRUE | H202: FALSE | I202: TRUE | J202: FALSE | K202: BELCH | L202: 114.2962963 | M202: 2.27 | O202: 114.2962963
A203: BELIE | B203: TRUE | C203: TRUE | D203: TRUE | E203: TRUE | F203: TRUE | G203: TRUE | H203: FALSE | I203: TRUE | J203: FALSE | K203: BELI | L203: 107.1851852 | M203: 2.45 | O203: 107.1851852
A204: BELLE | B204: TRUE | C204: TRUE | D204: TRUE | E204: TRUE | F204: TRUE | G204: TRUE | H204: FALSE | I204: TRUE | J204: FALSE | K204: BEL | L204: 82.37037037 | M204: 3.79 | O204: 82.37037037
A205: BELLY | B205: TRUE | C205: TRUE | D205: TRUE | E205: TRUE | F205: TRUE | G205: TRUE | H205: FALSE | I205: TRUE | J205: FALSE | K205: BELY | L205: 98.07407407 | M205: 4.1 | O205: 98.07407407
... 2130 more rows

Sheet Start Words (hidden)
A1: Start Words | C1: Unused Start Words
A2: ABOUT | C2: =_xlfn.LET( _xlpm.NonBlankWords, _xlfn._xlws.FILTER(A2:A1048576, A2:A1048576 <> ""), _xlpm.ValidWords, _xlfn._xlws.FILTER(_xlpm.NonBlankWords, NOT(ISERROR(MATCH(_xlpm.NonBlankWords, tAllWords[Word], 0)))), _xlfn._xlws.FILTER(_xlpm.ValidWords, ISERROR(MATCH(_xlpm.ValidWords,_xlfn.ANCHORARRAY( 'Used Words List'!UsedWordsList), 0))) ) -> AROSE
A3: ADIEU | C3: ROAST
A4: AISLE | C4: SAUCE
A5: ALERT | C5: SLANT
A6: AROSE | C6: TRIED
A7: AUDIO
A8: BRAKES
A9: CANOE
A10: CRANE
A11: CRATE
A12: FARTS
A13: IRATE
A14: LATER
A15: LEAST
A16: MEDIA
A17: REACH
A18: ROAST
A19: ROATE
A20: SALET
A21: SAUCE
A22: SHINE
A23: SLANT
A24: SLATE
A25: SLICE
A26: SOARE
A27: STARE
A28: TRACE
A29: TRIED

Sheet All Words (hidden)
A1: Word | B1: Frequency
A2: ABACK | B2: =_xlfn.XLOOKUP(tAllWords[[#This Row],[Word]], Table5[Word], Table5[Zipf Frequency], 0) -> 2.99
A3: ABASE | B3: =_xlfn.XLOOKUP(tAllWords[[#This Row],[Word]], Table5[Word], Table5[Zipf Frequency], 0) -> 1.56
A4: ABATE | B4: =_xlfn.XLOOKUP(tAllWords[[#This Row],[Word]], Table5[Word], Table5[Zipf Frequency], 0) -> 2.68
A5: ABBEY | B5: =_xlfn.XLOOKUP(tAllWords[[#This Row],[Word]], Table5[Word], Table5[Zipf Frequency], 0) -> 3.88
A6: ABBOT | B6: =_xlfn.XLOOKUP(tAllWords[[#This Row],[Word]], Table5[Word], Table5[Zipf Frequency], 0) -> 3.43
A7: ABHOR | B7: =_xlfn.XLOOKUP(tAllWords[[#This Row],[Word]], Table5[Word], Table5[Zipf Frequency], 0) -> 2.64
A8: ABIDE | B8: =_xlfn.XLOOKUP(tAllWords[[#This Row],[Word]], Table5[Word], Table5[Zipf Frequency], 0) -> 3.59
A9: ABLED | B9: =_xlfn.XLOOKUP(tAllWords[[#This Row],[Word]], Table5[Word], Table5[Zipf Frequency], 0) -> 2.29
A10: ABODE | B10: =_xlfn.XLOOKUP(tAllWords[[#This Row],[Word]], Table5[Word], Table5[Zipf Frequency], 0) -> 3.13
A11: ABORT | B11: =_xlfn.XLOOKUP(tAllWords[[#This Row],[Word]], Table5[Word], Table5[Zipf Frequency], 0) -> 3.27
A12: ABOUT | B12: =_xlfn.XLOOKUP(tAllWords[[#This Row],[Word]], Table5[Word], Table5[Zipf Frequency], 0) -> 6.4
A13: ABOVE | B13: =_xlfn.XLOOKUP(tAllWords[[#This Row],[Word]], Table5[Word], Table5[Zipf Frequency], 0) -> 5.2
A14: ABUSE | B14: =_xlfn.XLOOKUP(tAllWords[[#This Row],[Word]], Table5[Word], Table5[Zipf Frequency], 0) -> 4.66
A15: ABYSS | B15: =_xlfn.XLOOKUP(tAllWords[[#This Row],[Word]], Table5[Word], Table5[Zipf Frequency], 0) -> 3.4
A16: ACORN | B16: =_xlfn.XLOOKUP(tAllWords[[#This Row],[Word]], Table5[Word], Table5[Zipf Frequency], 0) -> 3.08
A17: ACRID | B17: =_xlfn.XLOOKUP(tAllWords[[#This Row],[Word]], Table5[Word], Table5[Zipf Frequency], 0) -> 2.37
A18: ACTOR | B18: =_xlfn.XLOOKUP(tAllWords[[#This Row],[Word]], Table5[Word], Table5[Zipf Frequency], 0) -> 4.65
A19: ACUTE | B19: =_xlfn.XLOOKUP(tAllWords[[#This Row],[Word]], Table5[Word], Table5[Zipf Frequency], 0) -> 4
A20: ADAGE | B20: =_xlfn.XLOOKUP(tAllWords[[#This Row],[Word]], Table5[Word], Table5[Zipf Frequency], 0) -> 2.95
A21: ADAPT | B21: =_xlfn.XLOOKUP(tAllWords[[#This Row],[Word]], Table5[Word], Table5[Zipf Frequency], 0) -> 3.98
A22: ADEPT | B22: =_xlfn.XLOOKUP(tAllWords[[#This Row],[Word]], Table5[Word], Table5[Zipf Frequency], 0) -> 3.33
A23: ADMIN | B23: =_xlfn.XLOOKUP(tAllWords[[#This Row],[Word]], Table5[Word], Table5[Zipf Frequency], 0) -> 3.92
A24: ADMIT | B24: =_xlfn.XLOOKUP(tAllWords[[#This Row],[Word]], Table5[Word], Table5[Zipf Frequency], 0) -> 4.58
A25: ADOBE | B25: =_xlfn.XLOOKUP(tAllWords[[#This Row],[Word]], Table5[Word], Table5[Zipf Frequency], 0) -> 3.53
A26: ADOPT | B26: =_xlfn.XLOOKUP(tAllWords[[#This Row],[Word]], Table5[Word], Table5[Zipf Frequency], 0) -> 4.19
A27: ADORE | B27: =_xlfn.XLOOKUP(tAllWords[[#This Row],[Word]], Table5[Word], Table5[Zipf Frequency], 0) -> 3.7
A28: ADORN | B28: =_xlfn.XLOOKUP(tAllWords[[#This Row],[Word]], Table5[Word], Table5[Zipf Frequency], 0) -> 3.01
A29: ADULT | B29: =_xlfn.XLOOKUP(tAllWords[[#This Row],[Word]], Table5[Word], Table5[Zipf Frequency], 0) -> 4.8
A30: AFFIX | B30: =_xlfn.XLOOKUP(tAllWords[[#This Row],[Word]], Table5[Word], Table5[Zipf Frequency], 0) -> 2.63
A31: AFIRE | B31: =_xlfn.XLOOKUP(tAllWords[[#This Row],[Word]], Table5[Word], Table5[Zipf Frequency], 0) -> 2.46
A32: AFOOT | B32: =_xlfn.XLOOKUP(tAllWords[[#This Row],[Word]], Table5[Word], Table5[Zipf Frequency], 0) -> 2.89
A33: AFOUL | B33: =_xlfn.XLOOKUP(tAllWords[[#This Row],[Word]], Table5[Word], Table5[Zipf Frequency], 0) -> 2.63
A34: AFTER | B34: =_xlfn.XLOOKUP(tAllWords[[#This Row],[Word]], Table5[Word], Table5[Zipf Frequency], 0) -> 6.11
A35: AGAIN | B35: =_xlfn.XLOOKUP(tAllWords[[#This Row],[Word]], Table5[Word], Table5[Zipf Frequency], 0) -> 5.7
A36: AGAPE | B36: =_xlfn.XLOOKUP(tAllWords[[#This Row],[Word]], Table5[Word], Table5[Zipf Frequency], 0) -> 2.65
A37: AGATE | B37: =_xlfn.XLOOKUP(tAllWords[[#This Row],[Word]], Table5[Word], Table5[Zipf Frequency], 0) -> 2.81
A38: AGENT | B38: =_xlfn.XLOOKUP(tAllWords[[#This Row],[Word]], Table5[Word], Table5[Zipf Frequency], 0) -> 4.81
A39: AGILE | B39: =_xlfn.XLOOKUP(tAllWords[[#This Row],[Word]], Table5[Word], Table5[Zipf Frequency], 0) -> 3.41
A40: AGING | B40: =_xlfn.XLOOKUP(tAllWords[[#This Row],[Word]], Table5[Word], Table5[Zipf Frequency], 0) -> 4.04
A41: AGLOW | B41: =_xlfn.XLOOKUP(tAllWords[[#This Row],[Word]], Table5[Word], Table5[Zipf Frequency], 0) -> 2.21
A42: AGONY | B42: =_xlfn.XLOOKUP(tAllWords[[#This Row],[Word]], Table5[Word], Table5[Zipf Frequency], 0) -> 3.6
A43: AGREE | B43: =_xlfn.XLOOKUP(tAllWords[[#This Row],[Word]], Table5[Word], Table5[Zipf Frequency], 0) -> 4.97
A44: AHEAD | B44: =_xlfn.XLOOKUP(tAllWords[[#This Row],[Word]], Table5[Word], Table5[Zipf Frequency], 0) -> 5.01
A45: AIDER | B45: =_xlfn.XLOOKUP(tAllWords[[#This Row],[Word]], Table5[Word], Table5[Zipf Frequency], 0) -> 1.94
A46: AISLE | B46: =_xlfn.XLOOKUP(tAllWords[[#This Row],[Word]], Table5[Word], Table5[Zipf Frequency], 0) -> 3.72
A47: ALARM | B47: =_xlfn.XLOOKUP(tAllWords[[#This Row],[Word]], Table5[Word], Table5[Zipf Frequency], 0) -> 4.28
A48: ALBUM | B48: =_xlfn.XLOOKUP(tAllWords[[#This Row],[Word]], Table5[Word], Table5[Zipf Frequency], 0) -> 5.02
A49: ALERT | B49: =_xlfn.XLOOKUP(tAllWords[[#This Row],[Word]], Table5[Word], Table5[Zipf Frequency], 0) -> 4.33
A50: ALGAE | B50: =_xlfn.XLOOKUP(tAllWords[[#This Row],[Word]], Table5[Word], Table5[Zipf Frequency], 0) -> 3.54
A51: ALIBI | B51: =_xlfn.XLOOKUP(tAllWords[[#This Row],[Word]], Table5[Word], Table5[Zipf Frequency], 0) -> 3.1
A52: ALIEN | B52: =_xlfn.XLOOKUP(tAllWords[[#This Row],[Word]], Table5[Word], Table5[Zipf Frequency], 0) -> 4.29
A53: ALIGN | B53: =_xlfn.XLOOKUP(tAllWords[[#This Row],[Word]], Table5[Word], Table5[Zipf Frequency], 0) -> 3.63
A54: ALIKE | B54: =_xlfn.XLOOKUP(tAllWords[[#This Row],[Word]], Table5[Word], Table5[Zipf Frequency], 0) -> 4.13
A55: ALIVE | B55: =_xlfn.XLOOKUP(tAllWords[[#This Row],[Word]], Table5[Word], Table5[Zipf Frequency], 0) -> 4.76
A56: ALLAY | B56: =_xlfn.XLOOKUP(tAllWords[[#This Row],[Word]], Table5[Word], Table5[Zipf Frequency], 0) -> 2.69
A57: ALLEY | B57: =_xlfn.XLOOKUP(tAllWords[[#This Row],[Word]], Table5[Word], Table5[Zipf Frequency], 0) -> 3.87
A58: ALLOT | B58: =_xlfn.XLOOKUP(tAllWords[[#This Row],[Word]], Table5[Word], Table5[Zipf Frequency], 0) -> 2.79
A59: ALLOW | B59: =_xlfn.XLOOKUP(tAllWords[[#This Row],[Word]], Table5[Word], Table5[Zipf Frequency], 0) -> 5.01
A60: ALLOY | B60: =_xlfn.XLOOKUP(tAllWords[[#This Row],[Word]], Table5[Word], Table5[Zipf Frequency], 0) -> 3.61
A61: ALOFT | B61: =_xlfn.XLOOKUP(tAllWords[[#This Row],[Word]], Table5[Word], Table5[Zipf Frequency], 0) -> 3.08
A62: ALONE | B62: =_xlfn.XLOOKUP(tAllWords[[#This Row],[Word]], Table5[Word], Table5[Zipf Frequency], 0) -> 5.16
A63: ALONG | B63: =_xlfn.XLOOKUP(tAllWords[[#This Row],[Word]], Table5[Word], Table5[Zipf Frequency], 0) -> 5.38
A64: ALOOF | B64: =_xlfn.XLOOKUP(tAllWords[[#This Row],[Word]], Table5[Word], Table5[Zipf Frequency], 0) -> 2.99
A65: ALOUD | B65: =_xlfn.XLOOKUP(tAllWords[[#This Row],[Word]], Table5[Word], Table5[Zipf Frequency], 0) -> 3.51
A66: ALPHA | B66: =_xlfn.XLOOKUP(tAllWords[[#This Row],[Word]], Table5[Word], Table5[Zipf Frequency], 0) -> 4.25
A67: ALTAR | B67: =_xlfn.XLOOKUP(tAllWords[[#This Row],[Word]], Table5[Word], Table5[Zipf Frequency], 0) -> 3.8
A68: ALTER | B68: =_xlfn.XLOOKUP(tAllWords[[#This Row],[Word]], Table5[Word], Table5[Zipf Frequency], 0) -> 4.05
A69: AMASS | B69: =_xlfn.XLOOKUP(tAllWords[[#This Row],[Word]], Table5[Word], Table5[Zipf Frequency], 0) -> 2.77
A70: AMAZE | B70: =_xlfn.XLOOKUP(tAllWords[[#This Row],[Word]], Table5[Word], Table5[Zipf Frequency], 0) -> 3.19
A71: AMBER | B71: =_xlfn.XLOOKUP(tAllWords[[#This Row],[Word]], Table5[Word], Table5[Zipf Frequency], 0) -> 3.97
A72: AMBLE | B72: =_xlfn.XLOOKUP(tAllWords[[#This Row],[Word]], Table5[Word], Table5[Zipf Frequency], 0) -> 2.3
A73: AMEND | B73: =_xlfn.XLOOKUP(tAllWords[[#This Row],[Word]], Table5[Word], Table5[Zipf Frequency], 0) -> 3.55
A74: AMISS | B74: =_xlfn.XLOOKUP(tAllWords[[#This Row],[Word]], Table5[Word], Table5[Zipf Frequency], 0) -> 2.93
A75: AMITY | B75: =_xlfn.XLOOKUP(tAllWords[[#This Row],[Word]], Table5[Word], Table5[Zipf Frequency], 0) -> 2.89
A76: AMONG | B76: =_xlfn.XLOOKUP(tAllWords[[#This Row],[Word]], Table5[Word], Table5[Zipf Frequency], 0) -> 5.31
A77: AMPLE | B77: =_xlfn.XLOOKUP(tAllWords[[#This Row],[Word]], Table5[Word], Table5[Zipf Frequency], 0) -> 3.71
A78: AMPLY | B78: =_xlfn.XLOOKUP(tAllWords[[#This Row],[Word]], Table5[Word], Table5[Zipf Frequency], 0) -> 2.61
A79: AMUSE | B79: =_xlfn.XLOOKUP(tAllWords[[#This Row],[Word]], Table5[Word], Table5[Zipf Frequency], 0) -> 3.12
A80: ANGEL | B80: =_xlfn.XLOOKUP(tAllWords[[#This Row],[Word]], Table5[Word], Table5[Zipf Frequency], 0) -> 4.45
A81: ANGER | B81: =_xlfn.XLOOKUP(tAllWords[[#This Row],[Word]], Table5[Word], Table5[Zipf Frequency], 0) -> 4.42
A82: ANGLE | B82: =_xlfn.XLOOKUP(tAllWords[[#This Row],[Word]], Table5[Word], Table5[Zipf Frequency], 0) -> 4.38
A83: ANGRY | B83: =_xlfn.XLOOKUP(tAllWords[[#This Row],[Word]], Table5[Word], Table5[Zipf Frequency], 0) -> 4.66
A84: ANGST | B84: =_xlfn.XLOOKUP(tAllWords[[#This Row],[Word]], Table5[Word], Table5[Zipf Frequency], 0) -> 3.26
A85: ANIME | B85: =_xlfn.XLOOKUP(tAllWords[[#This Row],[Word]], Table5[Word], Table5[Zipf Frequency], 0) -> 4.26
A86: ANKLE | B86: =_xlfn.XLOOKUP(tAllWords[[#This Row],[Word]], Table5[Word], Table5[Zipf Frequency], 0) -> 3.97
A87: ANNEX | B87: =_xlfn.XLOOKUP(tAllWords[[#This Row],[Word]], Table5[Word], Table5[Zipf Frequency], 0) -> 3.5
A88: ANNOY | B88: =_xlfn.XLOOKUP(tAllWords[[#This Row],[Word]], Table5[Word], Table5[Zipf Frequency], 0) -> 3.46
A89: ANNUL | B89: =_xlfn.XLOOKUP(tAllWords[[#This Row],[Word]], Table5[Word], Table5[Zipf Frequency], 0) -> 2.49
A90: ANODE | B90: =_xlfn.XLOOKUP(tAllWords[[#This Row],[Word]], Table5[Word], Table5[Zipf Frequency], 0) -> 2.86
A91: ANTIC | B91: =_xlfn.XLOOKUP(tAllWords[[#This Row],[Word]], Table5[Word], Table5[Zipf Frequency], 0) -> 2.33
A92: ANVIL | B92: =_xlfn.XLOOKUP(tAllWords[[#This Row],[Word]], Table5[Word], Table5[Zipf Frequency], 0) -> 3.04
A93: AORTA | B93: =_xlfn.XLOOKUP(tAllWords[[#This Row],[Word]], Table5[Word], Table5[Zipf Frequency], 0) -> 2.92
A94: APART | B94: =_xlfn.XLOOKUP(tAllWords[[#This Row],[Word]], Table5[Word], Table5[Zipf Frequency], 0) -> 4.78
A95: APHID | B95: =_xlfn.XLOOKUP(tAllWords[[#This Row],[Word]], Table5[Word], Table5[Zipf Frequency], 0) -> 2.39
A96: APING | B96: =_xlfn.XLOOKUP(tAllWords[[#This Row],[Word]], Table5[Word], Table5[Zipf Frequency], 0) -> 2.09
A97: APNEA | B97: =_xlfn.XLOOKUP(tAllWords[[#This Row],[Word]], Table5[Word], Table5[Zipf Frequency], 0) -> 3
A98: APPLE | B98: =_xlfn.XLOOKUP(tAllWords[[#This Row],[Word]], Table5[Word], Table5[Zipf Frequency], 0) -> 4.76
A99: APPLY | B99: =_xlfn.XLOOKUP(tAllWords[[#This Row],[Word]], Table5[Word], Table5[Zipf Frequency], 0) -> 4.81
A100: APRON | B100: =_xlfn.XLOOKUP(tAllWords[[#This Row],[Word]], Table5[Word], Table5[Zipf Frequency], 0) -> 3.36
A101: APTLY | B101: =_xlfn.XLOOKUP(tAllWords[[#This Row],[Word]], Table5[Word], Table5[Zipf Frequency], 0) -> 3.12
A102: ARBOR | B102: =_xlfn.XLOOKUP(tAllWords[[#This Row],[Word]], Table5[Word], Table5[Zipf Frequency], 0) -> 3.49
A103: ARDOR | B103: =_xlfn.XLOOKUP(tAllWords[[#This Row],[Word]], Table5[Word], Table5[Zipf Frequency], 0) -> 2.34
A104: ARENA | B104: =_xlfn.XLOOKUP(tAllWords[[#This Row],[Word]], Table5[Word], Table5[Zipf Frequency], 0) -> 4.33
A105: ARGUE | B105: =_xlfn.XLOOKUP(tAllWords[[#This Row],[Word]], Table5[Word], Table5[Zipf Frequency], 0) -> 4.46
A106: ARISE | B106: =_xlfn.XLOOKUP(tAllWords[[#This Row],[Word]], Table5[Word], Table5[Zipf Frequency], 0) -> 3.93
A107: ARMOR | B107: =_xlfn.XLOOKUP(tAllWords[[#This Row],[Word]], Table5[Word], Table5[Zipf Frequency], 0) -> 3.97
A108: AROMA | B108: =_xlfn.XLOOKUP(tAllWords[[#This Row],[Word]], Table5[Word], Table5[Zipf Frequency], 0) -> 3.23
A109: AROSE | B109: =_xlfn.XLOOKUP(tAllWords[[#This Row],[Word]], Table5[Word], Table5[Zipf Frequency], 0) -> 3.73
A110: ARRAY | B110: =_xlfn.XLOOKUP(tAllWords[[#This Row],[Word]], Table5[Word], Table5[Zipf Frequency], 0) -> 4.1
A111: ARROW | B111: =_xlfn.XLOOKUP(tAllWords[[#This Row],[Word]], Table5[Word], Table5[Zipf Frequency], 0) -> 4.13
A112: ARSON | B112: =_xlfn.XLOOKUP(tAllWords[[#This Row],[Word]], Table5[Word], Table5[Zipf Frequency], 0) -> 3.4
A113: ARTSY | B113: =_xlfn.XLOOKUP(tAllWords[[#This Row],[Word]], Table5[Word], Table5[Zipf Frequency], 0) -> 2.89
A114: ASCOT | B114: =_xlfn.XLOOKUP(tAllWords[[#This Row],[Word]], Table5[Word], Table5[Zipf Frequency], 0) -> 3.06
A115: ASHEN | B115: =_xlfn.XLOOKUP(tAllWords[[#This Row],[Word]], Table5[Word], Table5[Zipf Frequency], 0) -> 2.48
A116: ASIDE | B116: =_xlfn.XLOOKUP(tAllWords[[#This Row],[Word]], Table5[Word], Table5[Zipf Frequency], 0) -> 4.59
A117: ASKEW | B117: =_xlfn.XLOOKUP(tAllWords[[#This Row],[Word]], Table5[Word], Table5[Zipf Frequency], 0) -> 2.72
A118: ASSAY | B118: =_xlfn.XLOOKUP(tAllWords[[#This Row],[Word]], Table5[Word], Table5[Zipf Frequency], 0) -> 3.28
A119: ASSET | B119: =_xlfn.XLOOKUP(tAllWords[[#This Row],[Word]], Table5[Word], Table5[Zipf Frequency], 0) -> 4.23
A120: ATOLL | B120: =_xlfn.XLOOKUP(tAllWords[[#This Row],[Word]], Table5[Word], Table5[Zipf Frequency], 0) -> 2.85
A121: ATONE | B121: =_xlfn.XLOOKUP(tAllWords[[#This Row],[Word]], Table5[Word], Table5[Zipf Frequency], 0) -> 2.86
A122: ATTIC | B122: =_xlfn.XLOOKUP(tAllWords[[#This Row],[Word]], Table5[Word], Table5[Zipf Frequency], 0) -> 3.63
A123: AUDIO | B123: =_xlfn.XLOOKUP(tAllWords[[#This Row],[Word]], Table5[Word], Table5[Zipf Frequency], 0) -> 4.47
A124: AUDIT | B124: =_xlfn.XLOOKUP(tAllWords[[#This Row],[Word]], Table5[Word], Table5[Zipf Frequency], 0) -> 4.04
A125: AUGUR | B125: =_xlfn.XLOOKUP(tAllWords[[#This Row],[Word]], Table5[Word], Table5[Zipf Frequency], 0) -> 2.48
A126: AUNTY | B126: =_xlfn.XLOOKUP(tAllWords[[#This Row],[Word]], Table5[Word], Table5[Zipf Frequency], 0) -> 3.16
A127: AVAIL | B127: =_xlfn.XLOOKUP(tAllWords[[#This Row],[Word]], Table5[Word], Table5[Zipf Frequency], 0) -> 3.59
A128: AVERT | B128: =_xlfn.XLOOKUP(tAllWords[[#This Row],[Word]], Table5[Word], Table5[Zipf Frequency], 0) -> 3.14
A129: AVIAN | B129: =_xlfn.XLOOKUP(tAllWords[[#This Row],[Word]], Table5[Word], Table5[Zipf Frequency], 0) -> 3.14
A130: AVOID | B130: =_xlfn.XLOOKUP(tAllWords[[#This Row],[Word]], Table5[Word], Table5[Zipf Frequency], 0) -> 4.87
A131: AWAIT | B131: =_xlfn.XLOOKUP(tAllWords[[#This Row],[Word]], Table5[Word], Table5[Zipf Frequency], 0) -> 3.63
A132: AWAKE | B132: =_xlfn.XLOOKUP(tAllWords[[#This Row],[Word]], Table5[Word], Table5[Zipf Frequency], 0) -> 4.14
A133: AWARD | B133: =_xlfn.XLOOKUP(tAllWords[[#This Row],[Word]], Table5[Word], Table5[Zipf Frequency], 0) -> 4.88
A134: AWARE | B134: =_xlfn.XLOOKUP(tAllWords[[#This Row],[Word]], Table5[Word], Table5[Zipf Frequency], 0) -> 4.78
A135: AWASH | B135: =_xlfn.XLOOKUP(tAllWords[[#This Row],[Word]], Table5[Word], Table5[Zipf Frequency], 0) -> 2.76
A136: AWFUL | B136: =_xlfn.XLOOKUP(tAllWords[[#This Row],[Word]], Table5[Word], Table5[Zipf Frequency], 0) -> 4.46
A137: AWOKE | B137: =_xlfn.XLOOKUP(tAllWords[[#This Row],[Word]], Table5[Word], Table5[Zipf Frequency], 0) -> 3.15
A138: AXIAL | B138: =_xlfn.XLOOKUP(tAllWords[[#This Row],[Word]], Table5[Word], Table5[Zipf Frequency], 0) -> 3.15
A139: AXIOM | B139: =_xlfn.XLOOKUP(tAllWords[[#This Row],[Word]], Table5[Word], Table5[Zipf Frequency], 0) -> 3.02
A140: AXION | B140: =_xlfn.XLOOKUP(tAllWords[[#This Row],[Word]], Table5[Word], Table5[Zipf Frequency], 0) -> 1.93
A141: AZURE | B141: =_xlfn.XLOOKUP(tAllWords[[#This Row],[Word]], Table5[Word], Table5[Zipf Frequency], 0) -> 3.35
A142: BACON | B142: =_xlfn.XLOOKUP(tAllWords[[#This Row],[Word]], Table5[Word], Table5[Zipf Frequency], 0) -> 4.15
A143: BADGE | B143: =_xlfn.XLOOKUP(tAllWords[[#This Row],[Word]], Table5[Word], Table5[Zipf Frequency], 0) -> 4.02
A144: BADLY | B144: =_xlfn.XLOOKUP(tAllWords[[#This Row],[Word]], Table5[Word], Table5[Zipf Frequency], 0) -> 4.44
A145: BAGEL | B145: =_xlfn.XLOOKUP(tAllWords[[#This Row],[Word]], Table5[Word], Table5[Zipf Frequency], 0) -> 3.18
A146: BAGGY | B146: =_xlfn.XLOOKUP(tAllWords[[#This Row],[Word]], Table5[Word], Table5[Zipf Frequency], 0) -> 3.16
A147: BAKER | B147: =_xlfn.XLOOKUP(tAllWords[[#This Row],[Word]], Table5[Word], Table5[Zipf Frequency], 0) -> 4.23
A148: BALER | B148: =_xlfn.XLOOKUP(tAllWords[[#This Row],[Word]], Table5[Word], Table5[Zipf Frequency], 0) -> 2.26
A149: BALMY | B149: =_xlfn.XLOOKUP(tAllWords[[#This Row],[Word]], Table5[Word], Table5[Zipf Frequency], 0) -> 2.7
A150: BANAL | B150: =_xlfn.XLOOKUP(tAllWords[[#This Row],[Word]], Table5[Word], Table5[Zipf Frequency], 0) -> 2.88
A151: BANJO | B151: =_xlfn.XLOOKUP(tAllWords[[#This Row],[Word]], Table5[Word], Table5[Zipf Frequency], 0) -> 3.27
A152: BARGE | B152: =_xlfn.XLOOKUP(tAllWords[[#This Row],[Word]], Table5[Word], Table5[Zipf Frequency], 0) -> 3.5
A153: BARON | B153: =_xlfn.XLOOKUP(tAllWords[[#This Row],[Word]], Table5[Word], Table5[Zipf Frequency], 0) -> 3.88
A154: BASAL | B154: =_xlfn.XLOOKUP(tAllWords[[#This Row],[Word]], Table5[Word], Table5[Zipf Frequency], 0) -> 3.4
A155: BASIC | B155: =_xlfn.XLOOKUP(tAllWords[[#This Row],[Word]], Table5[Word], Table5[Zipf Frequency], 0) -> 4.89
A156: BASIL | B156: =_xlfn.XLOOKUP(tAllWords[[#This Row],[Word]], Table5[Word], Table5[Zipf Frequency], 0) -> 3.65
A157: BASIN | B157: =_xlfn.XLOOKUP(tAllWords[[#This Row],[Word]], Table5[Word], Table5[Zipf Frequency], 0) -> 4.08
A158: BASIS | B158: =_xlfn.XLOOKUP(tAllWords[[#This Row],[Word]], Table5[Word], Table5[Zipf Frequency], 0) -> 4.81
A159: BATCH | B159: =_xlfn.XLOOKUP(tAllWords[[#This Row],[Word]], Table5[Word], Table5[Zipf Frequency], 0) -> 3.91
A160: BATHE | B160: =_xlfn.XLOOKUP(tAllWords[[#This Row],[Word]], Table5[Word], Table5[Zipf Frequency], 0) -> 3.22
A161: BATON | B161: =_xlfn.XLOOKUP(tAllWords[[#This Row],[Word]], Table5[Word], Table5[Zipf Frequency], 0) -> 3.64
A162: BATTY | B162: =_xlfn.XLOOKUP(tAllWords[[#This Row],[Word]], Table5[Word], Table5[Zipf Frequency], 0) -> 2.79
A163: BAWDY | B163: =_xlfn.XLOOKUP(tAllWords[[#This Row],[Word]], Table5[Word], Table5[Zipf Frequency], 0) -> 2.56
A164: BAYOU | B164: =_xlfn.XLOOKUP(tAllWords[[#This Row],[Word]], Table5[Word], Table5[Zipf Frequency], 0) -> 3.14
A165: BEACH | B165: =_xlfn.XLOOKUP(tAllWords[[#This Row],[Word]], Table5[Word], Table5[Zipf Frequency], 0) -> 4.92
A166: BEADY | B166: =_xlfn.XLOOKUP(tAllWords[[#This Row],[Word]], Table5[Word], Table5[Zipf Frequency], 0) -> 2.48
A167: BEARD | B167: =_xlfn.XLOOKUP(tAllWords[[#This Row],[Word]], Table5[Word], Table5[Zipf Frequency], 0) -> 4.07
A168: BEAST | B168: =_xlfn.XLOOKUP(tAllWords[[#This Row],[Word]], Table5[Word], Table5[Zipf Frequency], 0) -> 4.29
A169: BEECH | B169: =_xlfn.XLOOKUP(tAllWords[[#This Row],[Word]], Table5[Word], Table5[Zipf Frequency], 0) -> 3.27
A170: BEEFY | B170: =_xlfn.XLOOKUP(tAllWords[[#This Row],[Word]], Table5[Word], Table5[Zipf Frequency], 0) -> 2.74
A171: BEFIT | B171: =_xlfn.XLOOKUP(tAllWords[[#This Row],[Word]], Table5[Word], Table5[Zipf Frequency], 0) -> 2.07
A172: BEGAN | B172: =_xlfn.XLOOKUP(tAllWords[[#This Row],[Word]], Table5[Word], Table5[Zipf Frequency], 0) -> 5.07
A173: BEGAT | B173: =_xlfn.XLOOKUP(tAllWords[[#This Row],[Word]], Table5[Word], Table5[Zipf Frequency], 0) -> 2.41
A174: BEGET | B174: =_xlfn.XLOOKUP(tAllWords[[#This Row],[Word]], Table5[Word], Table5[Zipf Frequency], 0) -> 2.39
A175: BEGIN | B175: =_xlfn.XLOOKUP(tAllWords[[#This Row],[Word]], Table5[Word], Table5[Zipf Frequency], 0) -> 4.84
A176: BEGUN | B176: =_xlfn.XLOOKUP(tAllWords[[#This Row],[Word]], Table5[Word], Table5[Zipf Frequency], 0) -> 4.36
A177: BEING | B177: =_xlfn.XLOOKUP(tAllWords[[#This Row],[Word]], Table5[Word], Table5[Zipf Frequency], 0) -> 5.95
A178: BELCH | B178: =_xlfn.XLOOKUP(tAllWords[[#This Row],[Word]], Table5[Word], Table5[Zipf Frequency], 0) -> 2.27
A179: BELIE | B179: =_xlfn.XLOOKUP(tAllWords[[#This Row],[Word]], Table5[Word], Table5[Zipf Frequency], 0) -> 2.45
A180: BELLE | B180: =_xlfn.XLOOKUP(tAllWords[[#This Row],[Word]], Table5[Word], Table5[Zipf Frequency], 0) -> 3.79
A181: BELLY | B181: =_xlfn.XLOOKUP(tAllWords[[#This Row],[Word]], Table5[Word], Table5[Zipf Frequency], 0) -> 4.1
A182: BELOW | B182: =_xlfn.XLOOKUP(tAllWords[[#This Row],[Word]], Table5[Word], Table5[Zipf Frequency], 0) -> 5.05
A183: BENCH | B183: =_xlfn.XLOOKUP(tAllWords[[#This Row],[Word]], Table5[Word], Table5[Zipf Frequency], 0) -> 4.39
A184: BERET | B184: =_xlfn.XLOOKUP(tAllWords[[#This Row],[Word]], Table5[Word], Table5[Zipf Frequency], 0) -> 2.92
A185: BERRY | B185: =_xlfn.XLOOKUP(tAllWords[[#This Row],[Word]], Table5[Word], Table5[Zipf Frequency], 0) -> 3.97
A186: BERTH | B186: =_xlfn.XLOOKUP(tAllWords[[#This Row],[Word]], Table5[Word], Table5[Zipf Frequency], 0) -> 3.44
A187: BESET | B187: =_xlfn.XLOOKUP(tAllWords[[#This Row],[Word]], Table5[Word], Table5[Zipf Frequency], 0) -> 3.08
A188: BETEL | B188: =_xlfn.XLOOKUP(tAllWords[[#This Row],[Word]], Table5[Word], Table5[Zipf Frequency], 0) -> 2.53
A189: BEVEL | B189: =_xlfn.XLOOKUP(tAllWords[[#This Row],[Word]], Table5[Word], Table5[Zipf Frequency], 0) -> 2.61
A190: BEZEL | B190: =_xlfn.XLOOKUP(tAllWords[[#This Row],[Word]], Table5[Word], Table5[Zipf Frequency], 0) -> 2.8
A191: BIBLE | B191: =_xlfn.XLOOKUP(tAllWords[[#This Row],[Word]], Table5[Word], Table5[Zipf Frequency], 0) -> 4.54
A192: BICEP | B192: =_xlfn.XLOOKUP(tAllWords[[#This Row],[Word]], Table5[Word], Table5[Zipf Frequency], 0) -> 2.72
A193: BIDDY | B193: =_xlfn.XLOOKUP(tAllWords[[#This Row],[Word]], Table5[Word], Table5[Zipf Frequency], 0) -> 2.39
A194: BIGOT | B194: =_xlfn.XLOOKUP(tAllWords[[#This Row],[Word]], Table5[Word], Table5[Zipf Frequency], 0) -> 3.18
A195: BILGE | B195: =_xlfn.XLOOKUP(tAllWords[[#This Row],[Word]], Table5[Word], Table5[Zipf Frequency], 0) -> 2.67
A196: BILLY | B196: =_xlfn.XLOOKUP(tAllWords[[#This Row],[Word]], Table5[Word], Table5[Zipf Frequency], 0) -> 4.33
A197: BINGE | B197: =_xlfn.XLOOKUP(tAllWords[[#This Row],[Word]], Table5[Word], Table5[Zipf Frequency], 0) -> 3.6
A198: BINGO | B198: =_xlfn.XLOOKUP(tAllWords[[#This Row],[Word]], Table5[Word], Table5[Zipf Frequency], 0) -> 3.71
A199: BIOME | B199: =_xlfn.XLOOKUP(tAllWords[[#This Row],[Word]], Table5[Word], Table5[Zipf Frequency], 0) -> 2.73
A200: BIRCH | B200: =_xlfn.XLOOKUP(tAllWords[[#This Row],[Word]], Table5[Word], Table5[Zipf Frequency], 0) -> 3.5
... 2110 more rows

Sheet All Words Extended (hidden)
A1: Word | B1: Frequency
A2: AAHED | B2: =_xlfn.XLOOKUP(tAllWordsExtended[[#This Row],[Word]], Table5[Word], Table5[Zipf Frequency], 0) -> 0
A3: AALII | B3: =_xlfn.XLOOKUP(tAllWordsExtended[[#This Row],[Word]], Table5[Word], Table5[Zipf Frequency], 0) -> 0
A4: AARGH | B4: =_xlfn.XLOOKUP(tAllWordsExtended[[#This Row],[Word]], Table5[Word], Table5[Zipf Frequency], 0) -> 1.83
A5: AARTI | B5: =_xlfn.XLOOKUP(tAllWordsExtended[[#This Row],[Word]], Table5[Word], Table5[Zipf Frequency], 0) -> 2.23
A6: ABACA | B6: =_xlfn.XLOOKUP(tAllWordsExtended[[#This Row],[Word]], Table5[Word], Table5[Zipf Frequency], 0) -> 1.77
A7: ABACI | B7: =_xlfn.XLOOKUP(tAllWordsExtended[[#This Row],[Word]], Table5[Word], Table5[Zipf Frequency], 0) -> 1.19
A8: ABACK | B8: =_xlfn.XLOOKUP(tAllWordsExtended[[#This Row],[Word]], Table5[Word], Table5[Zipf Frequency], 0) -> 2.99
A9: ABACS | B9: =_xlfn.XLOOKUP(tAllWordsExtended[[#This Row],[Word]], Table5[Word], Table5[Zipf Frequency], 0) -> 0
A10: ABAFT | B10: =_xlfn.XLOOKUP(tAllWordsExtended[[#This Row],[Word]], Table5[Word], Table5[Zipf Frequency], 0) -> 1.8
A11: ABAKA | B11: =_xlfn.XLOOKUP(tAllWordsExtended[[#This Row],[Word]], Table5[Word], Table5[Zipf Frequency], 0) -> 0
A12: ABAMP | B12: =_xlfn.XLOOKUP(tAllWordsExtended[[#This Row],[Word]], Table5[Word], Table5[Zipf Frequency], 0) -> 0
A13: ABAND | B13: =_xlfn.XLOOKUP(tAllWordsExtended[[#This Row],[Word]], Table5[Word], Table5[Zipf Frequency], 0) -> 1.2
A14: ABASE | B14: =_xlfn.XLOOKUP(tAllWordsExtended[[#This Row],[Word]], Table5[Word], Table5[Zipf Frequency], 0) -> 1.56
A15: ABASH | B15: =_xlfn.XLOOKUP(tAllWordsExtended[[#This Row],[Word]], Table5[Word], Table5[Zipf Frequency], 0) -> 1.02
A16: ABASK | B16: =_xlfn.XLOOKUP(tAllWordsExtended[[#This Row],[Word]], Table5[Word], Table5[Zipf Frequency], 0) -> 0
A17: ABATE | B17: =_xlfn.XLOOKUP(tAllWordsExtended[[#This Row],[Word]], Table5[Word], Table5[Zipf Frequency], 0) -> 2.68
A18: ABAYA | B18: =_xlfn.XLOOKUP(tAllWordsExtended[[#This Row],[Word]], Table5[Word], Table5[Zipf Frequency], 0) -> 2.24
A19: ABBAS | B19: =_xlfn.XLOOKUP(tAllWordsExtended[[#This Row],[Word]], Table5[Word], Table5[Zipf Frequency], 0) -> 3.41
A20: ABBED | B20: =_xlfn.XLOOKUP(tAllWordsExtended[[#This Row],[Word]], Table5[Word], Table5[Zipf Frequency], 0) -> 0
A21: ABBES | B21: =_xlfn.XLOOKUP(tAllWordsExtended[[#This Row],[Word]], Table5[Word], Table5[Zipf Frequency], 0) -> 1.21
A22: ABBEY | B22: =_xlfn.XLOOKUP(tAllWordsExtended[[#This Row],[Word]], Table5[Word], Table5[Zipf Frequency], 0) -> 3.88
A23: ABBOT | B23: =_xlfn.XLOOKUP(tAllWordsExtended[[#This Row],[Word]], Table5[Word], Table5[Zipf Frequency], 0) -> 3.43
A24: ABCEE | B24: =_xlfn.XLOOKUP(tAllWordsExtended[[#This Row],[Word]], Table5[Word], Table5[Zipf Frequency], 0) -> 0
A25: ABEAM | B25: =_xlfn.XLOOKUP(tAllWordsExtended[[#This Row],[Word]], Table5[Word], Table5[Zipf Frequency], 0) -> 1.75
A26: ABEAR | B26: =_xlfn.XLOOKUP(tAllWordsExtended[[#This Row],[Word]], Table5[Word], Table5[Zipf Frequency], 0) -> 0
A27: ABELE | B27: =_xlfn.XLOOKUP(tAllWordsExtended[[#This Row],[Word]], Table5[Word], Table5[Zipf Frequency], 0) -> 1.77
A28: ABERS | B28: =_xlfn.XLOOKUP(tAllWordsExtended[[#This Row],[Word]], Table5[Word], Table5[Zipf Frequency], 0) -> 1.09
A29: ABETS | B29: =_xlfn.XLOOKUP(tAllWordsExtended[[#This Row],[Word]], Table5[Word], Table5[Zipf Frequency], 0) -> 1.62
A30: ABHOR | B30: =_xlfn.XLOOKUP(tAllWordsExtended[[#This Row],[Word]], Table5[Word], Table5[Zipf Frequency], 0) -> 2.64
A31: ABIDE | B31: =_xlfn.XLOOKUP(tAllWordsExtended[[#This Row],[Word]], Table5[Word], Table5[Zipf Frequency], 0) -> 3.59
A32: ABIES | B32: =_xlfn.XLOOKUP(tAllWordsExtended[[#This Row],[Word]], Table5[Word], Table5[Zipf Frequency], 0) -> 2.23
A33: ABLED | B33: =_xlfn.XLOOKUP(tAllWordsExtended[[#This Row],[Word]], Table5[Word], Table5[Zipf Frequency], 0) -> 2.29
A34: ABLER | B34: =_xlfn.XLOOKUP(tAllWordsExtended[[#This Row],[Word]], Table5[Word], Table5[Zipf Frequency], 0) -> 1.29
A35: ABLES | B35: =_xlfn.XLOOKUP(tAllWordsExtended[[#This Row],[Word]], Table5[Word], Table5[Zipf Frequency], 0) -> 1.73
A36: ABLET | B36: =_xlfn.XLOOKUP(tAllWordsExtended[[#This Row],[Word]], Table5[Word], Table5[Zipf Frequency], 0) -> 0
A37: ABLOW | B37: =_xlfn.XLOOKUP(tAllWordsExtended[[#This Row],[Word]], Table5[Word], Table5[Zipf Frequency], 0) -> 1.56
A38: ABMHO | B38: =_xlfn.XLOOKUP(tAllWordsExtended[[#This Row],[Word]], Table5[Word], Table5[Zipf Frequency], 0) -> 0
A39: ABODE | B39: =_xlfn.XLOOKUP(tAllWordsExtended[[#This Row],[Word]], Table5[Word], Table5[Zipf Frequency], 0) -> 3.13
A40: ABOHM | B40: =_xlfn.XLOOKUP(tAllWordsExtended[[#This Row],[Word]], Table5[Word], Table5[Zipf Frequency], 0) -> 0
A41: ABOIL | B41: =_xlfn.XLOOKUP(tAllWordsExtended[[#This Row],[Word]], Table5[Word], Table5[Zipf Frequency], 0) -> 0
A42: ABOMA | B42: =_xlfn.XLOOKUP(tAllWordsExtended[[#This Row],[Word]], Table5[Word], Table5[Zipf Frequency], 0) -> 0
A43: ABOON | B43: =_xlfn.XLOOKUP(tAllWordsExtended[[#This Row],[Word]], Table5[Word], Table5[Zipf Frequency], 0) -> 0
A44: ABORD | B44: =_xlfn.XLOOKUP(tAllWordsExtended[[#This Row],[Word]], Table5[Word], Table5[Zipf Frequency], 0) -> 1.5
A45: ABORE | B45: =_xlfn.XLOOKUP(tAllWordsExtended[[#This Row],[Word]], Table5[Word], Table5[Zipf Frequency], 0) -> 0
A46: ABORT | B46: =_xlfn.XLOOKUP(tAllWordsExtended[[#This Row],[Word]], Table5[Word], Table5[Zipf Frequency], 0) -> 3.27
A47: ABOUT | B47: =_xlfn.XLOOKUP(tAllWordsExtended[[#This Row],[Word]], Table5[Word], Table5[Zipf Frequency], 0) -> 6.4
A48: ABOVE | B48: =_xlfn.XLOOKUP(tAllWordsExtended[[#This Row],[Word]], Table5[Word], Table5[Zipf Frequency], 0) -> 5.2
A49: ABRAM | B49: =_xlfn.XLOOKUP(tAllWordsExtended[[#This Row],[Word]], Table5[Word], Table5[Zipf Frequency], 0) -> 2.9
A50: ABRAY | B50: =_xlfn.XLOOKUP(tAllWordsExtended[[#This Row],[Word]], Table5[Word], Table5[Zipf Frequency], 0) -> 0
A51: ABRIM | B51: =_xlfn.XLOOKUP(tAllWordsExtended[[#This Row],[Word]], Table5[Word], Table5[Zipf Frequency], 0) -> 0
A52: ABRIN | B52: =_xlfn.XLOOKUP(tAllWordsExtended[[#This Row],[Word]], Table5[Word], Table5[Zipf Frequency], 0) -> 1.12
A53: ABRIS | B53: =_xlfn.XLOOKUP(tAllWordsExtended[[#This Row],[Word]], Table5[Word], Table5[Zipf Frequency], 0) -> 0
A54: ABSEY | B54: =_xlfn.XLOOKUP(tAllWordsExtended[[#This Row],[Word]], Table5[Word], Table5[Zipf Frequency], 0) -> 0
A55: ABSIT | B55: =_xlfn.XLOOKUP(tAllWordsExtended[[#This Row],[Word]], Table5[Word], Table5[Zipf Frequency], 0) -> 0
A56: ABUNA | B56: =_xlfn.XLOOKUP(tAllWordsExtended[[#This Row],[Word]], Table5[Word], Table5[Zipf Frequency], 0) -> 1.11
A57: ABUNE | B57: =_xlfn.XLOOKUP(tAllWordsExtended[[#This Row],[Word]], Table5[Word], Table5[Zipf Frequency], 0) -> 1.18
A58: ABUSE | B58: =_xlfn.XLOOKUP(tAllWordsExtended[[#This Row],[Word]], Table5[Word], Table5[Zipf Frequency], 0) -> 4.66
A59: ABUTS | B59: =_xlfn.XLOOKUP(tAllWordsExtended[[#This Row],[Word]], Table5[Word], Table5[Zipf Frequency], 0) -> 2.27
A60: ABUZZ | B60: =_xlfn.XLOOKUP(tAllWordsExtended[[#This Row],[Word]], Table5[Word], Table5[Zipf Frequency], 0) -> 2.3
A61: ABYES | B61: =_xlfn.XLOOKUP(tAllWordsExtended[[#This Row],[Word]], Table5[Word], Table5[Zipf Frequency], 0) -> 0
A62: ABYSM | B62: =_xlfn.XLOOKUP(tAllWordsExtended[[#This Row],[Word]], Table5[Word], Table5[Zipf Frequency], 0) -> 0
A63: ABYSS | B63: =_xlfn.XLOOKUP(tAllWordsExtended[[#This Row],[Word]], Table5[Word], Table5[Zipf Frequency], 0) -> 3.4
A64: ACAIS | B64: =_xlfn.XLOOKUP(tAllWordsExtended[[#This Row],[Word]], Table5[Word], Table5[Zipf Frequency], 0) -> 0
A65: ACARI | B65: =_xlfn.XLOOKUP(tAllWordsExtended[[#This Row],[Word]], Table5[Word], Table5[Zipf Frequency], 0) -> 1.79
A66: ACCAS | B66: =_xlfn.XLOOKUP(tAllWordsExtended[[#This Row],[Word]], Table5[Word], Table5[Zipf Frequency], 0) -> 0
A67: ACCOY | B67: =_xlfn.XLOOKUP(tAllWordsExtended[[#This Row],[Word]], Table5[Word], Table5[Zipf Frequency], 0) -> 0
A68: ACERB | B68: =_xlfn.XLOOKUP(tAllWordsExtended[[#This Row],[Word]], Table5[Word], Table5[Zipf Frequency], 0) -> 0
A69: ACERS | B69: =_xlfn.XLOOKUP(tAllWordsExtended[[#This Row],[Word]], Table5[Word], Table5[Zipf Frequency], 0) -> 1.46
A70: ACETA | B70: =_xlfn.XLOOKUP(tAllWordsExtended[[#This Row],[Word]], Table5[Word], Table5[Zipf Frequency], 0) -> 0
A71: ACHAR | B71: =_xlfn.XLOOKUP(tAllWordsExtended[[#This Row],[Word]], Table5[Word], Table5[Zipf Frequency], 0) -> 1.49
A72: ACHED | B72: =_xlfn.XLOOKUP(tAllWordsExtended[[#This Row],[Word]], Table5[Word], Table5[Zipf Frequency], 0) -> 2.41
A73: ACHES | B73: =_xlfn.XLOOKUP(tAllWordsExtended[[#This Row],[Word]], Table5[Word], Table5[Zipf Frequency], 0) -> 3.28
A74: ACHOO | B74: =_xlfn.XLOOKUP(tAllWordsExtended[[#This Row],[Word]], Table5[Word], Table5[Zipf Frequency], 0) -> 1.7
A75: ACIDS | B75: =_xlfn.XLOOKUP(tAllWordsExtended[[#This Row],[Word]], Table5[Word], Table5[Zipf Frequency], 0) -> 3.85
A76: ACIDY | B76: =_xlfn.XLOOKUP(tAllWordsExtended[[#This Row],[Word]], Table5[Word], Table5[Zipf Frequency], 0) -> 0
A77: ACING | B77: =_xlfn.XLOOKUP(tAllWordsExtended[[#This Row],[Word]], Table5[Word], Table5[Zipf Frequency], 0) -> 2.02
A78: ACINI | B78: =_xlfn.XLOOKUP(tAllWordsExtended[[#This Row],[Word]], Table5[Word], Table5[Zipf Frequency], 0) -> 1.12
A79: ACKEE | B79: =_xlfn.XLOOKUP(tAllWordsExtended[[#This Row],[Word]], Table5[Word], Table5[Zipf Frequency], 0) -> 1.6
A80: ACKER | B80: =_xlfn.XLOOKUP(tAllWordsExtended[[#This Row],[Word]], Table5[Word], Table5[Zipf Frequency], 0) -> 2.48
A81: ACMES | B81: =_xlfn.XLOOKUP(tAllWordsExtended[[#This Row],[Word]], Table5[Word], Table5[Zipf Frequency], 0) -> 0
A82: ACMIC | B82: =_xlfn.XLOOKUP(tAllWordsExtended[[#This Row],[Word]], Table5[Word], Table5[Zipf Frequency], 0) -> 0
A83: ACNED | B83: =_xlfn.XLOOKUP(tAllWordsExtended[[#This Row],[Word]], Table5[Word], Table5[Zipf Frequency], 0) -> 0
A84: ACNES | B84: =_xlfn.XLOOKUP(tAllWordsExtended[[#This Row],[Word]], Table5[Word], Table5[Zipf Frequency], 0) -> 1.66
A85: ACOCK | B85: =_xlfn.XLOOKUP(tAllWordsExtended[[#This Row],[Word]], Table5[Word], Table5[Zipf Frequency], 0) -> 1.08
A86: ACOLD | B86: =_xlfn.XLOOKUP(tAllWordsExtended[[#This Row],[Word]], Table5[Word], Table5[Zipf Frequency], 0) -> 0
A87: ACORN | B87: =_xlfn.XLOOKUP(tAllWordsExtended[[#This Row],[Word]], Table5[Word], Table5[Zipf Frequency], 0) -> 3.08
A88: ACRED | B88: =_xlfn.XLOOKUP(tAllWordsExtended[[#This Row],[Word]], Table5[Word], Table5[Zipf Frequency], 0) -> 0
A89: ACRES | B89: =_xlfn.XLOOKUP(tAllWordsExtended[[#This Row],[Word]], Table5[Word], Table5[Zipf Frequency], 0) -> 4.17
A90: ACRID | B90: =_xlfn.XLOOKUP(tAllWordsExtended[[#This Row],[Word]], Table5[Word], Table5[Zipf Frequency], 0) -> 2.37
A91: ACROS | B91: =_xlfn.XLOOKUP(tAllWordsExtended[[#This Row],[Word]], Table5[Word], Table5[Zipf Frequency], 0) -> 1.64
A92: ACTED | B92: =_xlfn.XLOOKUP(tAllWordsExtended[[#This Row],[Word]], Table5[Word], Table5[Zipf Frequency], 0) -> 4.28
A93: ACTIN | B93: =_xlfn.XLOOKUP(tAllWordsExtended[[#This Row],[Word]], Table5[Word], Table5[Zipf Frequency], 0) -> 3.14
A94: ACTON | B94: =_xlfn.XLOOKUP(tAllWordsExtended[[#This Row],[Word]], Table5[Word], Table5[Zipf Frequency], 0) -> 2.97
A95: ACTOR | B95: =_xlfn.XLOOKUP(tAllWordsExtended[[#This Row],[Word]], Table5[Word], Table5[Zipf Frequency], 0) -> 4.65
A96: ACUTE | B96: =_xlfn.XLOOKUP(tAllWordsExtended[[#This Row],[Word]], Table5[Word], Table5[Zipf Frequency], 0) -> 4
A97: ACYLS | B97: =_xlfn.XLOOKUP(tAllWordsExtended[[#This Row],[Word]], Table5[Word], Table5[Zipf Frequency], 0) -> 0
A98: ADAGE | B98: =_xlfn.XLOOKUP(tAllWordsExtended[[#This Row],[Word]], Table5[Word], Table5[Zipf Frequency], 0) -> 2.95
A99: ADAPT | B99: =_xlfn.XLOOKUP(tAllWordsExtended[[#This Row],[Word]], Table5[Word], Table5[Zipf Frequency], 0) -> 3.98
A100: ADAWS | B100: =_xlfn.XLOOKUP(tAllWordsExtended[[#This Row],[Word]], Table5[Word], Table5[Zipf Frequency], 0) -> 0
A101: ADAYS | B101: =_xlfn.XLOOKUP(tAllWordsExtended[[#This Row],[Word]], Table5[Word], Table5[Zipf Frequency], 0) -> 1.61
A102: ADBOT | B102: =_xlfn.XLOOKUP(tAllWordsExtended[[#This Row],[Word]], Table5[Word], Table5[Zipf Frequency], 0) -> 0
A103: ADDAX | B103: =_xlfn.XLOOKUP(tAllWordsExtended[[#This Row],[Word]], Table5[Word], Table5[Zipf Frequency], 0) -> 1.33
A104: ADDED | B104: =_xlfn.XLOOKUP(tAllWordsExtended[[#This Row],[Word]], Table5[Word], Table5[Zipf Frequency], 0) -> 5.16
A105: ADDER | B105: =_xlfn.XLOOKUP(tAllWordsExtended[[#This Row],[Word]], Table5[Word], Table5[Zipf Frequency], 0) -> 2.69
A106: ADDIO | B106: =_xlfn.XLOOKUP(tAllWordsExtended[[#This Row],[Word]], Table5[Word], Table5[Zipf Frequency], 0) -> 1.6
A107: ADDLE | B107: =_xlfn.XLOOKUP(tAllWordsExtended[[#This Row],[Word]], Table5[Word], Table5[Zipf Frequency], 0) -> 1.69
A108: ADEEM | B108: =_xlfn.XLOOKUP(tAllWordsExtended[[#This Row],[Word]], Table5[Word], Table5[Zipf Frequency], 0) -> 0
A109: ADEPT | B109: =_xlfn.XLOOKUP(tAllWordsExtended[[#This Row],[Word]], Table5[Word], Table5[Zipf Frequency], 0) -> 3.33
A110: ADHAN | B110: =_xlfn.XLOOKUP(tAllWordsExtended[[#This Row],[Word]], Table5[Word], Table5[Zipf Frequency], 0) -> 1.68
A111: ADIEU | B111: =_xlfn.XLOOKUP(tAllWordsExtended[[#This Row],[Word]], Table5[Word], Table5[Zipf Frequency], 0) -> 2.83
A112: ADIOS | B112: =_xlfn.XLOOKUP(tAllWordsExtended[[#This Row],[Word]], Table5[Word], Table5[Zipf Frequency], 0) -> 2.68
A113: ADITS | B113: =_xlfn.XLOOKUP(tAllWordsExtended[[#This Row],[Word]], Table5[Word], Table5[Zipf Frequency], 0) -> 1.4
A114: ADMAN | B114: =_xlfn.XLOOKUP(tAllWordsExtended[[#This Row],[Word]], Table5[Word], Table5[Zipf Frequency], 0) -> 1.51
A115: ADMEN | B115: =_xlfn.XLOOKUP(tAllWordsExtended[[#This Row],[Word]], Table5[Word], Table5[Zipf Frequency], 0) -> 1.11
A116: ADMIN | B116: =_xlfn.XLOOKUP(tAllWordsExtended[[#This Row],[Word]], Table5[Word], Table5[Zipf Frequency], 0) -> 3.92
A117: ADMIT | B117: =_xlfn.XLOOKUP(tAllWordsExtended[[#This Row],[Word]], Table5[Word], Table5[Zipf Frequency], 0) -> 4.58
A118: ADMIX | B118: =_xlfn.XLOOKUP(tAllWordsExtended[[#This Row],[Word]], Table5[Word], Table5[Zipf Frequency], 0) -> 0
A119: ADOBE | B119: =_xlfn.XLOOKUP(tAllWordsExtended[[#This Row],[Word]], Table5[Word], Table5[Zipf Frequency], 0) -> 3.53
A120: ADOBO | B120: =_xlfn.XLOOKUP(tAllWordsExtended[[#This Row],[Word]], Table5[Word], Table5[Zipf Frequency], 0) -> 2.14
A121: ADOPT | B121: =_xlfn.XLOOKUP(tAllWordsExtended[[#This Row],[Word]], Table5[Word], Table5[Zipf Frequency], 0) -> 4.19
A122: ADORE | B122: =_xlfn.XLOOKUP(tAllWordsExtended[[#This Row],[Word]], Table5[Word], Table5[Zipf Frequency], 0) -> 3.7
A123: ADORN | B123: =_xlfn.XLOOKUP(tAllWordsExtended[[#This Row],[Word]], Table5[Word], Table5[Zipf Frequency], 0) -> 3.01
A124: ADOWN | B124: =_xlfn.XLOOKUP(tAllWordsExtended[[#This Row],[Word]], Table5[Word], Table5[Zipf Frequency], 0) -> 1.59
A125: ADOZE | B125: =_xlfn.XLOOKUP(tAllWordsExtended[[#This Row],[Word]], Table5[Word], Table5[Zipf Frequency], 0) -> 0
A126: ADRAD | B126: =_xlfn.XLOOKUP(tAllWordsExtended[[#This Row],[Word]], Table5[Word], Table5[Zipf Frequency], 0) -> 0
A127: ADRED | B127: =_xlfn.XLOOKUP(tAllWordsExtended[[#This Row],[Word]], Table5[Word], Table5[Zipf Frequency], 0) -> 0
A128: ADSUM | B128: =_xlfn.XLOOKUP(tAllWordsExtended[[#This Row],[Word]], Table5[Word], Table5[Zipf Frequency], 0) -> 0
A129: ADUKI | B129: =_xlfn.XLOOKUP(tAllWordsExtended[[#This Row],[Word]], Table5[Word], Table5[Zipf Frequency], 0) -> 0
A130: ADULT | B130: =_xlfn.XLOOKUP(tAllWordsExtended[[#This Row],[Word]], Table5[Word], Table5[Zipf Frequency], 0) -> 4.8
A131: ADUNC | B131: =_xlfn.XLOOKUP(tAllWordsExtended[[#This Row],[Word]], Table5[Word], Table5[Zipf Frequency], 0) -> 0
A132: ADUST | B132: =_xlfn.XLOOKUP(tAllWordsExtended[[#This Row],[Word]], Table5[Word], Table5[Zipf Frequency], 0) -> 0
A133: ADVEW | B133: =_xlfn.XLOOKUP(tAllWordsExtended[[#This Row],[Word]], Table5[Word], Table5[Zipf Frequency], 0) -> 0
A134: ADYTA | B134: =_xlfn.XLOOKUP(tAllWordsExtended[[#This Row],[Word]], Table5[Word], Table5[Zipf Frequency], 0) -> 0
A135: ADZED | B135: =_xlfn.XLOOKUP(tAllWordsExtended[[#This Row],[Word]], Table5[Word], Table5[Zipf Frequency], 0) -> 0
A136: ADZES | B136: =_xlfn.XLOOKUP(tAllWordsExtended[[#This Row],[Word]], Table5[Word], Table5[Zipf Frequency], 0) -> 1.46
A137: AECIA | B137: =_xlfn.XLOOKUP(tAllWordsExtended[[#This Row],[Word]], Table5[Word], Table5[Zipf Frequency], 0) -> 0
A138: AEDES | B138: =_xlfn.XLOOKUP(tAllWordsExtended[[#This Row],[Word]], Table5[Word], Table5[Zipf Frequency], 0) -> 2.47
A139: AEGIS | B139: =_xlfn.XLOOKUP(tAllWordsExtended[[#This Row],[Word]], Table5[Word], Table5[Zipf Frequency], 0) -> 3.06
A140: AEONS | B140: =_xlfn.XLOOKUP(tAllWordsExtended[[#This Row],[Word]], Table5[Word], Table5[Zipf Frequency], 0) -> 2.24
A141: AERIE | B141: =_xlfn.XLOOKUP(tAllWordsExtended[[#This Row],[Word]], Table5[Word], Table5[Zipf Frequency], 0) -> 2.17
A142: AEROS | B142: =_xlfn.XLOOKUP(tAllWordsExtended[[#This Row],[Word]], Table5[Word], Table5[Zipf Frequency], 0) -> 1.63
A143: AESIR | B143: =_xlfn.XLOOKUP(tAllWordsExtended[[#This Row],[Word]], Table5[Word], Table5[Zipf Frequency], 0) -> 1.77
A144: AFALD | B144: =_xlfn.XLOOKUP(tAllWordsExtended[[#This Row],[Word]], Table5[Word], Table5[Zipf Frequency], 0) -> 0
A145: AFARA | B145: =_xlfn.XLOOKUP(tAllWordsExtended[[#This Row],[Word]], Table5[Word], Table5[Zipf Frequency], 0) -> 0
A146: AFARS | B146: =_xlfn.XLOOKUP(tAllWordsExtended[[#This Row],[Word]], Table5[Word], Table5[Zipf Frequency], 0) -> 1.04
A147: AFEAR | B147: =_xlfn.XLOOKUP(tAllWordsExtended[[#This Row],[Word]], Table5[Word], Table5[Zipf Frequency], 0) -> 0
A148: AFFIX | B148: =_xlfn.XLOOKUP(tAllWordsExtended[[#This Row],[Word]], Table5[Word], Table5[Zipf Frequency], 0) -> 2.63
A149: AFIRE | B149: =_xlfn.XLOOKUP(tAllWordsExtended[[#This Row],[Word]], Table5[Word], Table5[Zipf Frequency], 0) -> 2.46
A150: AFLAJ | B150: =_xlfn.XLOOKUP(tAllWordsExtended[[#This Row],[Word]], Table5[Word], Table5[Zipf Frequency], 0) -> 0
A151: AFOOT | B151: =_xlfn.XLOOKUP(tAllWordsExtended[[#This Row],[Word]], Table5[Word], Table5[Zipf Frequency], 0) -> 2.89
A152: AFORE | B152: =_xlfn.XLOOKUP(tAllWordsExtended[[#This Row],[Word]], Table5[Word], Table5[Zipf Frequency], 0) -> 2.42
A153: AFOUL | B153: =_xlfn.XLOOKUP(tAllWordsExtended[[#This Row],[Word]], Table5[Word], Table5[Zipf Frequency], 0) -> 2.63
A154: AFRIT | B154: =_xlfn.XLOOKUP(tAllWordsExtended[[#This Row],[Word]], Table5[Word], Table5[Zipf Frequency], 0) -> 0
A155: AFROS | B155: =_xlfn.XLOOKUP(tAllWordsExtended[[#This Row],[Word]], Table5[Word], Table5[Zipf Frequency], 0) -> 1.79
A156: AFTER | B156: =_xlfn.XLOOKUP(tAllWordsExtended[[#This Row],[Word]], Table5[Word], Table5[Zipf Frequency], 0) -> 6.11
A157: AGAIN | B157: =_xlfn.XLOOKUP(tAllWordsExtended[[#This Row],[Word]], Table5[Word], Table5[Zipf Frequency], 0) -> 5.7
A158: AGAMA | B158: =_xlfn.XLOOKUP(tAllWordsExtended[[#This Row],[Word]], Table5[Word], Table5[Zipf Frequency], 0) -> 1.98
A159: AGAMI | B159: =_xlfn.XLOOKUP(tAllWordsExtended[[#This Row],[Word]], Table5[Word], Table5[Zipf Frequency], 0) -> 1.1
A160: AGAPE | B160: =_xlfn.XLOOKUP(tAllWordsExtended[[#This Row],[Word]], Table5[Word], Table5[Zipf Frequency], 0) -> 2.65
A161: AGARS | B161: =_xlfn.XLOOKUP(tAllWordsExtended[[#This Row],[Word]], Table5[Word], Table5[Zipf Frequency], 0) -> 0
A162: AGAST | B162: =_xlfn.XLOOKUP(tAllWordsExtended[[#This Row],[Word]], Table5[Word], Table5[Zipf Frequency], 0) -> 0
A163: AGATE | B163: =_xlfn.XLOOKUP(tAllWordsExtended[[#This Row],[Word]], Table5[Word], Table5[Zipf Frequency], 0) -> 2.81
A164: AGAVE | B164: =_xlfn.XLOOKUP(tAllWordsExtended[[#This Row],[Word]], Table5[Word], Table5[Zipf Frequency], 0) -> 2.74
A165: AGAZE | B165: =_xlfn.XLOOKUP(tAllWordsExtended[[#This Row],[Word]], Table5[Word], Table5[Zipf Frequency], 0) -> 0
A166: AGENE | B166: =_xlfn.XLOOKUP(tAllWordsExtended[[#This Row],[Word]], Table5[Word], Table5[Zipf Frequency], 0) -> 0
A167: AGENT | B167: =_xlfn.XLOOKUP(tAllWordsExtended[[#This Row],[Word]], Table5[Word], Table5[Zipf Frequency], 0) -> 4.81
A168: AGERS | B168: =_xlfn.XLOOKUP(tAllWordsExtended[[#This Row],[Word]], Table5[Word], Table5[Zipf Frequency], 0) -> 2.21
A169: AGGER | B169: =_xlfn.XLOOKUP(tAllWordsExtended[[#This Row],[Word]], Table5[Word], Table5[Zipf Frequency], 0) -> 2.29
A170: AGGIE | B170: =_xlfn.XLOOKUP(tAllWordsExtended[[#This Row],[Word]], Table5[Word], Table5[Zipf Frequency], 0) -> 2.85
A171: AGGRI | B171: =_xlfn.XLOOKUP(tAllWordsExtended[[#This Row],[Word]], Table5[Word], Table5[Zipf Frequency], 0) -> 0
A172: AGGRO | B172: =_xlfn.XLOOKUP(tAllWordsExtended[[#This Row],[Word]], Table5[Word], Table5[Zipf Frequency], 0) -> 2.46
A173: AGGRY | B173: =_xlfn.XLOOKUP(tAllWordsExtended[[#This Row],[Word]], Table5[Word], Table5[Zipf Frequency], 0) -> 0
A174: AGHAS | B174: =_xlfn.XLOOKUP(tAllWordsExtended[[#This Row],[Word]], Table5[Word], Table5[Zipf Frequency], 0) -> 0
A175: AGILA | B175: =_xlfn.XLOOKUP(tAllWordsExtended[[#This Row],[Word]], Table5[Word], Table5[Zipf Frequency], 0) -> 1.33
A176: AGILE | B176: =_xlfn.XLOOKUP(tAllWordsExtended[[#This Row],[Word]], Table5[Word], Table5[Zipf Frequency], 0) -> 3.41
A177: AGING | B177: =_xlfn.XLOOKUP(tAllWordsExtended[[#This Row],[Word]], Table5[Word], Table5[Zipf Frequency], 0) -> 4.04
A178: AGIOS | B178: =_xlfn.XLOOKUP(tAllWordsExtended[[#This Row],[Word]], Table5[Word], Table5[Zipf Frequency], 0) -> 1.99
A179: AGISM | B179: =_xlfn.XLOOKUP(tAllWordsExtended[[#This Row],[Word]], Table5[Word], Table5[Zipf Frequency], 0) -> 0
A180: AGIST | B180: =_xlfn.XLOOKUP(tAllWordsExtended[[#This Row],[Word]], Table5[Word], Table5[Zipf Frequency], 0) -> 0
A181: AGITA | B181: =_xlfn.XLOOKUP(tAllWordsExtended[[#This Row],[Word]], Table5[Word], Table5[Zipf Frequency], 0) -> 1.39
A182: AGLEE | B182: =_xlfn.XLOOKUP(tAllWordsExtended[[#This Row],[Word]], Table5[Word], Table5[Zipf Frequency], 0) -> 0
A183: AGLET | B183: =_xlfn.XLOOKUP(tAllWordsExtended[[#This Row],[Word]], Table5[Word], Table5[Zipf Frequency], 0) -> 1.32
A184: AGLEY | B184: =_xlfn.XLOOKUP(tAllWordsExtended[[#This Row],[Word]], Table5[Word], Table5[Zipf Frequency], 0) -> 0
A185: AGLOO | B185: =_xlfn.XLOOKUP(tAllWordsExtended[[#This Row],[Word]], Table5[Word], Table5[Zipf Frequency], 0) -> 0
A186: AGLOW | B186: =_xlfn.XLOOKUP(tAllWordsExtended[[#This Row],[Word]], Table5[Word], Table5[Zipf Frequency], 0) -> 2.21
A187: AGLUS | B187: =_xlfn.XLOOKUP(tAllWordsExtended[[#This Row],[Word]], Table5[Word], Table5[Zipf Frequency], 0) -> 0
A188: AGMAS | B188: =_xlfn.XLOOKUP(tAllWordsExtended[[#This Row],[Word]], Table5[Word], Table5[Zipf Frequency], 0) -> 0
A189: AGOGE | B189: =_xlfn.XLOOKUP(tAllWordsExtended[[#This Row],[Word]], Table5[Word], Table5[Zipf Frequency], 0) -> 1.07
A190: AGONE | B190: =_xlfn.XLOOKUP(tAllWordsExtended[[#This Row],[Word]], Table5[Word], Table5[Zipf Frequency], 0) -> 1.56
A191: AGONS | B191: =_xlfn.XLOOKUP(tAllWordsExtended[[#This Row],[Word]], Table5[Word], Table5[Zipf Frequency], 0) -> 0
A192: AGONY | B192: =_xlfn.XLOOKUP(tAllWordsExtended[[#This Row],[Word]], Table5[Word], Table5[Zipf Frequency], 0) -> 3.6
A193: AGOOD | B193: =_xlfn.XLOOKUP(tAllWordsExtended[[#This Row],[Word]], Table5[Word], Table5[Zipf Frequency], 0) -> 1.69
A194: AGORA | B194: =_xlfn.XLOOKUP(tAllWordsExtended[[#This Row],[Word]], Table5[Word], Table5[Zipf Frequency], 0) -> 2.72
A195: AGREE | B195: =_xlfn.XLOOKUP(tAllWordsExtended[[#This Row],[Word]], Table5[Word], Table5[Zipf Frequency], 0) -> 4.97
A196: AGRIA | B196: =_xlfn.XLOOKUP(tAllWordsExtended[[#This Row],[Word]], Table5[Word], Table5[Zipf Frequency], 0) -> 1.14
A197: AGRIN | B197: =_xlfn.XLOOKUP(tAllWordsExtended[[#This Row],[Word]], Table5[Word], Table5[Zipf Frequency], 0) -> 1.14
A198: AGROS | B198: =_xlfn.XLOOKUP(tAllWordsExtended[[#This Row],[Word]], Table5[Word], Table5[Zipf Frequency], 0) -> 1.22
A199: AGUED | B199: =_xlfn.XLOOKUP(tAllWordsExtended[[#This Row],[Word]], Table5[Word], Table5[Zipf Frequency], 0) -> 0
A200: AGUES | B200: =_xlfn.XLOOKUP(tAllWordsExtended[[#This Row],[Word]], Table5[Word], Table5[Zipf Frequency], 0) -> 0
... 12716 more rows

Sheet Word Frequency (hidden)
A1: Word | B1: Zipf Frequency | C1: Frequency Tier
A2: AAHED | B2: 0 | C2: Not in corpus
A3: AALII | B3: 0 | C3: Not in corpus
A4: AARGH | B4: 1.83 | C4: Extremely rare
A5: AARTI | B5: 2.23 | C5: Very rare
A6: ABACA | B6: 1.77 | C6: Extremely rare
A7: ABACI | B7: 1.19 | C7: Extremely rare
A8: ABACK | B8: 2.99 | C8: Very rare
A9: ABACS | B9: 0 | C9: Not in corpus
A10: ABAFT | B10: 1.8 | C10: Extremely rare
A11: ABAKA | B11: 0 | C11: Not in corpus
A12: ABAMP | B12: 0 | C12: Not in corpus
A13: ABAND | B13: 1.2 | C13: Extremely rare
A14: ABASE | B14: 1.56 | C14: Extremely rare
A15: ABASH | B15: 1.02 | C15: Extremely rare
A16: ABASK | B16: 0 | C16: Not in corpus
A17: ABATE | B17: 2.68 | C17: Very rare
A18: ABAYA | B18: 2.24 | C18: Very rare
A19: ABBAS | B19: 3.41 | C19: Uncommon
A20: ABBED | B20: 0 | C20: Not in corpus
A21: ABBES | B21: 1.21 | C21: Extremely rare
A22: ABBEY | B22: 3.88 | C22: Uncommon
A23: ABBOT | B23: 3.43 | C23: Uncommon
A24: ABCEE | B24: 0 | C24: Not in corpus
A25: ABEAM | B25: 1.75 | C25: Extremely rare
A26: ABEAR | B26: 0 | C26: Not in corpus
A27: ABELE | B27: 1.77 | C27: Extremely rare
A28: ABERS | B28: 1.09 | C28: Extremely rare
A29: ABETS | B29: 1.62 | C29: Extremely rare
A30: ABHOR | B30: 2.64 | C30: Very rare
A31: ABIDE | B31: 3.59 | C31: Uncommon
A32: ABIES | B32: 2.23 | C32: Very rare
A33: ABLED | B33: 2.29 | C33: Very rare
A34: ABLER | B34: 1.29 | C34: Extremely rare
A35: ABLES | B35: 1.73 | C35: Extremely rare
A36: ABLET | B36: 0 | C36: Not in corpus
A37: ABLOW | B37: 1.56 | C37: Extremely rare
A38: ABMHO | B38: 0 | C38: Not in corpus
A39: ABODE | B39: 3.13 | C39: Uncommon
A40: ABOHM | B40: 0 | C40: Not in corpus
A41: ABOIL | B41: 0 | C41: Not in corpus
A42: ABOMA | B42: 0 | C42: Not in corpus
A43: ABOON | B43: 0 | C43: Not in corpus
A44: ABORD | B44: 1.5 | C44: Extremely rare
A45: ABORE | B45: 0 | C45: Not in corpus
A46: ABORT | B46: 3.27 | C46: Uncommon
A47: ABOUT | B47: 6.4 | C47: Very common
A48: ABOVE | B48: 5.2 | C48: Common
A49: ABRAM | B49: 2.9 | C49: Very rare
A50: ABRAY | B50: 0 | C50: Not in corpus
A51: ABRIM | B51: 0 | C51: Not in corpus
A52: ABRIN | B52: 1.12 | C52: Extremely rare
A53: ABRIS | B53: 0 | C53: Not in corpus
A54: ABSEY | B54: 0 | C54: Not in corpus
A55: ABSIT | B55: 0 | C55: Not in corpus
A56: ABUNA | B56: 1.11 | C56: Extremely rare
A57: ABUNE | B57: 1.18 | C57: Extremely rare
A58: ABUSE | B58: 4.66 | C58: Moderate
A59: ABUTS | B59: 2.27 | C59: Very rare
A60: ABUZZ | B60: 2.3 | C60: Very rare
A61: ABYES | B61: 0 | C61: Not in corpus
A62: ABYSM | B62: 0 | C62: Not in corpus
A63: ABYSS | B63: 3.4 | C63: Uncommon
A64: ACAIS | B64: 0 | C64: Not in corpus
A65: ACARI | B65: 1.79 | C65: Extremely rare
A66: ACCAS | B66: 0 | C66: Not in corpus
A67: ACCOY | B67: 0 | C67: Not in corpus
A68: ACERB | B68: 0 | C68: Not in corpus
A69: ACERS | B69: 1.46 | C69: Extremely rare
A70: ACETA | B70: 0 | C70: Not in corpus
A71: ACHAR | B71: 1.49 | C71: Extremely rare
A72: ACHED | B72: 2.41 | C72: Very rare
A73: ACHES | B73: 3.28 | C73: Uncommon
A74: ACHOO | B74: 1.7 | C74: Extremely rare
A75: ACIDS | B75: 3.85 | C75: Uncommon
A76: ACIDY | B76: 0 | C76: Not in corpus
A77: ACING | B77: 2.02 | C77: Very rare
A78: ACINI | B78: 1.12 | C78: Extremely rare
A79: ACKEE | B79: 1.6 | C79: Extremely rare
A80: ACKER | B80: 2.48 | C80: Very rare
A81: ACMES | B81: 0 | C81: Not in corpus
A82: ACMIC | B82: 0 | C82: Not in corpus
A83: ACNED | B83: 0 | C83: Not in corpus
A84: ACNES | B84: 1.66 | C84: Extremely rare
A85: ACOCK | B85: 1.08 | C85: Extremely rare
A86: ACOLD | B86: 0 | C86: Not in corpus
A87: ACORN | B87: 3.08 | C87: Uncommon
A88: ACRED | B88: 0 | C88: Not in corpus
A89: ACRES | B89: 4.17 | C89: Moderate
A90: ACRID | B90: 2.37 | C90: Very rare
A91: ACROS | B91: 1.64 | C91: Extremely rare
A92: ACTED | B92: 4.28 | C92: Moderate
A93: ACTIN | B93: 3.14 | C93: Uncommon
A94: ACTON | B94: 2.97 | C94: Very rare
A95: ACTOR | B95: 4.65 | C95: Moderate
A96: ACUTE | B96: 4 | C96: Moderate
A97: ACYLS | B97: 0 | C97: Not in corpus
A98: ADAGE | B98: 2.95 | C98: Very rare
A99: ADAPT | B99: 3.98 | C99: Uncommon
A100: ADAWS | B100: 0 | C100: Not in corpus
A101: ADAYS | B101: 1.61 | C101: Extremely rare
A102: ADBOT | B102: 0 | C102: Not in corpus
A103: ADDAX | B103: 1.33 | C103: Extremely rare
A104: ADDED | B104: 5.16 | C104: Common
A105: ADDER | B105: 2.69 | C105: Very rare
A106: ADDIO | B106: 1.6 | C106: Extremely rare
A107: ADDLE | B107: 1.69 | C107: Extremely rare
A108: ADEEM | B108: 0 | C108: Not in corpus
A109: ADEPT | B109: 3.33 | C109: Uncommon
A110: ADHAN | B110: 1.68 | C110: Extremely rare
A111: ADIEU | B111: 2.83 | C111: Very rare
A112: ADIOS | B112: 2.68 | C112: Very rare
A113: ADITS | B113: 1.4 | C113: Extremely rare
A114: ADMAN | B114: 1.51 | C114: Extremely rare
A115: ADMEN | B115: 1.11 | C115: Extremely rare
A116: ADMIN | B116: 3.92 | C116: Uncommon
A117: ADMIT | B117: 4.58 | C117: Moderate
A118: ADMIX | B118: 0 | C118: Not in corpus
A119: ADOBE | B119: 3.53 | C119: Uncommon
A120: ADOBO | B120: 2.14 | C120: Very rare
A121: ADOPT | B121: 4.19 | C121: Moderate
A122: ADORE | B122: 3.7 | C122: Uncommon
A123: ADORN | B123: 3.01 | C123: Uncommon
A124: ADOWN | B124: 1.59 | C124: Extremely rare
A125: ADOZE | B125: 0 | C125: Not in corpus
A126: ADRAD | B126: 0 | C126: Not in corpus
A127: ADRED | B127: 0 | C127: Not in corpus
A128: ADSUM | B128: 0 | C128: Not in corpus
A129: ADUKI | B129: 0 | C129: Not in corpus
A130: ADULT | B130: 4.8 | C130: Moderate
A131: ADUNC | B131: 0 | C131: Not in corpus
A132: ADUST | B132: 0 | C132: Not in corpus
A133: ADVEW | B133: 0 | C133: Not in corpus
A134: ADYTA | B134: 0 | C134: Not in corpus
A135: ADZED | B135: 0 | C135: Not in corpus
A136: ADZES | B136: 1.46 | C136: Extremely rare
A137: AECIA | B137: 0 | C137: Not in corpus
A138: AEDES | B138: 2.47 | C138: Very rare
A139: AEGIS | B139: 3.06 | C139: Uncommon
A140: AEONS | B140: 2.24 | C140: Very rare
A141: AERIE | B141: 2.17 | C141: Very rare
A142: AEROS | B142: 1.63 | C142: Extremely rare
A143: AESIR | B143: 1.77 | C143: Extremely rare
A144: AFALD | B144: 0 | C144: Not in corpus
A145: AFARA | B145: 0 | C145: Not in corpus
A146: AFARS | B146: 1.04 | C146: Extremely rare
A147: AFEAR | B147: 0 | C147: Not in corpus
A148: AFFIX | B148: 2.63 | C148: Very rare
A149: AFIRE | B149: 2.46 | C149: Very rare
A150: AFLAJ | B150: 0 | C150: Not in corpus
A151: AFOOT | B151: 2.89 | C151: Very rare
A152: AFORE | B152: 2.42 | C152: Very rare
A153: AFOUL | B153: 2.63 | C153: Very rare
A154: AFRIT | B154: 0 | C154: Not in corpus
A155: AFROS | B155: 1.79 | C155: Extremely rare
A156: AFTER | B156: 6.11 | C156: Very common
A157: AGAIN | B157: 5.7 | C157: Common
A158: AGAMA | B158: 1.98 | C158: Extremely rare
A159: AGAMI | B159: 1.1 | C159: Extremely rare
A160: AGAPE | B160: 2.65 | C160: Very rare
A161: AGARS | B161: 0 | C161: Not in corpus
A162: AGAST | B162: 0 | C162: Not in corpus
A163: AGATE | B163: 2.81 | C163: Very rare
A164: AGAVE | B164: 2.74 | C164: Very rare
A165: AGAZE | B165: 0 | C165: Not in corpus
A166: AGENE | B166: 0 | C166: Not in corpus
A167: AGENT | B167: 4.81 | C167: Moderate
A168: AGERS | B168: 2.21 | C168: Very rare
A169: AGGER | B169: 2.29 | C169: Very rare
A170: AGGIE | B170: 2.85 | C170: Very rare
A171: AGGRI | B171: 0 | C171: Not in corpus
A172: AGGRO | B172: 2.46 | C172: Very rare
A173: AGGRY | B173: 0 | C173: Not in corpus
A174: AGHAS | B174: 0 | C174: Not in corpus
A175: AGILA | B175: 1.33 | C175: Extremely rare
A176: AGILE | B176: 3.41 | C176: Uncommon
A177: AGING | B177: 4.04 | C177: Moderate
A178: AGIOS | B178: 1.99 | C178: Extremely rare
A179: AGISM | B179: 0 | C179: Not in corpus
A180: AGIST | B180: 0 | C180: Not in corpus
A181: AGITA | B181: 1.39 | C181: Extremely rare
A182: AGLEE | B182: 0 | C182: Not in corpus
A183: AGLET | B183: 1.32 | C183: Extremely rare
A184: AGLEY | B184: 0 | C184: Not in corpus
A185: AGLOO | B185: 0 | C185: Not in corpus
A186: AGLOW | B186: 2.21 | C186: Very rare
A187: AGLUS | B187: 0 | C187: Not in corpus
A188: AGMAS | B188: 0 | C188: Not in corpus
A189: AGOGE | B189: 1.07 | C189: Extremely rare
A190: AGONE | B190: 1.56 | C190: Extremely rare
A191: AGONS | B191: 0 | C191: Not in corpus
A192: AGONY | B192: 3.6 | C192: Uncommon
A193: AGOOD | B193: 1.69 | C193: Extremely rare
A194: AGORA | B194: 2.72 | C194: Very rare
A195: AGREE | B195: 4.97 | C195: Moderate
A196: AGRIA | B196: 1.14 | C196: Extremely rare
A197: AGRIN | B197: 1.14 | C197: Extremely rare
A198: AGROS | B198: 1.22 | C198: Extremely rare
A199: AGUED | B199: 0 | C199: Not in corpus
A200: AGUES | B200: 0 | C200: Not in corpus
... 12716 more rows

Sheet Used Words HTML Text (hidden)
A1: HTMLText

Sheet Used Words List (hidden)
A1: =_xlfn.LET( _xlpm.Words, _xlfn.TEXTSPLIT(_xlfn.TEXTBEFORE(_xlfn.TEXTAFTER(tHTMLText[HTMLText], "All Wordle answers"), "Wordle"), , CHAR(10)), _xlfn._xlws.FILTER(_xlpm.Words, LEN(_xlpm.Words) > 0) ) -> ABACK
A2: ABASE
A3: ABATE
A4: ABBEY
A5: ABBOT
A6: ABHOR
A7: ABIDE
A8: ABOUT
A9: ABOVE
A10: ABYSS
A11: ACORN
A12: ACRID
A13: ACTOR
A14: ACUTE
A15: ADAGE
A16: ADAPT
A17: ADEPT
A18: ADMIN
A19: ADMIT
A20: ADOBE
A21: ADOPT
A22: ADORE
A23: ADULT
A24: AFFIX
A25: AFOOT
A26: AFTER
A27: AGAIN
A28: AGAPE
A29: AGATE
A30: AGENT
A31: AGILE
A32: AGING
A33: AGLOW
A34: AGONY
A35: AGREE
A36: AHEAD
A37: AISLE
A38: ALARM
A39: ALBUM
A40: ALERT
A41: ALIBI
A42: ALIEN
A43: ALIGN
A44: ALIKE
A45: ALIVE
A46: ALLOT
A47: ALLOW
A48: ALLOY
A49: ALOFT
A50: ALONE
A51: ALONG
A52: ALOOF
A53: ALOUD
A54: ALLEY
A55: ALPHA
A56: ALTAR
A57: ALTER
A58: AMASS
A59: AMAZE
A60: AMBER
A61: AMBLE
A62: AMEND
A63: AMISS
A64: AMONG
A65: AMPLE
A66: AMPLY
A67: AMUSE
A68: ANGEL
A69: ANGER
A70: ANGLE
A71: ANGRY
A72: ANGST
A73: ANKLE
A74: ANNEX
A75: ANNOY
A76: ANODE
A77: ANTIC
A78: ANVIL
A79: AORTA
A80: APART
A81: APHID
A82: APPLE
A83: APPLY
A84: APRON
A85: APTLY
A86: ARBOR
A87: ARDOR
A88: ARGUE
A89: ARISE
A90: AROMA
A91: ARROW
A92: ARTSY
A93: ASCOT
A94: ASHEN
A95: ASIDE
A96: ASKEW
A97: ASSAY
A98: ASSET
A99: ATLAS
A100: ATOLL
A101: ATONE
A102: ATRIA
A103: ATTIC
A104: AUDIO
A105: AUDIT
A106: AVAIL
A107: AVERT
A108: AVIAN
A109: AVOID
A110: AWAIT
A111: AWARD
A112: AWAKE
A113: AWARE
A114: AWASH
A115: AWFUL
A116: AWOKE
A117: AXIOM
A118: AZURE
A119: BACON
A120: BADGE
A121: BADLY
A122: BAGEL
A123: BAKER
A124: BALER
A125: BALMY
A126: BALSA
A127: BANAL
A128: BANJO
A129: BARGE
A130: BARON
A131: BASIC
A132: BASIL
A133: BASIN
A134: BASIS
A135: BASTE
A136: BATON
A137: BATCH
A138: BATHE
A139: BATTY
A140: BAWDY
A141: BAYOU
A142: BEACH
A143: BEADY
A144: BEARD
A145: BEAST
A146: BEAUT
A147: BEEFY
A148: BEFIT
A149: BEGET
A150: BEGIN
A151: BEGUN
A152: BEING
A153: BELCH
A154: BELIE
A155: BELLE
A156: BELLY
A157: BELOW
A158: BENCH
A159: BERET
A160: BERTH
A161: BESET
A162: BEVEL
A163: BICEP
A164: BILGE
A165: BINGE
A166: BIOME
A167: BIRCH
A168: BIRTH
A169: BLACK
A170: BLADE
A171: BLAME
A172: BLAND
A173: BLANK
A174: BLARE
A175: BLAST
A176: BLAZE
A177: BLEAK
A178: BLEAT
A179: BLEED
A180: BLEEP
A181: BLEND
A182: BLIMP
A183: BLINK
A184: BLISS
A185: BLOCK
A186: BLOKE
A187: BLOND
A188: BLOOM
A189: BLOWN
A190: BLUFF
A191: BLUNT
A192: BLURB
A193: BLURT
A194: BLUSH
A195: BOARD
A196: BOAST
A197: BONGO
A198: BONUS
A199: BOOBY
A200: BOOST
... 1637 more rows

Sheet Letter Usage (hidden)
A1: Letter | B1: Weight All Words | C1: Count | D1: Weight Five Letter Words | F1: All Words
A2: E | B2: 56.88 | C2: =COUNTIF(_xlfn.ANCHORARRAY($G$2),tLetterUsage[[#This Row],[Letter]]) -> 1229 | D2: =tLetterUsage[[#This Row],[Count]]/MIN(tLetterUsage[Count]) -> 45.51851852 | F2: =tAllWords[Word] -> ABACK | G2: =MID(_xlfn.ANCHORARRAY(F2),_xlfn.SEQUENCE(1,5),1) -> A | H2: B | I2: A | J2: C | K2: K
A3: A | B3: 43.31 | C3: =COUNTIF(_xlfn.ANCHORARRAY($G$2),tLetterUsage[[#This Row],[Letter]]) -> 975 | D3: =tLetterUsage[[#This Row],[Count]]/MIN(tLetterUsage[Count]) -> 36.11111111 | F3: ABASE | G3: A | H3: B | I3: A | J3: S | K3: E
A4: R | B4: 38.64 | C4: =COUNTIF(_xlfn.ANCHORARRAY($G$2),tLetterUsage[[#This Row],[Letter]]) -> 897 | D4: =tLetterUsage[[#This Row],[Count]]/MIN(tLetterUsage[Count]) -> 33.22222222 | F4: ABATE | G4: A | H4: B | I4: A | J4: T | K4: E
A5: I | B5: 38.45 | C5: =COUNTIF(_xlfn.ANCHORARRAY($G$2),tLetterUsage[[#This Row],[Letter]]) -> 670 | D5: =tLetterUsage[[#This Row],[Count]]/MIN(tLetterUsage[Count]) -> 24.81481481 | F5: ABBEY | G5: A | H5: B | I5: B | J5: E | K5: Y
A6: O | B6: 36.51 | C6: =COUNTIF(_xlfn.ANCHORARRAY($G$2),tLetterUsage[[#This Row],[Letter]]) -> 755 | D6: =tLetterUsage[[#This Row],[Count]]/MIN(tLetterUsage[Count]) -> 27.96296296 | F6: ABBOT | G6: A | H6: B | I6: B | J6: O | K6: T
A7: T | B7: 35.43 | C7: =COUNTIF(_xlfn.ANCHORARRAY($G$2),tLetterUsage[[#This Row],[Letter]]) -> 728 | D7: =tLetterUsage[[#This Row],[Count]]/MIN(tLetterUsage[Count]) -> 26.96296296 | F7: ABHOR | G7: A | H7: B | I7: H | J7: O | K7: R
A8: N | B8: 33.92 | C8: =COUNTIF(_xlfn.ANCHORARRAY($G$2),tLetterUsage[[#This Row],[Letter]]) -> 573 | D8: =tLetterUsage[[#This Row],[Count]]/MIN(tLetterUsage[Count]) -> 21.22222222 | F8: ABIDE | G8: A | H8: B | I8: I | J8: D | K8: E
A9: S | B9: 29.23 | C9: =COUNTIF(_xlfn.ANCHORARRAY($G$2),tLetterUsage[[#This Row],[Letter]]) -> 667 | D9: =tLetterUsage[[#This Row],[Count]]/MIN(tLetterUsage[Count]) -> 24.7037037 | F9: ABLED | G9: A | H9: B | I9: L | J9: E | K9: D
A10: L | B10: 27.98 | C10: =COUNTIF(_xlfn.ANCHORARRAY($G$2),tLetterUsage[[#This Row],[Letter]]) -> 716 | D10: =tLetterUsage[[#This Row],[Count]]/MIN(tLetterUsage[Count]) -> 26.51851852 | F10: ABODE | G10: A | H10: B | I10: O | J10: D | K10: E
A11: C | B11: 23.13 | C11: =COUNTIF(_xlfn.ANCHORARRAY($G$2),tLetterUsage[[#This Row],[Letter]]) -> 475 | D11: =tLetterUsage[[#This Row],[Count]]/MIN(tLetterUsage[Count]) -> 17.59259259 | F11: ABORT | G11: A | H11: B | I11: O | J11: R | K11: T
A12: U | B12: 18.51 | C12: =COUNTIF(_xlfn.ANCHORARRAY($G$2),tLetterUsage[[#This Row],[Letter]]) -> 466 | D12: =tLetterUsage[[#This Row],[Count]]/MIN(tLetterUsage[Count]) -> 17.25925926 | F12: ABOUT | G12: A | H12: B | I12: O | J12: U | K12: T
A13: D | B13: 17.25 | C13: =COUNTIF(_xlfn.ANCHORARRAY($G$2),tLetterUsage[[#This Row],[Letter]]) -> 393 | D13: =tLetterUsage[[#This Row],[Count]]/MIN(tLetterUsage[Count]) -> 14.55555556 | F13: ABOVE | G13: A | H13: B | I13: O | J13: V | K13: E
A14: P | B14: 16.14 | C14: =COUNTIF(_xlfn.ANCHORARRAY($G$2),tLetterUsage[[#This Row],[Letter]]) -> 365 | D14: =tLetterUsage[[#This Row],[Count]]/MIN(tLetterUsage[Count]) -> 13.51851852 | F14: ABUSE | G14: A | H14: B | I14: U | J14: S | K14: E
A15: M | B15: 15.36 | C15: =COUNTIF(_xlfn.ANCHORARRAY($G$2),tLetterUsage[[#This Row],[Letter]]) -> 316 | D15: =tLetterUsage[[#This Row],[Count]]/MIN(tLetterUsage[Count]) -> 11.7037037 | F15: ABYSS | G15: A | H15: B | I15: Y | J15: S | K15: S
A16: H | B16: 15.31 | C16: =COUNTIF(_xlfn.ANCHORARRAY($G$2),tLetterUsage[[#This Row],[Letter]]) -> 387 | D16: =tLetterUsage[[#This Row],[Count]]/MIN(tLetterUsage[Count]) -> 14.33333333 | F16: ACORN | G16: A | H16: C | I16: O | J16: R | K16: N
A17: G | B17: 12.59 | C17: =COUNTIF(_xlfn.ANCHORARRAY($G$2),tLetterUsage[[#This Row],[Letter]]) -> 310 | D17: =tLetterUsage[[#This Row],[Count]]/MIN(tLetterUsage[Count]) -> 11.48148148 | F17: ACRID | G17: A | H17: C | I17: R | J17: I | K17: D
A18: B | B18: 10.56 | C18: =COUNTIF(_xlfn.ANCHORARRAY($G$2),tLetterUsage[[#This Row],[Letter]]) -> 279 | D18: =tLetterUsage[[#This Row],[Count]]/MIN(tLetterUsage[Count]) -> 10.33333333 | F18: ACTOR | G18: A | H18: C | I18: T | J18: O | K18: R
A19: F | B19: 9.24 | C19: =COUNTIF(_xlfn.ANCHORARRAY($G$2),tLetterUsage[[#This Row],[Letter]]) -> 229 | D19: =tLetterUsage[[#This Row],[Count]]/MIN(tLetterUsage[Count]) -> 8.481481481 | F19: ACUTE | G19: A | H19: C | I19: U | J19: T | K19: E
A20: Y | B20: 9.06 | C20: =COUNTIF(_xlfn.ANCHORARRAY($G$2),tLetterUsage[[#This Row],[Letter]]) -> 424 | D20: =tLetterUsage[[#This Row],[Count]]/MIN(tLetterUsage[Count]) -> 15.7037037 | F20: ADAGE | G20: A | H20: D | I20: A | J20: G | K20: E
A21: W | B21: 6.57 | C21: =COUNTIF(_xlfn.ANCHORARRAY($G$2),tLetterUsage[[#This Row],[Letter]]) -> 194 | D21: =tLetterUsage[[#This Row],[Count]]/MIN(tLetterUsage[Count]) -> 7.185185185 | F21: ADAPT | G21: A | H21: D | I21: A | J21: P | K21: T
A22: K | B22: 5.61 | C22: =COUNTIF(_xlfn.ANCHORARRAY($G$2),tLetterUsage[[#This Row],[Letter]]) -> 211 | D22: =tLetterUsage[[#This Row],[Count]]/MIN(tLetterUsage[Count]) -> 7.814814815 | F22: ADEPT | G22: A | H22: D | I22: E | J22: P | K22: T
A23: V | B23: 5.13 | C23: =COUNTIF(_xlfn.ANCHORARRAY($G$2),tLetterUsage[[#This Row],[Letter]]) -> 152 | D23: =tLetterUsage[[#This Row],[Count]]/MIN(tLetterUsage[Count]) -> 5.62962963 | F23: ADMIN | G23: A | H23: D | I23: M | J23: I | K23: N
A24: X | B24: 1.48 | C24: =COUNTIF(_xlfn.ANCHORARRAY($G$2),tLetterUsage[[#This Row],[Letter]]) -> 37 | D24: =tLetterUsage[[#This Row],[Count]]/MIN(tLetterUsage[Count]) -> 1.37037037 | F24: ADMIT | G24: A | H24: D | I24: M | J24: I | K24: T
A25: Z | B25: 1.39 | C25: =COUNTIF(_xlfn.ANCHORARRAY($G$2),tLetterUsage[[#This Row],[Letter]]) -> 41 | D25: =tLetterUsage[[#This Row],[Count]]/MIN(tLetterUsage[Count]) -> 1.518518519 | F25: ADOBE | G25: A | H25: D | I25: O | J25: B | K25: E
A26: J | B26: 1 | C26: =COUNTIF(_xlfn.ANCHORARRAY($G$2),tLetterUsage[[#This Row],[Letter]]) -> 27 | D26: =tLetterUsage[[#This Row],[Count]]/MIN(tLetterUsage[Count]) -> 1 | F26: ADOPT | G26: A | H26: D | I26: O | J26: P | K26: T
A27: Q | B27: 1 | C27: =COUNTIF(_xlfn.ANCHORARRAY($G$2),tLetterUsage[[#This Row],[Letter]]) -> 29 | D27: =tLetterUsage[[#This Row],[Count]]/MIN(tLetterUsage[Count]) -> 1.074074074 | F27: ADORE | G27: A | H27: D | I27: O | J27: R | K27: E
F28: ADORN | G28: A | H28: D | I28: O | J28: R | K28: N
F29: ADULT | G29: A | H29: D | I29: U | J29: L | K29: T
F30: AFFIX | G30: A | H30: F | I30: F | J30: I | K30: X
F31: AFIRE | G31: A | H31: F | I31: I | J31: R | K31: E
F32: AFOOT | G32: A | H32: F | I32: O | J32: O | K32: T
F33: AFOUL | G33: A | H33: F | I33: O | J33: U | K33: L
F34: AFTER | G34: A | H34: F | I34: T | J34: E | K34: R
F35: AGAIN | G35: A | H35: G | I35: A | J35: I | K35: N
F36: AGAPE | G36: A | H36: G | I36: A | J36: P | K36: E
F37: AGATE | G37: A | H37: G | I37: A | J37: T | K37: E
F38: AGENT | G38: A | H38: G | I38: E | J38: N | K38: T
F39: AGILE | G39: A | H39: G | I39: I | J39: L | K39: E
F40: AGING | G40: A | H40: G | I40: I | J40: N | K40: G
F41: AGLOW | G41: A | H41: G | I41: L | J41: O | K41: W
F42: AGONY | G42: A | H42: G | I42: O | J42: N | K42: Y
F43: AGREE | G43: A | H43: G | I43: R | J43: E | K43: E
F44: AHEAD | G44: A | H44: H | I44: E | J44: A | K44: D
F45: AIDER | G45: A | H45: I | I45: D | J45: E | K45: R
F46: AISLE | G46: A | H46: I | I46: S | J46: L | K46: E
F47: ALARM | G47: A | H47: L | I47: A | J47: R | K47: M
F48: ALBUM | G48: A | H48: L | I48: B | J48: U | K48: M
F49: ALERT | G49: A | H49: L | I49: E | J49: R | K49: T
F50: ALGAE | G50: A | H50: L | I50: G | J50: A | K50: E
F51: ALIBI | G51: A | H51: L | I51: I | J51: B | K51: I
F52: ALIEN | G52: A | H52: L | I52: I | J52: E | K52: N
F53: ALIGN | G53: A | H53: L | I53: I | J53: G | K53: N
F54: ALIKE | G54: A | H54: L | I54: I | J54: K | K54: E
F55: ALIVE | G55: A | H55: L | I55: I | J55: V | K55: E
F56: ALLAY | G56: A | H56: L | I56: L | J56: A | K56: Y
F57: ALLEY | G57: A | H57: L | I57: L | J57: E | K57: Y
F58: ALLOT | G58: A | H58: L | I58: L | J58: O | K58: T
F59: ALLOW | G59: A | H59: L | I59: L | J59: O | K59: W
F60: ALLOY | G60: A | H60: L | I60: L | J60: O | K60: Y
F61: ALOFT | G61: A | H61: L | I61: O | J61: F | K61: T
F62: ALONE | G62: A | H62: L | I62: O | J62: N | K62: E
F63: ALONG | G63: A | H63: L | I63: O | J63: N | K63: G
F64: ALOOF | G64: A | H64: L | I64: O | J64: O | K64: F
F65: ALOUD | G65: A | H65: L | I65: O | J65: U | K65: D
F66: ALPHA | G66: A | H66: L | I66: P | J66: H | K66: A
F67: ALTAR | G67: A | H67: L | I67: T | J67: A | K67: R
F68: ALTER | G68: A | H68: L | I68: T | J68: E | K68: R
F69: AMASS | G69: A | H69: M | I69: A | J69: S | K69: S
F70: AMAZE | G70: A | H70: M | I70: A | J70: Z | K70: E
F71: AMBER | G71: A | H71: M | I71: B | J71: E | K71: R
F72: AMBLE | G72: A | H72: M | I72: B | J72: L | K72: E
F73: AMEND | G73: A | H73: M | I73: E | J73: N | K73: D
F74: AMISS | G74: A | H74: M | I74: I | J74: S | K74: S
F75: AMITY | G75: A | H75: M | I75: I | J75: T | K75: Y
F76: AMONG | G76: A | H76: M | I76: O | J76: N | K76: G
F77: AMPLE | G77: A | H77: M | I77: P | J77: L | K77: E
F78: AMPLY | G78: A | H78: M | I78: P | J78: L | K78: Y
F79: AMUSE | G79: A | H79: M | I79: U | J79: S | K79: E
F80: ANGEL | G80: A | H80: N | I80: G | J80: E | K80: L
F81: ANGER | G81: A | H81: N | I81: G | J81: E | K81: R
F82: ANGLE | G82: A | H82: N | I82: G | J82: L | K82: E
F83: ANGRY | G83: A | H83: N | I83: G | J83: R | K83: Y
F84: ANGST | G84: A | H84: N | I84: G | J84: S | K84: T
F85: ANIME | G85: A | H85: N | I85: I | J85: M | K85: E
F86: ANKLE | G86: A | H86: N | I86: K | J86: L | K86: E
F87: ANNEX | G87: A | H87: N | I87: N | J87: E | K87: X
F88: ANNOY | G88: A | H88: N | I88: N | J88: O | K88: Y
F89: ANNUL | G89: A | H89: N | I89: N | J89: U | K89: L
F90: ANODE | G90: A | H90: N | I90: O | J90: D | K90: E
F91: ANTIC | G91: A | H91: N | I91: T | J91: I | K91: C
F92: ANVIL | G92: A | H92: N | I92: V | J92: I | K92: L
F93: AORTA | G93: A | H93: O | I93: R | J93: T | K93: A
F94: APART | G94: A | H94: P | I94: A | J94: R | K94: T
F95: APHID | G95: A | H95: P | I95: H | J95: I | K95: D
F96: APING | G96: A | H96: P | I96: I | J96: N | K96: G
F97: APNEA | G97: A | H97: P | I97: N | J97: E | K97: A
F98: APPLE | G98: A | H98: P | I98: P | J98: L | K98: E
F99: APPLY | G99: A | H99: P | I99: P | J99: L | K99: Y
F100: APRON | G100: A | H100: P | I100: R | J100: O | K100: N
F101: APTLY | G101: A | H101: P | I101: T | J101: L | K101: Y
F102: ARBOR | G102: A | H102: R | I102: B | J102: O | K102: R
F103: ARDOR | G103: A | H103: R | I103: D | J103: O | K103: R
F104: ARENA | G104: A | H104: R | I104: E | J104: N | K104: A
F105: ARGUE | G105: A | H105: R | I105: G | J105: U | K105: E
F106: ARISE | G106: A | H106: R | I106: I | J106: S | K106: E
F107: ARMOR | G107: A | H107: R | I107: M | J107: O | K107: R
F108: AROMA | G108: A | H108: R | I108: O | J108: M | K108: A
F109: AROSE | G109: A | H109: R | I109: O | J109: S | K109: E
F110: ARRAY | G110: A | H110: R | I110: R | J110: A | K110: Y
F111: ARROW | G111: A | H111: R | I111: R | J111: O | K111: W
F112: ARSON | G112: A | H112: R | I112: S | J112: O | K112: N
F113: ARTSY | G113: A | H113: R | I113: T | J113: S | K113: Y
F114: ASCOT | G114: A | H114: S | I114: C | J114: O | K114: T
F115: ASHEN | G115: A | H115: S | I115: H | J115: E | K115: N
F116: ASIDE | G116: A | H116: S | I116: I | J116: D | K116: E
F117: ASKEW | G117: A | H117: S | I117: K | J117: E | K117: W
F118: ASSAY | G118: A | H118: S | I118: S | J118: A | K118: Y
F119: ASSET | G119: A | H119: S | I119: S | J119: E | K119: T
F120: ATOLL | G120: A | H120: T | I120: O | J120: L | K120: L
F121: ATONE | G121: A | H121: T | I121: O | J121: N | K121: E
F122: ATTIC | G122: A | H122: T | I122: T | J122: I | K122: C
F123: AUDIO | G123: A | H123: U | I123: D | J123: I | K123: O
F124: AUDIT | G124: A | H124: U | I124: D | J124: I | K124: T
F125: AUGUR | G125: A | H125: U | I125: G | J125: U | K125: R
F126: AUNTY | G126: A | H126: U | I126: N | J126: T | K126: Y
F127: AVAIL | G127: A | H127: V | I127: A | J127: I | K127: L
F128: AVERT | G128: A | H128: V | I128: E | J128: R | K128: T
F129: AVIAN | G129: A | H129: V | I129: I | J129: A | K129: N
F130: AVOID | G130: A | H130: V | I130: O | J130: I | K130: D
F131: AWAIT | G131: A | H131: W | I131: A | J131: I | K131: T
F132: AWAKE | G132: A | H132: W | I132: A | J132: K | K132: E
F133: AWARD | G133: A | H133: W | I133: A | J133: R | K133: D
F134: AWARE | G134: A | H134: W | I134: A | J134: R | K134: E
F135: AWASH | G135: A | H135: W | I135: A | J135: S | K135: H
F136: AWFUL | G136: A | H136: W | I136: F | J136: U | K136: L
F137: AWOKE | G137: A | H137: W | I137: O | J137: K | K137: E
F138: AXIAL | G138: A | H138: X | I138: I | J138: A | K138: L
F139: AXIOM | G139: A | H139: X | I139: I | J139: O | K139: M
F140: AXION | G140: A | H140: X | I140: I | J140: O | K140: N
F141: AZURE | G141: A | H141: Z | I141: U | J141: R | K141: E
F142: BACON | G142: B | H142: A | I142: C | J142: O | K142: N
F143: BADGE | G143: B | H143: A | I143: D | J143: G | K143: E
F144: BADLY | G144: B | H144: A | I144: D | J144: L | K144: Y
F145: BAGEL | G145: B | H145: A | I145: G | J145: E | K145: L
F146: BAGGY | G146: B | H146: A | I146: G | J146: G | K146: Y
F147: BAKER | G147: B | H147: A | I147: K | J147: E | K147: R
F148: BALER | G148: B | H148: A | I148: L | J148: E | K148: R
F149: BALMY | G149: B | H149: A | I149: L | J149: M | K149: Y
F150: BANAL | G150: B | H150: A | I150: N | J150: A | K150: L
F151: BANJO | G151: B | H151: A | I151: N | J151: J | K151: O
F152: BARGE | G152: B | H152: A | I152: R | J152: G | K152: E
F153: BARON | G153: B | H153: A | I153: R | J153: O | K153: N
F154: BASAL | G154: B | H154: A | I154: S | J154: A | K154: L
F155: BASIC | G155: B | H155: A | I155: S | J155: I | K155: C
F156: BASIL | G156: B | H156: A | I156: S | J156: I | K156: L
F157: BASIN | G157: B | H157: A | I157: S | J157: I | K157: N
F158: BASIS | G158: B | H158: A | I158: S | J158: I | K158: S
F159: BATCH | G159: B | H159: A | I159: T | J159: C | K159: H
F160: BATHE | G160: B | H160: A | I160: T | J160: H | K160: E
F161: BATON | G161: B | H161: A | I161: T | J161: O | K161: N
F162: BATTY | G162: B | H162: A | I162: T | J162: T | K162: Y
F163: BAWDY | G163: B | H163: A | I163: W | J163: D | K163: Y
F164: BAYOU | G164: B | H164: A | I164: Y | J164: O | K164: U
F165: BEACH | G165: B | H165: E | I165: A | J165: C | K165: H
F166: BEADY | G166: B | H166: E | I166: A | J166: D | K166: Y
F167: BEARD | G167: B | H167: E | I167: A | J167: R | K167: D
F168: BEAST | G168: B | H168: E | I168: A | J168: S | K168: T
F169: BEECH | G169: B | H169: E | I169: E | J169: C | K169: H
F170: BEEFY | G170: B | H170: E | I170: E | J170: F | K170: Y
F171: BEFIT | G171: B | H171: E | I171: F | J171: I | K171: T
F172: BEGAN | G172: B | H172: E | I172: G | J172: A | K172: N
F173: BEGAT | G173: B | H173: E | I173: G | J173: A | K173: T
F174: BEGET | G174: B | H174: E | I174: G | J174: E | K174: T
F175: BEGIN | G175: B | H175: E | I175: G | J175: I | K175: N
F176: BEGUN | G176: B | H176: E | I176: G | J176: U | K176: N
F177: BEING | G177: B | H177: E | I177: I | J177: N | K177: G
F178: BELCH | G178: B | H178: E | I178: L | J178: C | K178: H
F179: BELIE | G179: B | H179: E | I179: L | J179: I | K179: E
F180: BELLE | G180: B | H180: E | I180: L | J180: L | K180: E
F181: BELLY | G181: B | H181: E | I181: L | J181: L | K181: Y
F182: BELOW | G182: B | H182: E | I182: L | J182: O | K182: W
F183: BENCH | G183: B | H183: E | I183: N | J183: C | K183: H
F184: BERET | G184: B | H184: E | I184: R | J184: E | K184: T
F185: BERRY | G185: B | H185: E | I185: R | J185: R | K185: Y
F186: BERTH | G186: B | H186: E | I186: R | J186: T | K186: H
F187: BESET | G187: B | H187: E | I187: S | J187: E | K187: T
F188: BETEL | G188: B | H188: E | I188: T | J188: E | K188: L
F189: BEVEL | G189: B | H189: E | I189: V | J189: E | K189: L
F190: BEZEL | G190: B | H190: E | I190: Z | J190: E | K190: L
F191: BIBLE | G191: B | H191: I | I191: B | J191: L | K191: E
F192: BICEP | G192: B | H192: I | I192: C | J192: E | K192: P
F193: BIDDY | G193: B | H193: I | I193: D | J193: D | K193: Y
F194: BIGOT | G194: B | H194: I | I194: G | J194: O | K194: T
F195: BILGE | G195: B | H195: I | I195: L | J195: G | K195: E
F196: BILLY | G196: B | H196: I | I196: L | J196: L | K196: Y
F197: BINGE | G197: B | H197: I | I197: N | J197: G | K197: E
F198: BINGO | G198: B | H198: I | I198: N | J198: G | K198: O
F199: BIOME | G199: B | H199: I | I199: O | J199: M | K199: E
F200: BIRCH | G200: B | H200: I | I200: R | J200: C | K200: H
... 2110 more rows
